Workbook

Sheet START
A1: =muni -> LIM332 Greater Letaba

Sheet Instructions
D2: 2020
X4: Yes
X5: No
W7: Type of Entities Range: | X7: Parent Municipality
X8: Consolidated Information
W10: Date linked | X10: 6
W11: Date | X11: =VLOOKUP(X10,W39:X55,2) -> M06 December | Y11: 2013-08-01
W19: MTREF Range: | X19: 2008
X20: 2009
X21: 2010
X22: 2011
X23: 2012
X24: 2013
X25: 2014
X26: 2015
X27: 2016
X28: 2017
X29: 2018
X30: 2019
X31: 2020
X32: 2021
X33: 2022
W34: MTREF Linked:
W35: MTREF: | X35: 13
X36: =INDEX(X19:X33,X35,1) -> 2020
W37: Fin Year:
X38: =MTREF&"/"&RIGHT(MTREF,2)+1 -> 2020/21
V39: Date/type of report | W39: 1 | X39: M01 July
W40: 2 | X40: M02 August
W41: 3 | X41: M03 September
W42: 4 | X42: M04 October
W43: 5 | X43: M05 November
W44: 6 | X44: M06 December
W45: 7 | X45: M07 January
W46: 8 | X46: M08 February
W47: 9 | X47: M09 March
W48: 10 | X48: M10 April
W49: 11 | X49: M11 May
W50: 12 | X50: M12 June
W51: 13 | X51: Q1 First Quarter
W52: 14 | X52: Q2 Second Quarter
W53: 15 | X53: Q3 Third Quarter
W54: 16 | X54: Q4 Fourth Quarter
W55: 17 | X55: Mid-Year Assessment

Sheet Template names (hidden)
A1: Common sheet headings
A2: Head1 | B2: =HLOOKUP(MTREF,Headings,2) -> 2019/20 | C2: Prior year -1
A3: Head2 | B3: =HLOOKUP(MTREF,Headings,5) -> Budget Year 2020/21 | C3: Year of approved budget
A4: Head2A | B4: =HLOOKUP(MTREF,Headings,4) -> 2020/21 | C4: Approved budget year
A5: Head3 | B5: =HLOOKUP(MTREF,Headings,3) -> 2020/21 Medium Term Revenue & Expenditure Framework | C5: MTREF header name
A6: Head5 | B6: Audited Outcome
A7: Head5A | B7: Outcome
A8: Head5B | B8: Pre-audit outcome
A9: Head6 | B9: Original Budget
A10: Head7 | B10: Adjusted Budget
A11: Head8 | B11: Full Year Forecast
A12: Head9 | B12: =HLOOKUP(MTREF,Headings,5) -> Budget Year 2020/21 | C12: 1st year of MTREF | D12: Year1
A13: Head10 | B13: =HLOOKUP(MTREF,Headings,6) -> Budget Year +1 2021/22 | C13: 2nd year of MTREF | D13: Year2
A14: Head11 | B14: =HLOOKUP(MTREF,Headings,7) -> Budget Year +2 2022/23 | C14: 3rd year of MTREF | D14: Year3
A15: Head12 | B15: Forecast 2010/11 | D15: Year4
A16: Head13 | B16: Forecast 2011/12 | D16: Year5
A17: Head14 | B17: Forecast 2012/13 | D17: Year6
A18: Head15 | B18: Forecast 2013/14 | D18: Year7
A19: Head16 | B19: Forecast 2014/15 | D19: Year8
A20: Head17 | B20: Forecast 2015/16 | D20: Year9
A21: Head18 | B21: Forecast 2016/17 | D21: Year10
A22: Head19 | B22: Forecast 2017/18 | D22: Year11
A23: Head20 | B23: Forecast 2018/19 | D23: Year12
A24: Head21 | B24: Forecast 2019/20 | D24: Year13
A25: Head22 | B25: Forecast 2020/21 | D25: Year14
A26: Head23 | B26: Forecast 2021/22 | D26: Year15
A27: Head24 | B27: Description | D27: Desc
A28: Head25 | B28: Schedule of funding diligence | D28: fdil
A29: Head26 | B29: Vote Description | D29: VDesc
A30: Head27 | B30: Ref
A31: Head27a | B31: References
A32: Head28 | B32: Surplus/ (Deficit) for the year | D32: Result
A33: Head29 | B33: Annual target 2007/08
A34: Head30 | B34: Revised target 2007/08
A35: Head31 | B35: Quarter ended 30 September
A36: Head32 | B36: Quarter ended 31 December
A37: Head33 | B37: Quarter ended 31 March
A38: Head34 | B38: Quarter ended 30 June
A39: Head35 | B39: Variance explanation
A40: Head36 | B40: YTD Actual 31 Dec
A41: Head37 | B41: YTD Budget 31 Dec
A42: Head38 | B42: Monthly actual
A43: Head39 | B43: YearTD actual
A44: Head40 | B44: YearTD budget
A45: Head41 | B45: YTD variance
A46: Head42 | B46: Surplus/ (Deficit) for the yr/period
A47: Head43 | B47: =Head3&" Summary" -> 2020/21 Medium Term Revenue & Expenditure Framework Summary
A48: Head44 | B48: 1996 Census
A49: Head45 | B49: 2001 Census
A50: Head46 | B50: - Adjustments Budget - Month YYYY
A51: Head47 | B51: Previous target year to complete
A52: Head48 | B52: Present value
A53: Head49 | B53: Virement
A54: Head50 | B54: Other Adjusts.
A55: Head51 | B55: Accum. Funds
A56: Head52 | B56: Multi-year capital
A57: Head53 | B57: Unfore. Unavoid.
A58: Head54 | B58: Prior Adjusted
A59: Head55 | B59: Nat. or Prov. Govt
A60: Head56 | B60: Total Adjusts.
A61: Head57 | B61: =date -> M06 December
A62: Head58 | B62: Parent muni.
A63: Head59 | B63: Downward adjusts
A64: Head60 | B64: Month | C64: Report header part name | D64: =MONTH(date) -> 
A65: SFPerf1 | B65: Budgeted Financial Performance
A66: SFPerf2 | B66: Forecast Financial Performance
A67: SFPos1 | B67: Budgeted Financial Position
A68: SFPos2 | B68: Forecast Financial Position
A69: Cash1 | B69: Budget Cash Flow
A70: Cash2 | B70: Forecast Cash Flow
A71: RandM | B71: Expenditure includes repairs & maintenance of R'000
A72: Standard nomenclature
A73: Muni | B73: ='Lookup and lists'!B27 -> LIM332 Greater Letaba
A74: Municipal Entities | B74: 2 | C74: Type of report: | D74: 3
A75: =IF((MuniEntities=1)*(MuniType=2),"YES","NO") -> NO | B75: Does this municipality have entities (consolidated budget and entity budgets required)? YES/NO
A76: s71 (Monthly Mayor report) schedules and charts
A77: S71sum | B77: =IF(Consolques="YES",E77,F77) -> Table C1 Monthly Budget Statement Summary | D77: Table C1 | E77: =D77&"Consolidated Monthly Budget Statement Summary" -> Table C1 Consolidated Monthly Budget Statement Summary | F77: =D77&"Monthly Budget Statement Summary" -> Table C1 Monthly Budget Statement Summary
A78: S71C | B78: Table C3 Monthly Budget Statement - Financial Performance (revenue and expenditure by municipal vote) | D78: Table C3 | E78: =D78&"Consolidated Monthly Budget Statement - Financial Performance (revenue and expenditure by municipal vote) " -> Table C3 Consolidated Monthly Budget Statement - Financial Performance (revenue and expenditure by municipal vote) | F78: =D78&"Monthly Budget Statement - Financial Performance (revenue and expenditure by municipal vote)" -> Table C3 Monthly Budget Statement - Financial Performance (revenue and expenditure by municipal vote)
A79: S71A | B79: =IF(Consolques="YES",E79,F79) -> Table C2 Monthly Budget Statement - Financial Performance (functional classification) | D79: Table C2 | E79: =D79&"Consolidated Monthly Budget Statement - Financial Performance (functional classification) " -> Table C2 Consolidated Monthly Budget Statement - Financial Performance (functional classification) | F79: =D79&"Monthly Budget Statement - Financial Performance (functional classification)" -> Table C2 Monthly Budget Statement - Financial Performance (functional classification)
A80: S71B | B80: =IF(Consolques="YES",E80,F80) -> Table C4 Monthly Budget Statement - Financial Performance (revenue and expenditure) | D80: Table C4 | E80: =D80&"Consolidated Monthly Budget Statement - Financial Performance (revenue and expenditure) " -> Table C4 Consolidated Monthly Budget Statement - Financial Performance (revenue and expenditure) | F80: =D80&"Monthly Budget Statement - Financial Performance (revenue and expenditure)" -> Table C4 Monthly Budget Statement - Financial Performance (revenue and expenditure)
A81: S71D | B81: =IF(Consolques="YES",E81,F81) -> Table C5 Monthly Budget Statement - Capital Expenditure (municipal vote, functional classification and funding) | D81: Table C5 | E81: =D81&"Consolidated Monthly Budget Statement - Capital Expenditure (municipal vote, functional classification and funding " -> Table C5 Consolidated Monthly Budget Statement - Capital Expenditure (municipal vote, functional classification and funding | F81: =D81&"Monthly Budget Statement - Capital Expenditure (municipal vote, functional classification and funding)" -> Table C5 Monthly Budget Statement - Capital Expenditure (municipal vote, functional classification and funding)
A82: S71E | B82: Table C6 Monthly Budget Statement - Financial Position | D82: Table C6 | E82: =D82&"Consolidated Monthly Budget Statement - Financial Position " -> Table C6 Consolidated Monthly Budget Statement - Financial Position | F82: =D82&"Monthly Budget Statement - Financial Position" -> Table C6 Monthly Budget Statement - Financial Position
A83: S71F | B83: Table C7 Monthly Budget Statement - Cash Flow | D83: Table C7 | E83: =D83&"Consolidated Monthly Budget Statement - Cash Flow " -> Table C7 Consolidated Monthly Budget Statement - Cash Flow | F83: =D83&"Monthly Budget Statement - Cash Flow " -> Table C7 Monthly Budget Statement - Cash Flow
A84: S71G | B84: =D84&"Material variance explanations " -> Supporting Table SC1 Material variance explanations | D84: Supporting Table SC1
A85: S71H | B85: =D85&"Monthly Budget Statement - performance indicators " -> Supporting Table SC2 Monthly Budget Statement - performance indicators | D85: Supporting Table SC2
A86: S71I | B86: =D86&"Monthly Budget Statement - aged debtors" -> Supporting Table SC3 Monthly Budget Statement - aged debtors | D86: Supporting Table SC3
A87: S71J | B87: =D87&"Monthly Budget Statement - aged creditors " -> Supporting Table SC4 Monthly Budget Statement - aged creditors | D87: Supporting Table SC4
A88: S71K | B88: =D88&"Monthly Budget Statement - investment portfolio " -> Supporting Table SC5 Monthly Budget Statement - investment portfolio | D88: Supporting Table SC5
A89: S71L | B89: =D89&"Monthly Budget Statement - transfers and grant receipts " -> Supporting Table SC6 Monthly Budget Statement - transfers and grant receipts | D89: Supporting Table SC6
A90: S71M | B90: =D90&" Monthly Budget Statement - transfers and grant expenditure " -> Supporting Table SC7(1) Monthly Budget Statement - transfers and grant expenditure | D90: Supporting Table SC7(1)
A91: S71N | B91: =D91&"Monthly Budget Statement - councillor and staff benefits " -> Supporting Table SC8 Monthly Budget Statement - councillor and staff benefits | D91: Supporting Table SC8
A92: S71O | B92: =D92&"Monthly Budget Statement - actuals and revised targets for cash receipts" -> Supporting Table SC9 Monthly Budget Statement - actuals and revised targets for cash receipts | D92: Supporting Table SC9
A93: S71P | B93: =IF(Consolques="YES",E93,F93) -> NOT REQUIRED - municipality does not have entities or this is the parent municipality's budget | D93: Supporting Table SC10 | E93: =D93&"Monthly Budget Statement - Parent Municipality Financial Performance (revenue and expenditure) " -> Supporting Table SC10 Monthly Budget Statement - Parent Municipality Financial Performance (revenue and expenditure) | F93: NOT REQUIRED - municipality does not have entities or this is the parent municipality's budget
A94: S71Q | B94: NOT REQUIRED - municipality does not have entities or this is the parent municipality's budget | D94: Supporting Table SC11 | E94: =D94&"Monthly Budget Statement - summary of municipal entities" -> Supporting Table SC11 Monthly Budget Statement - summary of municipal entities | F94: NOT REQUIRED - municipality does not have entities or this is the parent municipality's budget
A95: S71R | B95: Supporting Table SC12 Monthly Budget Statement - capital expenditure trend | D95: Supporting Table SC12 | E95: =D95&"Consolidated Monthly Budget Statement - capital expenditure trend " -> Supporting Table SC12 Consolidated Monthly Budget Statement - capital expenditure trend | F95: =D95&"Monthly Budget Statement - capital expenditure trend" -> Supporting Table SC12 Monthly Budget Statement - capital expenditure trend
A96: S71Sa | B96: Supporting Table SC13a Monthly Budget Statement - capital expenditure on new assets by asset class | D96: Supporting Table SC13a | E96: =D96&"Consolidated Monthly Budget Statement - capital expenditure on new assets by asset class" -> Supporting Table SC13a Consolidated Monthly Budget Statement - capital expenditure on new assets by asset class | F96: =D96&"Monthly Budget Statement - capital expenditure on new assets by asset class" -> Supporting Table SC13a Monthly Budget Statement - capital expenditure on new assets by asset class
A97: S71Sb | B97: Supporting Table SC13b Monthly Budget Statement - capital expenditure on renewal of existing assets by asset class | D97: Supporting Table SC13b | E97: =D97&"Consolidated Monthly Budget Statement - capital expenditure on renewal of existing assets by asset class" -> Supporting Table SC13b Consolidated Monthly Budget Statement - capital expenditure on renewal of existing assets by asset class | F97: =D97&"Monthly Budget Statement - capital expenditure on renewal of existing assets by asset class" -> Supporting Table SC13b Monthly Budget Statement - capital expenditure on renewal of existing assets by asset class
A98: S71Sc | B98: Supporting Table SC13c Monthly Budget Statement - expenditure on repairs and maintenance by asset class | D98: Supporting Table SC13c | E98: =D98&"Consolidated Monthly Budget Statement - expenditure on repairs and maintenance by asset class" -> Supporting Table SC13c Consolidated Monthly Budget Statement - expenditure on repairs and maintenance by asset class | F98: =D98&"Monthly Budget Statement - expenditure on repairs and maintenance by asset class" -> Supporting Table SC13c Monthly Budget Statement - expenditure on repairs and maintenance by asset class
A99: S71Sd | B99: Supporting Table SC13d Monthly Budget Statement - depreciation by asset class | D99: Supporting Table SC13d | E99: =D99&"Consolidated Monthly Budget Statement - depreciation by asset class" -> Supporting Table SC13d Consolidated Monthly Budget Statement - depreciation by asset class | F99: =D99&"Monthly Budget Statement - depreciation by asset class" -> Supporting Table SC13d Monthly Budget Statement - depreciation by asset class
A100: S71Se | B100: =IF(Consolques="YES",E100,F100) -> Supporting Table SC13e Monthly Budget Statement - capital expenditure on upgrading of existing assets by asset class | D100: Supporting Table SC13e | E100: =D100&"Consolidated Monthly Budget Statement - capital expenditure on upgrading of existing assets by asset class" -> Supporting Table SC13e Consolidated Monthly Budget Statement - capital expenditure on upgrading of existing assets by asset class | F100: =D100&"Monthly Budget Statement - capital expenditure on upgrading of existing assets by asset class" -> Supporting Table SC13e Monthly Budget Statement - capital expenditure on upgrading of existing assets by asset class
B101: s71 charts listing
B102: =D102&Head2A&" Capital Expenditure Monthly Trend: actual v target" -> Chart C1 2020/21 Capital Expenditure Monthly Trend: actual v target | D102: Chart C1
B103: =D103&Head2A&" Capital Expenditure: YTD actual v YTD target" -> Chart C2 2020/21 Capital Expenditure: YTD actual v YTD target | D103: Chart C2
B104: =D104&"Aged Consumer Debtors Analysis" -> Chart C3 Aged Consumer Debtors Analysis | D104: Chart C3
B105: =D105&"Consumer Debtors (total by Debtor Customer Category)" -> Chart C4 Consumer Debtors (total by Debtor Customer Category) | D105: Chart C4
B106: =D106&"Aged Creditors Analysis" -> Chart C5 Aged Creditors Analysis | D106: Chart C5
A107: S71T | B107: =D107&" Monthly Budget Statement - Expenditure against approved rollovers" -> Supporting Table SC7(2) Monthly Budget Statement - Expenditure against approved rollovers | D107: Supporting Table SC7(2)

Sheet Lookup and lists (hidden)
A1: Description | B1: 2007 | C1: 2008 | D1: 2009 | E1: 2010 | F1: 2011 | G1: 2012 | H1: 2013 | I1: 2014 | J1: 2015 | K1: 2016 | L1: 2017 | M1: 2018 | N1: 2019 | O1: 2020 | Q1: Grants: | R1: National - opex | S1: Provincial - opex | T1: National - capex | U1: Provincial - capex | V1: YESNO
A2: ='Template names'!C2 -> Prior year -1 | B2: 2006/07 | C2: 2007/08 | D2: 2008/09 | E2: =E1-1&"/"&RIGHT(E1,2)-0 -> 2009/10 | F2: =F1-1&"/"&RIGHT(F1,2)-0 -> 2010/11 | G2: 2011/12 | H2: 2012/13 | I2: 2013/14 | J2: 2014/15 | K2: 2015/16 | L2: 2016/17 | M2: 2017/18 | N2: 2018/19 | O2: 2019/20 | R2: Local Government Equitable Share | S2: Health subsidy | T2: Municipal Infrastructure Grant (MIG) | U2: Agriculture | V2: Yes
A3: ='Template names'!C5 -> MTREF header name | B3: 2007/08 Medium Term Revenue & Expenditure Framework | C3: 2008/09 Medium Term Revenue & Expenditure Framework | D3: 2009/10 Medium Term Revenue & Expenditure Framework | E3: =E1&"/"&RIGHT(E1,2)+1&" Medium Term Revenue & Expenditure Framework" -> 2010/11 Medium Term Revenue & Expenditure Framework | F3: =F1&"/"&RIGHT(F1,2)+1&" Medium Term Revenue & Expenditure Framework" -> 2011/12 Medium Term Revenue & Expenditure Framework | G3: 2012/13 Medium Term Revenue & Expenditure Framework | H3: 2013/14 Medium Term Revenue & Expenditure Framework | I3: 2014/15 Medium Term Revenue & Expenditure Framework | J3: 2015/16 Medium Term Revenue & Expenditure Framework | K3: 2016/17 Medium Term Revenue & Expenditure Framework | L3: 2017/18 Medium Term Revenue & Expenditure Framework | M3: 2018/19 Medium Term Revenue & Expenditure Framework | N3: 2019/20 Medium Term Revenue & Expenditure Framework | O3: 2020/21 Medium Term Revenue & Expenditure Framework | R3: RSC Levy Replacement | S3: Ambulance subsidy | T3: Public Transport and Systems | U3: Education | V3: No
A4: ='Template names'!C4 -> Approved budget year | B4: 2007/08 | C4: 2008/09 | D4: 2009/10 | E4: =E1&"/"&RIGHT(E1,2)+1 -> 2010/11 | F4: =F1&"/"&RIGHT(F1,2)+1 -> 2011/12 | G4: 2012/13 | H4: 2013/14 | I4: 2014/15 | J4: 2015/16 | K4: 2016/17 | L4: 2017/18 | M4: 2018/19 | N4: 2019/20 | O4: 2020/21 | R4: Finance Management | S4: Housing | T4: Rural Transport Services and Infrastructure | U4: Health
A5: ='Template names'!C12 -> 1st year of MTREF | B5: Budget Year 2007/08 | C5: Budget Year 2008/09 | D5: Budget Year 2009/10 | E5: ="Budget Year "&E1&"/"&RIGHT(E1,2)+1 -> Budget Year 2010/11 | F5: ="Budget Year "&F1&"/"&RIGHT(F1,2)+1 -> Budget Year 2011/12 | G5: Budget Year 2012/13 | H5: Budget Year 2013/14 | I5: Budget Year 2014/15 | J5: Budget Year 2015/16 | K5: Budget Year 2016/17 | L5: Budget Year 2017/18 | M5: Budget Year 2018/19 | N5: Budget Year 2019/20 | O5: Budget Year 2020/21 | R5: Municipal Systems Improvement | S5: Sport and Recreation | T5: Regional Bulk Infrastructure | U5: Housing and Local Government
A6: ='Template names'!C13 -> 2nd year of MTREF | B6: Budget Year +1 2008/09 | C6: Budget Year +1 2009/10 | D6: Budget Year +1 2010/11 | E6: ="Budget Year +1 "&E1+1&"/"&RIGHT(E1,2)+2 -> Budget Year +1 2011/12 | F6: ="Budget Year +1 "&F1+1&"/"&RIGHT(F1,2)+2 -> Budget Year +1 2012/13 | G6: Budget Year +1 2013/14 | H6: Budget Year +1 2014/15 | I6: Budget Year +1 2015/16 | J6: Budget Year +1 2016/17 | K6: Budget Year +1 2017/18 | L6: Budget Year +1 2018/19 | M6: Budget Year +1 2019/20 | N6: Budget Year +1 2020/21 | O6: Budget Year +1 2021/22 | R6: Water Services Operating Subsidy | T6: Rural Households Infrastructure | U6: Other Departments
A7: ='Template names'!C14 -> 3rd year of MTREF | B7: Budget Year +2 2009/10 | C7: Budget Year +2 2010/11 | D7: Budget Year +2 2011/12 | E7: ="Budget Year +2 "&E1+2&"/"&RIGHT(E1,2)+3 -> Budget Year +2 2012/13 | F7: ="Budget Year +2 "&F1+2&"/"&RIGHT(F1,2)+3 -> Budget Year +2 2013/14 | G7: Budget Year +2 2014/15 | H7: Budget Year +2 2015/16 | I7: Budget Year +2 2016/17 | J7: Budget Year +2 2017/18 | K7: Budget Year +2 2018/19 | L7: Budget Year +2 2019/20 | M7: Budget Year +2 2020/21 | N7: Budget Year +2 2021/22 | O7: Budget Year +2 2022/23 | R7: Energy Efficiency and Demand Management | T7: Neighbourhood Development Partnership | U7: Public Works, Roads, Transport
A8: NOTE: This sheet should not be directly amended - select headings from sheet 'S' | R8: Integrated National Electrification Programme | T8: 2010 FIFA World Cup Stadiums Development | U8: Sport and Recreation
R9: Municipal Drought Relief
R10: 2010 FIFA World Cup Operating
R11: Electricity Demand Side Management
R12: EPWP Incentive
A26: Name link | B26: 130
A27: Name of Muni | B27: =INDEX(B28:B311,B26,1) -> LIM332 Greater Letaba
B28: Choose name from list | C28: Set name on 'Instructions' sheet
B29: BUF Buffalo City | C29: EC EASTERN CAPE
B30: NMA Nelson Mandela Bay | C30: EC EASTERN CAPE
B31: EC101 Dr Beyers Naude | C31: EC EASTERN CAPE
B32: EC102 Blue Crane Route | C32: EC EASTERN CAPE
B33: EC104 Makana | C33: EC EASTERN CAPE
B34: EC105 Ndlambe | C34: EC EASTERN CAPE
B35: EC106 Sundays River Valley | C35: EC EASTERN CAPE
B36: EC108 Kouga | C36: EC EASTERN CAPE
B37: EC109 Kou-Kamma | C37: EC EASTERN CAPE
B38: DC10 Sarah Baartman | C38: EC EASTERN CAPE
B39: EC121 Mbhashe | C39: EC EASTERN CAPE
B40: EC122 Mnquma | C40: EC EASTERN CAPE
B41: EC123 Great Kei | C41: EC EASTERN CAPE
B42: EC124 Amahlathi | C42: EC EASTERN CAPE
B43: EC126 Ngqushwa | C43: EC EASTERN CAPE
B44: EC129 Raymond Mhlaba | C44: EC EASTERN CAPE
B45: DC12 Amathole | C45: EC EASTERN CAPE
B46: EC131 Inxuba Yethemba | C46: EC EASTERN CAPE
B47: EC135 Intsika Yethu | C47: EC EASTERN CAPE
B48: EC136 Emalahleni (Ec) | C48: EC EASTERN CAPE
B49: EC137 Engcobo | C49: EC EASTERN CAPE
B50: EC138 Sakhisizwe | C50: EC EASTERN CAPE
B51: EC139 Enoch Mgijima | C51: EC EASTERN CAPE
B52: DC13 Chris Hani | C52: EC EASTERN CAPE
B53: EC141 Elundini | C53: EC EASTERN CAPE
B54: EC142 Senqu | C54: EC EASTERN CAPE
B55: EC145 Walter Sisulu | C55: EC EASTERN CAPE
B56: DC14 Joe Gqabi | C56: EC EASTERN CAPE
B57: EC153 Ngquza Hills | C57: EC EASTERN CAPE
B58: EC154 Port St Johns | C58: EC EASTERN CAPE
B59: EC155 Nyandeni | C59: EC EASTERN CAPE
B60: EC156 Mhlontlo | C60: EC EASTERN CAPE
B61: EC157 King Sabata Dalindyebo | C61: EC EASTERN CAPE
B62: DC15 O .R. Tambo | C62: EC EASTERN CAPE
B63: EC441 Matatiele | C63: EC EASTERN CAPE
B64: EC442 Umzimvubu | C64: EC EASTERN CAPE
B65: EC443 Mbizana | C65: EC EASTERN CAPE
B66: EC444 Ntabankulu | C66: EC EASTERN CAPE
B67: DC44 Alfred Nzo | C67: EC EASTERN CAPE
B68: MAN Mangaung | C68: FS FREE STATE
B69: FS161 Letsemeng | C69: FS FREE STATE
B70: FS162 Kopanong | C70: FS FREE STATE
B71: FS163 Mohokare | C71: FS FREE STATE
B72: DC16 Xhariep | C72: FS FREE STATE
B73: FS181 Masilonyana | C73: FS FREE STATE
B74: FS182 Tokologo | C74: FS FREE STATE
B75: FS183 Tswelopele | C75: FS FREE STATE
B76: FS184 Matjhabeng | C76: FS FREE STATE
B77: FS185 Nala | C77: FS FREE STATE
B78: DC18 Lejweleputswa | C78: FS FREE STATE
B79: FS191 Setsoto | C79: FS FREE STATE
B80: FS192 Dihlabeng | C80: FS FREE STATE
B81: FS193 Nketoana | C81: FS FREE STATE
B82: FS194 Maluti-a-Phofung | C82: FS FREE STATE
B83: FS195 Phumelela | C83: FS FREE STATE
B84: FS196 Mantsopa | C84: FS FREE STATE
B85: DC19 Thabo Mofutsanyana | C85: FS FREE STATE
B86: FS201 Moqhaka | C86: FS FREE STATE
B87: FS203 Ngwathe | C87: FS FREE STATE
B88: FS204 Metsimaholo | C88: FS FREE STATE
B89: FS205 Mafube | C89: FS FREE STATE
B90: DC20 Fezile Dabi | C90: FS FREE STATE
B91: EKU City of Ekurhuleni | C91: GT GAUTENG
B92: JHB City Of Johannesburg | C92: GT GAUTENG
B93: TSH City Of Tshwane | C93: GT GAUTENG
B94: GT421 Emfuleni | C94: GT GAUTENG
B95: GT422 Midvaal | C95: GT GAUTENG
B96: GT423 Lesedi | C96: GT GAUTENG
B97: DC42 Sedibeng | C97: GT GAUTENG
B98: GT481 Mogale City | C98: GT GAUTENG
B99: GT484 Merafong City | C99: GT GAUTENG
B100: GT485 Rand West City | C100: GT GAUTENG
B101: DC48 West Rand | C101: GT GAUTENG
B102: ETH eThekwini | C102: KZN KWAZULU-NATAL
B103: KZN212 Umdoni | C103: KZN KWAZULU-NATAL
B104: KZN213 Umzumbe | C104: KZN KWAZULU-NATAL
B105: KZN214 uMuziwabantu | C105: KZN KWAZULU-NATAL
B106: KZN216 Ray Nkonyeni | C106: KZN KWAZULU-NATAL
B107: DC21 Ugu | C107: KZN KWAZULU-NATAL
B108: KZN221 uMshwathi | C108: KZN KWAZULU-NATAL
B109: KZN222 uMngeni | C109: KZN KWAZULU-NATAL
B110: KZN223 Mpofana | C110: KZN KWAZULU-NATAL
B111: KZN224 Impendle | C111: KZN KWAZULU-NATAL
B112: KZN225 Msunduzi | C112: KZN KWAZULU-NATAL
B113: KZN226 Mkhambathini | C113: KZN KWAZULU-NATAL
B114: KZN227 Richmond | C114: KZN KWAZULU-NATAL
B115: DC22 uMgungundlovu | C115: KZN KWAZULU-NATAL
B116: KZN235 Okhahlamba | C116: KZN KWAZULU-NATAL
B117: KZN237 Inkosi Langalibalele | C117: KZN KWAZULU-NATAL
B118: KZN238 Alfred Duma | C118: KZN KWAZULU-NATAL
B119: DC23 Uthukela | C119: KZN KWAZULU-NATAL
B120: KZN241 Endumeni | C120: KZN KWAZULU-NATAL
B121: KZN242 Nquthu | C121: KZN KWAZULU-NATAL
B122: KZN244 Msinga | C122: KZN KWAZULU-NATAL
B123: KZN245 Umvoti | C123: KZN KWAZULU-NATAL
B124: DC24 Umzinyathi | C124: KZN KWAZULU-NATAL
B125: KZN252 Newcastle | C125: KZN KWAZULU-NATAL
B126: KZN253 Emadlangeni | C126: KZN KWAZULU-NATAL
B127: KZN254 Dannhauser | C127: KZN KWAZULU-NATAL
B128: DC25 Amajuba | C128: KZN KWAZULU-NATAL
B129: KZN261 eDumbe | C129: KZN KWAZULU-NATAL
B130: KZN262 uPhongolo | C130: KZN KWAZULU-NATAL
B131: KZN263 Abaqulusi | C131: KZN KWAZULU-NATAL
B132: KZN265 Nongoma | C132: KZN KWAZULU-NATAL
B133: KZN266 Ulundi | C133: KZN KWAZULU-NATAL
B134: DC26 Zululand | C134: KZN KWAZULU-NATAL
B135: KZN271 Umhlabuyalingana | C135: KZN KWAZULU-NATAL
B136: KZN272 Jozini | C136: KZN KWAZULU-NATAL
B137: KZN275 Mtubatuba | C137: KZN KWAZULU-NATAL
B138: KZN276 Hlabisa Big Five | C138: KZN KWAZULU-NATAL
B139: DC27 Umkhanyakude | C139: KZN KWAZULU-NATAL
B140: KZN281 Mfolozi | C140: KZN KWAZULU-NATAL
B141: KZN282 uMhlathuze | C141: KZN KWAZULU-NATAL
B142: KZN284 uMlalazi | C142: KZN KWAZULU-NATAL
B143: KZN285 Mthonjaneni | C143: KZN KWAZULU-NATAL
B144: KZN286 Nkandla | C144: KZN KWAZULU-NATAL
B145: DC28 King Cetshwayo | C145: KZN KWAZULU-NATAL
B146: KZN291 Mandeni | C146: KZN KWAZULU-NATAL
B147: KZN292 KwaDukuza | C147: KZN KWAZULU-NATAL
B148: KZN293 Ndwedwe | C148: KZN KWAZULU-NATAL
B149: KZN294 Maphumulo | C149: KZN KWAZULU-NATAL
B150: DC29 iLembe | C150: KZN KWAZULU-NATAL
B151: KZN433 Greater Kokstad | C151: KZN KWAZULU-NATAL
B152: KZN434 Ubuhlebezwe | C152: KZN KWAZULU-NATAL
B153: KZN435 Umzimkhulu | C153: KZN KWAZULU-NATAL
B154: KZN436 Dr Nkosazana Dlamini Zuma | C154: KZN KWAZULU-NATAL
B155: DC43 Harry Gwala | C155: KZN KWAZULU-NATAL
B156: LIM331 Greater Giyani | C156: LIM LIMPOPO
B157: LIM332 Greater Letaba | C157: LIM LIMPOPO
B158: LIM333 Greater Tzaneen | C158: LIM LIMPOPO
B159: LIM334 Ba-Phalaborwa | C159: LIM LIMPOPO
B160: LIM335 Maruleng | C160: LIM LIMPOPO
B161: DC33 Mopani | C161: LIM LIMPOPO
B162: LIM341 Musina | C162: LIM LIMPOPO
B163: LIM343 Thulamela | C163: LIM LIMPOPO
B164: LIM344 Makhado | C164: LIM LIMPOPO
B165: LIM345 Collins Chabane | C165: LIM LIMPOPO
B166: DC34 Vhembe | C166: LIM LIMPOPO
B167: LIM351 Blouberg | C167: LIM LIMPOPO
B168: LIM353 Molemole | C168: LIM LIMPOPO
B169: LIM354 Polokwane | C169: LIM LIMPOPO
B170: LIM355 Lepelle-Nkumpi | C170: LIM LIMPOPO
B171: DC35 Capricorn | C171: LIM LIMPOPO
B172: LIM361 Thabazimbi | C172: LIM LIMPOPO
B173: LIM362 Lephalale | C173: LIM LIMPOPO
B174: LIM366 Bela Bela | C174: LIM LIMPOPO
B175: LIM367 Mogalakwena | C175: LIM LIMPOPO
B176: LIM368 Modimolle-Mookgopong | C176: LIM LIMPOPO
B177: DC36 Waterberg | C177: LIM LIMPOPO
B178: LIM471 Ephraim Mogale | C178: LIM LIMPOPO
B179: LIM472 Elias Motsoaledi | C179: LIM LIMPOPO
B180: LIM473 Makhuduthamaga | C180: LIM LIMPOPO
B181: LIM476 Tubatse Fetakgomo | C181: LIM LIMPOPO
B182: DC47 Sekhukhune | C182: LIM LIMPOPO
B183: MP301 Albert Luthuli | C183: MP MPUMALANGA
B184: MP302 Msukaligwa | C184: MP MPUMALANGA
B185: MP303 Mkhondo | C185: MP MPUMALANGA
B186: MP304 Pixley Ka Seme (MP) | C186: MP MPUMALANGA
B187: MP305 Lekwa | C187: MP MPUMALANGA
B188: MP306 Dipaleseng | C188: MP MPUMALANGA
B189: MP307 Govan Mbeki | C189: MP MPUMALANGA
B190: DC30 Gert Sibande | C190: MP MPUMALANGA
B191: MP311 Victor Khanye | C191: MP MPUMALANGA
B192: MP312 Emalahleni (Mp) | C192: MP MPUMALANGA
B193: MP313 Steve Tshwete | C193: MP MPUMALANGA
B194: MP314 Emakhazeni | C194: MP MPUMALANGA
B195: MP315 Thembisile Hani | C195: MP MPUMALANGA
B196: MP316 Dr J.S. Moroka | C196: MP MPUMALANGA
B197: DC31 Nkangala | C197: MP MPUMALANGA
B198: MP321 Thaba Chweu | C198: MP MPUMALANGA
B199: MP324 Nkomazi | C199: MP MPUMALANGA
B200: MP325 Bushbuckridge | C200: MP MPUMALANGA
B201: MP326 City of Mbombela | C201: MP MPUMALANGA
B202: DC32 Ehlanzeni | C202: MP MPUMALANGA
B203: NC451 Joe Morolong | C203: NC NORTHERN CAPE
B204: NC452 Ga-Segonyana | C204: NC NORTHERN CAPE
B205: NC453 Gamagara | C205: NC NORTHERN CAPE
B206: DC45 John Taolo Gaetsewe | C206: NC NORTHERN CAPE
B207: NC061 Richtersveld | C207: NC NORTHERN CAPE
B208: NC062 Nama Khoi | C208: NC NORTHERN CAPE
B209: NC064 Kamiesberg | C209: NC NORTHERN CAPE
B210: NC065 Hantam | C210: NC NORTHERN CAPE
B211: NC066 Karoo Hoogland | C211: NC NORTHERN CAPE
B212: NC067 Khai-Ma | C212: NC NORTHERN CAPE
B213: DC6 Namakwa | C213: NC NORTHERN CAPE
... 73 more rows

Sheet Org structure
A1: Organisational Structure Votes | C1: Organisational Structure Sub-Votes | E1: Display Sub-Votes
A2: Vote 1 - Executive & Council | B2: Vote 1 | C2: Executive & Council
A3: Vote 2 - Finance and Administration | B3: 1.1 | C3: Mayor and Council | D3: =CONCATENATE(B3, " - ", C3) -> 1,1 - Mayor and Council | E3: 1,1 - Mayor and Council
A4: Vote 3 - Internal Audit | B4: 1.2 | C4: Municipal Manager | D4: 1,2 - Municipal Manager | E4: 1,2 - Municipal Manager
A5: Vote 4 - Community and Public Safety | B5: 1.3 | D5: 1,3 -
A6: Vote 5 - Sports and Recreation | B6: 1.4 | D6: 1,4 -
A7: Vote 6 - Housing | B7: 1.5 | D7: 1,5 -
A8: Vote 7 - Planning and development | B8: 1.6 | D8: 1,6 -
A9: Vote 8 - Road Transport | B9: 1.7 | D9: 1,7 -
A10: Vote 9 - Energy Sources | B10: 1.8 | D10: 1,8 -
A11: Vote 10 - Waste Water Management | B11: 1.9 | D11: 1,9 -
A12: Vote 11 - Waste Management | B12: 1.10 | D12: 1.10 -
B13: Vote 2 | C13: Finance and Administration
B14: 2.1 | C14: Administrative and Corporate Support | D14: =CONCATENATE(B14, " - ", C14) -> 2,1 - Administrative and Corporate Support | E14: 2,1 - Administrative and Corporate Support
B15: 2.2 | C15: Asset Management | D15: 2,2 - Asset Management | E15: 2,2 - Asset Management
B16: 2.3 | C16: Budget and Treasury Office | D16: 2,3 - Budget and Treasury Office | E16: 2,3 - Budget and Treasury Office
B17: 2.4 | C17: Human Resource | D17: 2,4 - Human Resource | E17: 2,4 - Human Resource
B18: 2.5 | C18: Information Technology | D18: 2,5 - Information Technology | E18: 2,5 - Information Technology
B19: 2.6 | C19: Legal Services | D19: 2,6 - Legal Services | E19: 2,6 - Legal Services
B20: 2.7 | C20: Customer Relation and Coordination | D20: 2,7 - Customer Relation and Coordination | E20: 2,7 - Customer Relation and Coordination
B21: 2.8 | C21: Property Services | D21: 2,8 - Property Services | E21: 2,8 - Property Services
B22: 2.9 | C22: Risk Management | D22: 2,9 - Risk Management | E22: 2,9 - Risk Management
B23: 2.10 | C23: Supply Chain Management | D23: 2.10 - Supply Chain Management | E23: 2.10 - Supply Chain Management
B24: Vote 3 | C24: Internal Audit
B25: 3.1 | C25: Governance Function | D25: =CONCATENATE(B25, " - ", C25) -> 3,1 - Governance Function | E25: 3,1 - Governance Function
B26: 3.2 | D26: 3,2 -
B27: 3.3 | D27: 3,3 -
B28: 3.4 | D28: 3,4 -
B29: 3.5 | D29: 3,5 -
B30: 3.6 | D30: 3,6 -
B31: 3.7 | D31: 3,7 -
B32: 3.8 | D32: 3,8 -
B33: 3.9 | D33: 3,9 -
B34: 3.10 | D34: 3.10 -
B35: Vote 4 | C35: Community and Public Safety
B36: 4.1 | C36: Cemetries and crematoriums | D36: =CONCATENATE(B36, " - ", C36) -> 4,1 - Cemetries and crematoriums | E36: 4,1 - Cemetries and crematoriums
B37: 4.2 | C37: Community halls and Facilities | D37: 4,2 - Community halls and Facilities | E37: 4,2 - Community halls and Facilities
B38: 4.3 | C38: Disaster Management | D38: 4,3 - Disaster Management | E38: 4,3 - Disaster Management
B39: 4.4 | C39: Libraries and Archives | D39: 4,4 - Libraries and Archives | E39: 4,4 - Libraries and Archives
B40: 4.5 | D40: 4,5 -
B41: 4.6 | D41: 4,6 -
B42: 4.7 | D42: 4,7 -
B43: 4.8 | D43: 4,8 -
B44: 4.9 | D44: 4,9 -
B45: 4.10 | D45: 4.10 -
B46: Vote 5 | C46: Sports and Recreation
B47: 5.1 | C47: Community parks | D47: =CONCATENATE(B47, " - ", C47) -> 5,1 - Community parks | E47: 5,1 - Community parks
B48: 5.2 | D48: 5,2 -
B49: 5.3 | D49: 5,3 -
B50: 5.4 | D50: 5,4 -
B51: 5.5 | D51: 5,5 -
B52: 5.6 | D52: 5,6 -
B53: 5.7 | D53: 5,7 -
B54: 5.8 | D54: 5,8 -
B55: 5.9 | D55: 5,9 -
B56: 5.10 | D56: 5.10 -
B57: Vote 6 | C57: Housing
B58: 6.1 | C58: Housing | D58: =CONCATENATE(B58, " - ", C58) -> 6,1 - Housing | E58: 6,1 - Housing
B59: 6.2 | D59: 6,2 -
B60: 6.3 | D60: 6,3 -
B61: 6.4 | D61: 6,4 -
B62: 6.5 | D62: 6,5 -
B63: 6.6 | D63: 6,6 -
B64: 6.7 | D64: 6,7 -
B65: 6.8 | D65: 6,8 -
B66: 6.9 | D66: 6,9 -
B67: 6.10 | D67: 6.10 -
B68: Vote 7 | C68: Planning and development
B69: 7.1 | C69: Corporate Wide Strategic Planning (IDP & LED) | D69: =CONCATENATE(B69, " - ", C69) -> 7,1 - Corporate Wide Strategic Planning (IDP & LED) | E69: 7,1 - Corporate Wide Strategic Planning (IDP & LED)
B70: 7.2 | C70: Town Planning and Building Regulations | D70: 7,2 - Town Planning and Building Regulations | E70: 7,2 - Town Planning and Building Regulations
B71: 7.3 | C71: Project Management Unit | D71: 7,3 - Project Management Unit | E71: 7,3 - Project Management Unit
B72: 7.4 | D72: 7,4 -
B73: 7.5 | D73: 7,5 -
B74: 7.6 | D74: 7,6 -
B75: 7.7 | D75: 7,7 -
B76: 7.8 | D76: 7,8 -
B77: 7.9 | D77: 7,9 -
B78: 7.10 | D78: 7.10 -
B79: Vote 8 | C79: Road Transport
B80: 8.1 | C80: Road and Traffic Regulations | D80: =CONCATENATE(B80, " - ", C80) -> 8,1 - Road and Traffic Regulations | E80: 8,1 - Road and Traffic Regulations
B81: 8.2 | C81: Roads | D81: 8,2 - Roads | E81: 8,2 - Roads
B82: 8.3 | C82: Taxi Ranks | D82: 8,3 - Taxi Ranks | E82: 8,3 - Taxi Ranks
B83: 8.4 | D83: 8,4 -
B84: 8.5 | D84: 8,5 -
B85: 8.6 | D85: 8,6 -
B86: 8.7 | D86: 8,7 -
B87: 8.8 | D87: 8,8 -
B88: 8.9 | D88: 8,9 -
B89: 8.10 | D89: 8.10 -
B90: Vote 9 | C90: Energy Sources
B91: 9.1 | C91: Electricity | D91: =CONCATENATE(B91, " - ", C91) -> 9,1 - Electricity | E91: 9,1 - Electricity
B92: 9.2 | C92: Street Lighting | D92: 9,2 - Street Lighting | E92: 9,2 - Street Lighting
B93: 9.3 | D93: 9,3 -
B94: 9.4 | D94: 9,4 -
B95: 9.5 | D95: 9,5 -
B96: 9.6 | D96: 9,6 -
B97: 9.7 | D97: 9,7 -
B98: 9.8 | D98: 9,8 -
B99: 9.9 | D99: 9,9 -
B100: 9.10 | D100: 9.10 -
B101: Vote 10 | C101: Waste Water Management
B102: 10.1 | C102: Public Toilets | D102: =CONCATENATE(B102, " - ", C102) -> 10,1 - Public Toilets | E102: 10,1 - Public Toilets
B103: 10.2 | D103: 10,2 -
B104: 10.3 | D104: 10,3 -
B105: 10.4 | D105: 10,4 -
B106: 10.5 | D106: 10,5 -
B107: 10.6 | D107: 10,6 -
B108: 10.7 | D108: 10,7 -
B109: 10.8 | D109: 10,8 -
B110: 10.9 | D110: 10,9 -
B111: 10.10 | D111: 10.10 -
B112: Vote 11 | C112: Waste Management
B113: 11.1 | C113: Solid Waste Removal | D113: =CONCATENATE(B113, " - ", C113) -> 11,1 - Solid Waste Removal | E113: 11,1 - Solid Waste Removal
B114: 11.2 | D114: 11,2 -
B115: 11.3 | D115: 11,3 -
B116: 11.4 | D116: 11,4 -
B117: 11.5 | D117: 11,5 -
B118: 11.6 | D118: 11,6 -
B119: 11.7 | D119: 11,7 -
B120: 11.8 | D120: 11,8 -
B121: 11.9 | D121: 11,9 -
B122: 11.10 | D122: 11.10 -
B123: Vote 12 | C123: [NAME OF VOTE 12]
B124: 12.1 | C124: [Name of sub-vote] | D124: =CONCATENATE(B124, " - ", C124) -> 12.1 - [Name of sub-vote] | E124: 12.1 - [Name of sub-vote]
B125: 12.2 | C125: [Name of sub-vote] | D125: 12.2 - [Name of sub-vote]
B126: 12.3 | C126: [Name of sub-vote] | D126: 12.3 - [Name of sub-vote]
B127: 12.4 | C127: [Name of sub-vote] | D127: 12.4 - [Name of sub-vote]
B128: 12.5 | C128: [Name of sub-vote] | D128: 12.5 - [Name of sub-vote]
B129: 12.6 | C129: [Name of sub-vote] | D129: 12.6 - [Name of sub-vote]
B130: 12.7 | C130: [Name of sub-vote] | D130: 12.7 - [Name of sub-vote]
B131: 12.8 | C131: [Name of sub-vote] | D131: 12.8 - [Name of sub-vote]
B132: 12.9 | C132: [Name of sub-vote] | D132: 12.9 - [Name of sub-vote]
B133: 12.10 | C133: [Name of sub-vote] | D133: 12.10 - [Name of sub-vote]
B134: Vote 13 | C134: [NAME OF VOTE 13]
B135: 13.1 | C135: [Name of sub-vote] | D135: =CONCATENATE(B135, " - ", C135) -> 13.1 - [Name of sub-vote] | E135: 13.1 - [Name of sub-vote]
B136: 13.2 | C136: [Name of sub-vote] | D136: 13.2 - [Name of sub-vote]
B137: 13.3 | C137: [Name of sub-vote] | D137: 13.3 - [Name of sub-vote]
B138: 13.4 | C138: [Name of sub-vote] | D138: 13.4 - [Name of sub-vote]
B139: 13.5 | C139: [Name of sub-vote] | D139: 13.5 - [Name of sub-vote]
B140: 13.6 | C140: [Name of sub-vote] | D140: 13.6 - [Name of sub-vote]
B141: 13.7 | C141: [Name of sub-vote] | D141: 13.7 - [Name of sub-vote]
B142: 13.8 | C142: [Name of sub-vote] | D142: 13.8 - [Name of sub-vote]
B143: 13.9 | C143: [Name of sub-vote] | D143: 13.9 - [Name of sub-vote]
B144: 13.10 | C144: [Name of sub-vote] | D144: 13.10 - [Name of sub-vote]
B145: Vote 14 | C145: [NAME OF VOTE 14]
B146: 14.1 | C146: [Name of sub-vote] | D146: =CONCATENATE(B146, " - ", C146) -> 14.1 - [Name of sub-vote] | E146: 14.1 - [Name of sub-vote]
B147: 14.2 | C147: [Name of sub-vote] | D147: 14.2 - [Name of sub-vote]
B148: 14.3 | C148: [Name of sub-vote] | D148: 14.3 - [Name of sub-vote]
B149: 14.4 | C149: [Name of sub-vote] | D149: 14.4 - [Name of sub-vote]
B150: 14.5 | C150: [Name of sub-vote] | D150: 14.5 - [Name of sub-vote]
B151: 14.6 | C151: [Name of sub-vote] | D151: 14.6 - [Name of sub-vote]
B152: 14.7 | C152: [Name of sub-vote] | D152: 14.7 - [Name of sub-vote]
B153: 14.8 | C153: [Name of sub-vote] | D153: 14.8 - [Name of sub-vote]
B154: 14.9 | C154: [Name of sub-vote] | D154: 14.9 - [Name of sub-vote]
B155: 14.10 | C155: [Name of sub-vote] | D155: 14.10 - [Name of sub-vote]
B156: Vote 15 | C156: [NAME OF VOTE 15]
B157: 15.1 | C157: [Name of sub-vote] | D157: =CONCATENATE(B157, " - ", C157) -> 15.1 - [Name of sub-vote] | E157: 15.1 - [Name of sub-vote]
B158: 15.2 | C158: [Name of sub-vote] | D158: 15.2 - [Name of sub-vote]
B159: 15.3 | C159: [Name of sub-vote] | D159: 15.3 - [Name of sub-vote]
B160: 15.4 | C160: [Name of sub-vote] | D160: 15.4 - [Name of sub-vote]
B161: 15.5 | C161: [Name of sub-vote] | D161: 15.5 - [Name of sub-vote]
B162: 15.6 | C162: [Name of sub-vote] | D162: 15.6 - [Name of sub-vote]
B163: 15.7 | C163: [Name of sub-vote] | D163: 15.7 - [Name of sub-vote]
B164: 15.8 | C164: [Name of sub-vote] | D164: 15.8 - [Name of sub-vote]
B165: 15.9 | C165: [Name of sub-vote] | D165: 15.9 - [Name of sub-vote]
B166: 15.10 | C166: [Name of sub-vote] | D166: 15.10 - [Name of sub-vote]

Sheet Contacts
A1: =muni&" - "&" Contact Information" -> LIM332 Greater Letaba - Contact Information
A3: A. GENERAL INFORMATION
A4: Municipality | B4: =muni -> LIM332 Greater Letaba | C4: Set name on 'Instructions' sheet
A6: Grade | B6: 3 | C6: 1 Grade in terms of the Remuneration of Public Office Bearers Act.
A8: Province | B8: =IF(B4>" ",VLOOKUP(B4,'Lookup and lists'!B28:C311,2, FALSE)," ") -> LIM LIMPOPO
A10: Web Address | B10: www.greaterletaba.gov.za
A12: e-mail Address
A14: B. CONTACT INFORMATION
A15: Postal address:
A16: P.O. Box | B16: 36
A17: City / Town | B17: Modjadjiskloof
A18: Postal Code | B18: 835
A20: Street address
A21: Building | B21: Civic Centre
A22: Street No. & Name | B22: 44 Botha Street
A23: City / Town | B23: Modjadjiskloof
A24: Postal Code | B24: 835
A26: General Contacts
A27: Telephone number | B27: 015 309 9246/7/8
A28: Fax number | B28: 015 309 9419
A30: C. POLITICAL LEADERSHIP
A31: Speaker: | C31: Secretary/PA to the Speaker:
A32: ID Number | B32: 6704290418087 | C32: ID Number | D32: "7305100539085
A33: Title | B33: Ms | C33: Title | D33: Ms
A34: Name | B34: Makhananisa M.D | C34: Name | D34: Mutshendze TM
A35: Telephone number | B35: 015 309 9246 | C35: Telephone number | D35: 015 309 9246
A36: Cell number | B36: 082 418 8635 | C36: Cell number | D36: 073 227 7640
A37: Fax number | B37: 015 309 9419 | C37: Fax number | D37: 015 309 9419
A38: E-mail address | B38: speaker@glm.gov.za | C38: E-mail address | D38: mollym@glm.gov.za
A40: Mayor/Executive Mayor: | C40: Secretary/PA to the Mayor/Executive Mayor:
A41: ID Number | B41: "6302025730080 | C41: ID Number | D41: "7905070311082
A42: Title | B42: Mr | C42: Title | D42: Ms
A43: Name | B43: Matlou M.P | C43: Name | D43: Maapolela D.W
A44: Telephone number | B44: 015 309 9246 | C44: Telephone number | D44: 015 309 9246
A45: Cell number | B45: 079 153 5627 | C45: Cell number | D45: 083 977 3072
A46: Fax number | B46: 015 309 9419 | C46: Fax number | D46: 015 309 9419
A47: E-mail address | B47: mayor@glm.gov.za | C47: E-mail address | D47: nkelem@glm.gov.za
A49: Deputy Mayor/Executive Mayor: | C49: Secretary/PA to the Deputy Mayor/Executive Mayor:
A50: ID Number | C50: ID Number
A51: Title | C51: Title
A52: Name | C52: Name
A53: Telephone number | C53: Telephone number
A54: Cell number | C54: Cell number
A55: Fax number | C55: Fax number
A56: E-mail address | C56: E-mail address
A58: D. MANAGEMENT LEADERSHIP
A59: Municipal Manager: | C59: Secretary/PA to the Municipal Manager:
A60: ID Number | B60: '7209095504080 | C60: ID Number | D60: 7212280485081
A61: Title | B61: Mr | C61: Title | D61: Ms
A62: Name | B62: Dr K.I Sirovha | C62: Name | D62: M.F Masipa
A63: Telephone number | B63: 015 309 9451 | C63: Telephone number | D63: 0153099246
A64: Cell number | B64: 0721239734 | C64: Cell number | D64: 0828440350
A65: Fax number | B65: 015 309 9419 | C65: Fax number | D65: 0153099419
A66: E-mail address | B66: InnocentS@glm.gov.za | C66: E-mail address | D66: secretarymm@glm.gov.za
A68: Chief Financial Officer | C68: Secretary/PA to the Chief Financial Officer
A69: ID Number | C69: ID Number | D69: 8601170703083
A70: Title | C70: Title | D70: Ms
A71: Name | B71: Mathabatha TM | C71: Name | D71: Mmaseleka MP
A72: Telephone number | B72: 015 309 9246 | C72: Telephone number | D72: 015 309 9246
A73: Cell number | C73: Cell number | D73: 078 190 6886
A74: Fax number | C74: Fax number | D74: 015 309 9419
A75: E-mail address | B75: Thembisilem@glm.gov.za | C75: E-mail address | D75: matsiem@glm.gov.za
A77: Official responsible for submitting financial information | C77: Official responsible for submitting financial information
A78: ID Number | B78: 8606306031085 | C78: ID Number | D78: "9006111065080
A79: Title | B79: Mr | C79: Title | D79: Ms
A80: Name | B80: Ramalepe S.L | C80: Name | D80: Baloyi L.T
A81: Telephone number | B81: 015 309 9246 | C81: Telephone number | D81: 015 309 9246
A82: Cell number | B82: 066 116 4741 | C82: Cell number | D82: 083 271 0762
A83: Fax number | B83: 015 309 9419 | C83: Fax number | D83: 015 309 9419
A84: E-mail address | B84: silasr@glm.gov.za | C84: E-mail address | D84: tracyb@glm.gov.za
A85: Official responsible for submitting financial information | C85: Official responsible for submitting financial information
A86: ID Number | C86: ID Number
A87: Title | B87: Mr | C87: Title
A88: Name | B88: Mamatlepa LM | C88: Name
A89: Telephone number | B89: 015 309 9246 | C89: Telephone number
A90: Cell number | B90: 076 167 8941 | C90: Cell number
A91: Fax number | B91: 015 309 9419 | C91: Fax number
A92: E-mail address | B92: lesleym@glm.gov.za | C92: E-mail address
A93: Official responsible for submitting financial information | C93: Official responsible for submitting financial information
A94: ID Number | C94: ID Number
A95: Title | C95: Title
A96: Name | C96: Name
A97: Telephone number | C97: Telephone number
A98: Cell number | C98: Cell number
A99: Fax number | C99: Fax number
A100: E-mail address | C100: E-mail address
A101: Official responsible for submitting financial information | C101: Official responsible for submitting financial information
A102: ID Number | C102: ID Number
A103: Title | C103: Title
A104: Name | C104: Name
A105: Telephone number | C105: Telephone number
A106: Cell number | C106: Cell number
A107: Fax number | C107: Fax number
A108: E-mail address | C108: E-mail address
A109: Official responsible for submitting financial information | C109: Official responsible for submitting financial information
A110: ID Number | C110: ID Number
A111: Title | C111: Title
A112: Name | C112: Name
A113: Telephone number | C113: Telephone number
A114: Cell number | C114: Cell number
A115: Fax number | C115: Fax number
A116: E-mail address | C116: E-mail address
A117: Official responsible for submitting financial information | C117: Official responsible for submitting financial information
A118: ID Number | C118: ID Number
A119: Title | C119: Title
A120: Name | C120: Name
A121: Telephone number | C121: Telephone number
A122: Cell number | C122: Cell number
A123: Fax number | C123: Fax number
A124: E-mail address | C124: E-mail address
A125: Official responsible for submitting financial information | C125: Official responsible for submitting financial information
A126: ID Number | C126: ID Number
A127: Title | C127: Title
A128: Name | C128: Name
A129: Telephone number | C129: Telephone number
A130: Cell number | C130: Cell number
A131: Fax number | C131: Fax number
A132: E-mail address | C132: E-mail address
A133: Official responsible for submitting financial information
A134: ID Number
A135: Title
A136: Name
A137: Telephone number
A138: Cell number
A139: Fax number
A140: E-mail address

Sheet C1-Sum
A1: =muni& " - "&s71sum& " - "&date -> LIM332 Greater Letaba - Table C1 Monthly Budget Statement Summary - M06 December
A2: =desc -> Description | B2: =Head1 -> 2019/20 | C2: =Head2 -> Budget Year 2020/21
B3: =Head5 -> Audited Outcome | C3: =Head6 -> Original Budget | D3: =Head7 -> Adjusted Budget | E3: =Head38 -> Monthly actual | F3: =Head39 -> YearTD actual | G3: =Head40 -> YearTD budget | H3: =Head41 -> YTD variance | I3: =Head41 -> YTD variance | J3: =Head8 -> Full Year Forecast
A4: R thousands | I4: %
A5: Financial Performance
A6: Property rates | B6: =SUM('C4-FinPerf RE'!C6:C6) -> 0 | C6: =SUM('C4-FinPerf RE'!D6:D6) -> 18538486 | D6: =SUM('C4-FinPerf RE'!E6:E6) -> 0 | E6: =SUM('C4-FinPerf RE'!F6:F6) -> 972343 | F6: =SUM('C4-FinPerf RE'!G6:G6) -> 14751243 | G6: =SUM('C4-FinPerf RE'!H6:H6) -> 9269238 | H6: =F6-G6 -> 5482005 | I6: =IF(H6=0,"",H6/G6) -> 0.5914191652 | J6: =SUM('C4-FinPerf RE'!K6:K6) -> 0
A7: Service charges | B7: =SUM('C4-FinPerf RE'!C7:C10) -> 0 | C7: =SUM('C4-FinPerf RE'!D7:D10) -> 22135759.32 | D7: =SUM('C4-FinPerf RE'!E7:E10) -> 0 | E7: =SUM('C4-FinPerf RE'!F7:F10) -> 2144814 | F7: =SUM('C4-FinPerf RE'!G7:G10) -> 11065163 | G7: =SUM('C4-FinPerf RE'!H7:H10) -> 13080342 | H7: =F7-G7 -> -2015179 | I7: =IF(H7=0,"",H7/G7) -> -0.1540616446 | J7: =SUM('C4-FinPerf RE'!K7:K10) -> 0
A8: Investment revenue | B8: ='C4-FinPerf RE'!C13 -> 0 | C8: ='C4-FinPerf RE'!D13 -> 30072 | D8: ='C4-FinPerf RE'!E13 -> 0 | E8: ='C4-FinPerf RE'!F13 -> 166777 | F8: ='C4-FinPerf RE'!G13 -> 968362 | G8: ='C4-FinPerf RE'!H13 -> 1005126 | H8: =F8-G8 -> -36764 | I8: =IF(H8=0,"",H8/G8) -> -0.03657650882 | J8: ='C4-FinPerf RE'!K13 -> 0
A9: Transfers and subsidies | B9: ='C4-FinPerf RE'!C19 -> 0 | C9: ='C4-FinPerf RE'!D19 -> 305403000 | D9: ='C4-FinPerf RE'!E19 -> 0 | E9: ='C4-FinPerf RE'!F19 -> 130109625 | F9: ='C4-FinPerf RE'!G19 -> 265028412 | G9: ='C4-FinPerf RE'!H19 -> 181315998 | H9: =F9-G9 -> 83712414 | I9: =IF(H9=0,"",H9/G9) -> 0.4616934795 | J9: ='C4-FinPerf RE'!K19 -> 0
A10: Other own revenue | B10: ='C4-FinPerf RE'!C12+'C4-FinPerf RE'!C14+'C4-FinPerf RE'!C15+'C4-FinPerf RE'!C16+'C4-FinPerf RE'!C17+'C4-FinPerf RE'!C18+'C4-FinPerf RE'!C20+'C4-FinPerf RE'!C21 -> 0 | C10: ='C4-FinPerf RE'!D12+'C4-FinPerf RE'!D14+'C4-FinPerf RE'!D15+'C4-FinPerf RE'!D16+'C4-FinPerf RE'!D17+'C4-FinPerf RE'!D18+'C4-FinPerf RE'!D20+'C4-FinPerf RE'!D21 -> 69688268.02 | D10: ='C4-FinPerf RE'!E12+'C4-FinPerf RE'!E14+'C4-FinPerf RE'!E15+'C4-FinPerf RE'!E16+'C4-FinPerf RE'!E17+'C4-FinPerf RE'!E18+'C4-FinPerf RE'!E20+'C4-FinPerf RE'!E21 -> 0 | E10: ='C4-FinPerf RE'!F12+'C4-FinPerf RE'!F14+'C4-FinPerf RE'!F15+'C4-FinPerf RE'!F16+'C4-FinPerf RE'!F17+'C4-FinPerf RE'!F18+'C4-FinPerf RE'!F20+'C4-FinPerf RE'!F21 -> 472069 | F10: ='C4-FinPerf RE'!G12+'C4-FinPerf RE'!G14+'C4-FinPerf RE'!G15+'C4-FinPerf RE'!G16+'C4-FinPerf RE'!G17+'C4-FinPerf RE'!G18+'C4-FinPerf RE'!G20+'C4-FinPerf RE'!G21 -> 11562925 | G10: ='C4-FinPerf RE'!H12+'C4-FinPerf RE'!H14+'C4-FinPerf RE'!H15+'C4-FinPerf RE'!H16+'C4-FinPerf RE'!H17+'C4-FinPerf RE'!H18+'C4-FinPerf RE'!H20+'C4-FinPerf RE'!H21 -> 35341586 | H10: =F10-G10 -> -23778661 | I10: =IF(H10=0,"",H10/G10) -> -0.6728238229 | J10: ='C4-FinPerf RE'!K12+'C4-FinPerf RE'!K14+'C4-FinPerf RE'!K15+'C4-FinPerf RE'!K16+'C4-FinPerf RE'!K17+'C4-FinPerf RE'!K18+'C4-FinPerf RE'!K20+'C4-FinPerf RE'!K21 -> 0
A11: Total Revenue (excluding capital transfers and contributions) | B11: =SUM(B6:B10) -> 0 | C11: 415795585.3 | D11: 0 | E11: 133865628 | F11: 303376105 | G11: 240012290 | H11: =F11-G11 -> 63363815 | I11: =IF(H11=0,"",H11/G11) -> 0.2640023767 | J11: 0
A12: Employee costs | B12: ='C4-FinPerf RE'!C25 -> 0 | C12: ='C4-FinPerf RE'!D25 -> 119396185 | D12: ='C4-FinPerf RE'!E25 -> 0 | E12: ='C4-FinPerf RE'!F25 -> 11416504 | F12: ='C4-FinPerf RE'!G25 -> 59441887 | G12: ='C4-FinPerf RE'!H25 -> 62285700 | H12: -2843813 | I12: -0.04565755864 | J12: ='C4-FinPerf RE'!K25 -> 0
A13: Remuneration of Councillors | B13: ='C4-FinPerf RE'!C26 -> 0 | C13: ='C4-FinPerf RE'!D26 -> 25155137 | D13: ='C4-FinPerf RE'!E26 -> 0 | E13: ='C4-FinPerf RE'!F26 -> 2713127 | F13: ='C4-FinPerf RE'!G26 -> 12945873 | G13: ='C4-FinPerf RE'!H26 -> 12577566 | H13: 368307 | I13: 0.02928285171 | J13: ='C4-FinPerf RE'!K26 -> 0
A14: Depreciation & asset impairment | B14: ='C4-FinPerf RE'!C28 -> 0 | C14: ='C4-FinPerf RE'!D28 -> 13023086 | D14: ='C4-FinPerf RE'!E28 -> 0 | E14: ='C4-FinPerf RE'!F28 -> 0 | F14: ='C4-FinPerf RE'!G28 -> 8696 | G14: ='C4-FinPerf RE'!H28 -> 6511542 | H14: -6502846 | I14: -0.9986645252 | J14: ='C4-FinPerf RE'!K28 -> 0
A15: Finance charges | B15: ='C4-FinPerf RE'!C29 -> 0 | C15: ='C4-FinPerf RE'!D29 -> 0 | D15: ='C4-FinPerf RE'!E29 -> 0 | E15: ='C4-FinPerf RE'!F29 -> 0 | F15: ='C4-FinPerf RE'!G29 -> 0 | G15: ='C4-FinPerf RE'!H29 -> 0 | H15: 0 | J15: ='C4-FinPerf RE'!K29 -> 0
A16: Materials and bulk purchases | B16: =SUM('C4-FinPerf RE'!C30:C31) -> 0 | C16: =SUM('C4-FinPerf RE'!D30:D31) -> 19389506 | D16: =SUM('C4-FinPerf RE'!E30:E31) -> 0 | E16: =SUM('C4-FinPerf RE'!F30:F31) -> 3743286 | F16: =SUM('C4-FinPerf RE'!G30:G31) -> 18873745 | G16: =SUM('C4-FinPerf RE'!H30:H31) -> 18295830 | H16: 577915 | I16: 0.0315872524 | J16: =SUM('C4-FinPerf RE'!K30:K31) -> 0
A17: Transfers and subsidies | B17: ='C4-FinPerf RE'!C33 -> 0 | C17: ='C4-FinPerf RE'!D33 -> 0 | D17: ='C4-FinPerf RE'!E33 -> 0 | E17: ='C4-FinPerf RE'!F33 -> 0 | F17: ='C4-FinPerf RE'!G33 -> 0 | G17: ='C4-FinPerf RE'!H33 -> 0 | H17: 0 | J17: ='C4-FinPerf RE'!K33 -> 0
A18: Other expenditure | B18: ='C4-FinPerf RE'!C36-SUM('C1-Sum'!B12:B17) -> 0 | C18: ='C4-FinPerf RE'!D36-SUM('C1-Sum'!C12:C17) -> 183388672 | D18: ='C4-FinPerf RE'!E36-SUM('C1-Sum'!D12:D17) -> 0 | E18: ='C4-FinPerf RE'!F36-SUM('C1-Sum'!E12:E17) -> 6757573 | F18: ='C4-FinPerf RE'!G36-SUM('C1-Sum'!F12:F17) -> 40965735 | G18: ='C4-FinPerf RE'!H36-SUM('C1-Sum'!G12:G17) -> 80505702 | H18: -39539967 | I18: -0.4911449254 | J18: ='C4-FinPerf RE'!K36-SUM('C1-Sum'!J12:J17) -> 0
A19: Total Expenditure | B19: =SUM(B12:B18) -> 0 | C19: 360352586 | D19: 0 | E19: 24630490 | F19: 132235936 | G19: 180176340 | H19: -47940404 | I19: -0.2660749131 | J19: =SUM(J12:J18) -> 0
A20: Surplus/(Deficit) | B20: =B11-B19 -> 0 | C20: 55442999.34 | D20: 0 | E20: 109235138 | F20: 171140169 | G20: 59835950 | H20: 111304219 | I20: 1.860156294 | J20: =J11-J19 -> 0
A21: ='C4-FinPerf RE'!A39 -> Transfers and subsidies - capital (monetary allocations) (National / Provincial and District) | B21: ='C4-FinPerf RE'!C39 -> 0 | C21: ='C4-FinPerf RE'!D39 -> 57229000 | D21: ='C4-FinPerf RE'!E39 -> 0 | E21: ='C4-FinPerf RE'!F39 -> 0 | F21: ='C4-FinPerf RE'!G39 -> 53090000 | G21: ='C4-FinPerf RE'!H39 -> 0 | H21: 53090000 | J21: ='C4-FinPerf RE'!K39 -> 0
A22: ='C4-FinPerf RE'!A40&" & "&'C4-FinPerf RE'!A41 -> Transfers and subsidies - capital (monetary allocations) (National / Provincial Departmental Agencies, Households, Non-profit Institutions, Private Enterprises, Public Corporatons, Higher Educational Institutions) & Transfers and subsidies - capital (in-kind - all) | B22: =SUM('C4-FinPerf RE'!C40:C41) -> 0 | C22: =SUM('C4-FinPerf RE'!D40:D41) -> 7000000 | D22: =SUM('C4-FinPerf RE'!E40:E41) -> 0 | E22: =SUM('C4-FinPerf RE'!F40:F41) -> 0 | F22: =SUM('C4-FinPerf RE'!G40:G41) -> 3000000 | G22: =SUM('C4-FinPerf RE'!H40:H41) -> 0 | H22: 3000000 | J22: =SUM('C4-FinPerf RE'!K40:K41) -> 0
A23: Surplus/(Deficit) after capital transfers & contributions | B23: =B20+B21+B22 -> 0 | C23: 119671999.3 | D23: 0 | E23: 109235138 | F23: 227230169 | G23: 59835950 | H23: 167394219 | I23: 2.797552625 | J23: =J20+J21+J22 -> 0
A24: Share of surplus/ (deficit) of associate | B24: ='C4-FinPerf RE'!C47 -> 0 | C24: ='C4-FinPerf RE'!D47 -> 0 | D24: ='C4-FinPerf RE'!E47 -> 0 | E24: ='C4-FinPerf RE'!F47 -> 0 | F24: ='C4-FinPerf RE'!G47 -> 0 | G24: ='C4-FinPerf RE'!H47 -> 0 | H24: 0 | J24: ='C4-FinPerf RE'!K47 -> 0
A25: Surplus/ (Deficit) for the year | B25: =B23+B24 -> 0 | C25: 119671999.3 | D25: 0 | E25: 109235138 | F25: 227230169 | G25: 59835950 | H25: 167394219 | I25: 2.797552625 | J25: =J23+J24 -> 0
A27: Capital expenditure & funds sources
A28: Capital expenditure | B28: ='C5-Capex'!C40 -> 0 | C28: ='C5-Capex'!D40 -> 119672002 | D28: ='C5-Capex'!E40 -> 0 | E28: ='C5-Capex'!F40 -> 12042037 | F28: ='C5-Capex'!G40 -> 58370907 | G28: ='C5-Capex'!H40 -> 59636014 | H28: =F28-G28 -> -1265107 | I28: =IF(H28=0,"",H28/G28) -> -0.02121380882 | J28: ='C5-Capex'!K40 -> 0
A29: Capital transfers recognised | B29: ='C5-Capex'!C70 -> 0 | C29: ='C5-Capex'!D70 -> 64229000 | D29: ='C5-Capex'!E70 -> 0 | E29: ='C5-Capex'!F70 -> 7485596 | F29: ='C5-Capex'!G70 -> 28830458.88 | G29: ='C5-Capex'!H70 -> 32445211 | H29: -3614752.12 | I29: -0.1114109605 | J29: ='C5-Capex'!K70 -> 0
A31: Borrowing | B31: ='C5-Capex'!C72 -> 0 | C31: ='C5-Capex'!D72 -> 0 | D31: ='C5-Capex'!E72 -> 0 | E31: ='C5-Capex'!F72 -> 0 | F31: ='C5-Capex'!G72 -> 0 | G31: ='C5-Capex'!H72 -> 0 | H31: 0 | J31: ='C5-Capex'!K72 -> 0
A32: Internally generated funds | B32: ='C5-Capex'!C73 -> 0 | C32: ='C5-Capex'!D73 -> 55443000 | D32: ='C5-Capex'!E73 -> 0 | E32: ='C5-Capex'!F73 -> 4556441 | F32: ='C5-Capex'!G73 -> 29540449 | G32: ='C5-Capex'!H73 -> 27190803 | H32: 2349646 | I32: 0.0864132626 | J32: ='C5-Capex'!K73 -> 0
A33: Total sources of capital funds | B33: =+B29+B31+B32 -> 0 | C33: 119672000 | D33: 0 | E33: 12042037 | F33: 58370907.88 | G33: 59636014 | H33: -1265106.12 | I33: -0.02121379407 | J33: =+J29+J31+J32 -> 0
A35: Financial position
A36: Total current assets | B36: ='C6-FinPos'!C13 -> 0 | C36: ='C6-FinPos'!D13 -> 110435006.6 | D36: ='C6-FinPos'!E13 -> 0 | F36: ='C6-FinPos'!F13 -> 267600826 | J36: ='C6-FinPos'!G13 -> 0
A37: Total non current assets | B37: ='C6-FinPos'!C25 -> 0 | C37: ='C6-FinPos'!D25 -> 998892484 | D37: ='C6-FinPos'!E25 -> 0 | F37: ='C6-FinPos'!F25 -> 1021521026 | J37: ='C6-FinPos'!G25 -> 0
A38: Total current liabilities | B38: ='C6-FinPos'!C35 -> 0 | C38: ='C6-FinPos'!D35 -> 32192696 | D38: ='C6-FinPos'!E35 -> 0 | F38: ='C6-FinPos'!F35 -> 79993513 | J38: ='C6-FinPos'!G35 -> 0
A39: Total non current liabilities | B39: ='C6-FinPos'!C40 -> 0 | C39: ='C6-FinPos'!D40 -> 13965000 | D39: ='C6-FinPos'!E40 -> 0 | F39: ='C6-FinPos'!F40 -> 13470112 | J39: ='C6-FinPos'!G40 -> 0
A40: Community wealth/Equity | B40: ='C6-FinPos'!C48 -> 0 | C40: ='C6-FinPos'!D48 -> 1063169795 | D40: ='C6-FinPos'!E48 -> 0 | F40: ='C6-FinPos'!F48 -> 1195658227 | J40: ='C6-FinPos'!G48 -> 0
A42: Cash flows
A43: Net cash from (used) operating | B43: ='C7-CFlow'!C18 -> 0 | C43: ='C7-CFlow'!D18 -> 118414404.6 | D43: ='C7-CFlow'!E18 -> 0 | E43: ='C7-CFlow'!F18 -> 158140676 | F43: ='C7-CFlow'!G18 -> 238641347 | G43: ='C7-CFlow'!H18 -> 0 | H43: =G43-F43 -> -238641347 | I43: =IF(H43=0,"",H43/G43) ->  | J43: ='C7-CFlow'!K18 -> 0
A44: Net cash from (used) investing | B44: ='C7-CFlow'!C28 -> 0 | C44: ='C7-CFlow'!D28 -> -111555996 | D44: ='C7-CFlow'!E28 -> 0 | E44: ='C7-CFlow'!F28 -> -12042037 | F44: ='C7-CFlow'!G28 -> -58370907 | G44: ='C7-CFlow'!H28 -> 0 | H44: =G44-F44 -> 58370907 | I44: =IF(H44=0,"",H44/G44) ->  | J44: ='C7-CFlow'!K28 -> 0
A45: Net cash from (used) financing | B45: ='C7-CFlow'!C37 -> 0 | C45: ='C7-CFlow'!D37 -> 0 | D45: ='C7-CFlow'!E37 -> 0 | E45: ='C7-CFlow'!F37 -> 0 | F45: ='C7-CFlow'!G37 -> 0 | G45: ='C7-CFlow'!H37 -> 0 | H45: =G45-F45 -> 0 | I45: =IF(H45=0,"",H45/G45) ->  | J45: ='C7-CFlow'!K37 -> 0
A46: Cash/cash equivalents at the month/year end | B46: ='C7-CFlow'!C41 -> 0 | C46: ='C7-CFlow'!D41 -> 8814408.614 | D46: ='C7-CFlow'!E41 -> 0 | E46: ='C7-CFlow'!F41 -> 0 | F46: ='C7-CFlow'!G41 -> 184956545 | G46: ='C7-CFlow'!H41 -> 1956000 | H46: =G46-F46 -> -183000545 | I46: =IF(H46=0,"",H46/G46) -> -93.55856084 | J46: ='C7-CFlow'!K41 -> 4686105
A48: Debtors & creditors analysis | B48: ='SC3'!C3 -> 0-30 Days | C48: ='SC3'!D3 -> 31-60 Days | D48: ='SC3'!E3 -> 61-90 Days | E48: ='SC3'!F3 -> 91-120 Days | F48: ='SC3'!G3 -> 121-150 Dys | G48: ='SC3'!H3 -> 151-180 Dys | H48: ='SC3'!I3 -> 181 Dys-1 Yr | I48: ='SC3'!J3 -> Over 1Yr | J48: Total
A49: =LEFT('SC3'!A4,20) -> Debtors Age Analysis
A50: ='SC3'!A14 -> Total By Income Source | B50: ='SC3'!C14 -> 4167907 | C50: ='SC3'!D14 -> 4638588 | D50: ='SC3'!E14 -> 2149030 | E50: ='SC3'!F14 -> 2123749 | F50: ='SC3'!G14 -> 1386963 | G50: ='SC3'!H14 -> 178998012 | H50: ='SC3'!I14 -> 0 | I50: ='SC3'!J14 -> 0 | J50: ='SC3'!K14 -> 193464249
A51: =LEFT('SC4'!A5,22) -> Creditors Age Analysis
A52: Total Creditors | B52: ='SC4'!C15 -> 4527983 | C52: ='SC4'!D15 -> 0 | D52: ='SC4'!E15 -> 0 | E52: ='SC4'!F15 -> 0 | F52: ='SC4'!G15 -> 0 | G52: ='SC4'!H15 -> 0 | H52: ='SC4'!I15 -> 0 | I52: ='SC4'!J15 -> 0 | J52: ='SC4'!K15 -> 4527983

Sheet C2-FinPerf SC
A1: =muni& " - "&S71A& " - "&date -> LIM332 Greater Letaba - Table C2 Monthly Budget Statement - Financial Performance (functional classification) - M06 December
A2: =desc -> Description | B2: =head27 -> Ref | C2: =Head1 -> 2019/20 | D2: =Head2 -> Budget Year 2020/21
C3: =Head5 -> Audited Outcome | D3: =Head6 -> Original Budget | E3: =Head7 -> Adjusted Budget | F3: =Head38 -> Monthly actual | G3: =Head39 -> YearTD actual | H3: =Head40 -> YearTD budget | I3: =Head41 -> YTD variance | J3: =Head41 -> YTD variance | K3: =Head8 -> Full Year Forecast
A4: R thousands | B4: 1 | J4: %
A5: Revenue - Functional
A6: Governance and administration | C6: =SUM(C7:C9) -> 0 | D6: 424295643 | E6: 0 | F6: 131642587 | G6: 339799865 | H6: 212147820 | I6: =G6-H6 -> 127652045 | J6: =IF(I6=0,"",I6/H6) -> 0.601712735 | K6: =SUM(K7:K9) -> 0
A7: Executive and council | C7: ='C2C'!C7 -> 0 | D7: ='C2C'!D7 -> 0 | E7: ='C2C'!E7 -> 0 | F7: ='C2C'!F7 -> 0 | G7: ='C2C'!G7 -> 0 | H7: ='C2C'!H7 -> 0 | I7: 0 | J7: =IF(I7=0,"",I7/H7) ->  | K7: ='C2C'!K7 -> 0
A8: Finance and administration | C8: ='C2C'!C10 -> 0 | D8: ='C2C'!D10 -> 424295643 | E8: ='C2C'!E10 -> 0 | F8: ='C2C'!F10 -> 131642587 | G8: ='C2C'!G10 -> 339799865 | H8: ='C2C'!H10 -> 212147820 | I8: 127652045 | J8: 0.601712735 | K8: ='C2C'!K10 -> 0
A9: Internal audit | C9: ='C2C'!C24 -> 0 | D9: ='C2C'!D24 -> 0 | E9: ='C2C'!E24 -> 0 | F9: ='C2C'!F24 -> 0 | G9: ='C2C'!G24 -> 0 | H9: ='C2C'!H24 -> 0 | I9: 0 | K9: ='C2C'!K24 -> 0
A10: Community and public safety | C10: =SUM(C11:C15) -> 0 | D10: 0 | E10: 0 | F10: 0 | G10: 0 | H10: 0 | I10: 0 | K10: =SUM(K11:K15) -> 0
A11: Community and social services | C11: ='C2C'!C27 -> 0 | D11: ='C2C'!D27 -> 0 | E11: ='C2C'!E27 -> 0 | F11: ='C2C'!F27 -> 0 | G11: ='C2C'!G27 -> 0 | H11: ='C2C'!H27 -> 0 | I11: 0 | K11: ='C2C'!K27 -> 0
A12: Sport and recreation | C12: ='C2C'!C49 -> 0 | D12: ='C2C'!D49 -> 0 | E12: ='C2C'!E49 -> 0 | F12: ='C2C'!F49 -> 0 | G12: ='C2C'!G49 -> 0 | H12: ='C2C'!H49 -> 0 | I12: 0 | K12: ='C2C'!K49 -> 0
A13: Public safety | C13: ='C2C'!C55 -> 0 | D13: ='C2C'!D55 -> 0 | E13: ='C2C'!E55 -> 0 | F13: ='C2C'!F55 -> 0 | G13: ='C2C'!G55 -> 0 | H13: ='C2C'!H55 -> 0 | I13: 0 | K13: ='C2C'!K55 -> 0
A14: Housing | C14: ='C2C'!C64 -> 0 | D14: ='C2C'!D64 -> 0 | E14: ='C2C'!E64 -> 0 | F14: ='C2C'!F64 -> 0 | G14: ='C2C'!G64 -> 0 | H14: ='C2C'!H64 -> 0 | I14: =G14-H14 -> 0 | J14: =IF(I14=0,"",I14/H14) ->  | K14: ='C2C'!K64 -> 0
A15: Health | C15: ='C2C'!C67 -> 0 | D15: ='C2C'!D67 -> 0 | E15: ='C2C'!E67 -> 0 | F15: ='C2C'!F67 -> 0 | G15: ='C2C'!G67 -> 0 | H15: ='C2C'!H67 -> 0 | I15: 0 | K15: ='C2C'!K67 -> 0
A16: Economic and environmental services | C16: =SUM(C17:C19) -> 0 | D16: 18568265 | E16: 0 | F16: 0 | G16: 8444628 | H16: 9284130 | I16: -839502 | J16: -0.0904233353 | K16: =SUM(K17:K19) -> 0
A17: Planning and development | C17: ='C2C'!C76 -> 0 | D17: ='C2C'!D76 -> 0 | E17: ='C2C'!E76 -> 0 | F17: ='C2C'!F76 -> 0 | G17: ='C2C'!G76 -> 0 | H17: ='C2C'!H76 -> 0 | I17: 0 | K17: ='C2C'!K76 -> 0
A18: Road transport | C18: ='C2C'!C87 -> 0 | D18: ='C2C'!D87 -> 18568265 | E18: ='C2C'!E87 -> 0 | F18: ='C2C'!F87 -> 0 | G18: ='C2C'!G87 -> 8444628 | H18: ='C2C'!H87 -> 9284130 | I18: -839502 | J18: -0.0904233353 | K18: ='C2C'!K87 -> 0
A19: Environmental protection | C19: ='C2C'!C92 -> 0 | D19: ='C2C'!D92 -> 0 | E19: ='C2C'!E92 -> 0 | F19: ='C2C'!F92 -> 0 | G19: ='C2C'!G92 -> 0 | H19: ='C2C'!H92 -> 0 | I19: 0 | K19: ='C2C'!K92 -> 0
A20: Trading services | C20: =SUM(C21:C24) -> 0 | D20: =SUM(D21:D24) -> 37160677.34 | E20: 0 | F20: 2223041 | G20: 11221612 | H20: 18580338 | I20: -7358726 | J20: -0.3960490923 | K20: =SUM(K21:K24) -> 0
A21: Energy sources | C21: ='C2C'!C100 -> 0 | D21: ='C2C'!D100 -> 30188381.34 | E21: ='C2C'!E100 -> 0 | F21: ='C2C'!F100 -> 1804769 | G21: ='C2C'!G100 -> 9085330 | H21: ='C2C'!H100 -> 15094188 | I21: =G21-H21 -> -6008858 | J21: -0.3980908413 | K21: ='C2C'!K100 -> 0
A22: Water management | C22: ='C2C'!C104 -> 0 | D22: ='C2C'!D104 -> 0 | E22: ='C2C'!E104 -> 0 | F22: ='C2C'!F104 -> 0 | G22: ='C2C'!G104 -> 0 | H22: ='C2C'!H104 -> 0 | I22: =G22-H22 -> 0 | K22: ='C2C'!K104 -> 0
A23: Waste water management | C23: ='C2C'!C108 -> 0 | D23: ='C2C'!D108 -> 0 | E23: ='C2C'!E108 -> 0 | F23: ='C2C'!F108 -> 0 | G23: ='C2C'!G108 -> 0 | H23: ='C2C'!H108 -> 0 | I23: =G23-H23 -> 0 | K23: ='C2C'!K108 -> 0
A24: Waste management | C24: ='C2C'!C113 -> 0 | D24: ='C2C'!D113 -> 6972296 | E24: ='C2C'!E113 -> 0 | F24: ='C2C'!F113 -> 418272 | G24: ='C2C'!G113 -> 2136282 | H24: ='C2C'!H113 -> 3486150 | I24: =G24-H24 -> -1349868 | J24: -0.387208812 | K24: ='C2C'!K113 -> 0
A25: Other | B25: 4 | C25: ='C2C'!C118 -> 0 | D25: ='C2C'!D118 -> 0 | E25: ='C2C'!E118 -> 0 | F25: ='C2C'!F118 -> 0 | G25: ='C2C'!G118 -> 0 | H25: ='C2C'!H118 -> 0 | I25: =G25-H25 -> 0 | K25: ='C2C'!K118 -> 0
A26: Total Revenue - Functional | B26: 2 | C26: =C6+C10+C16+C20+C25 -> 0 | D26: =D6+D10+D16+D20+D25 -> 480024585.3 | E26: 0 | F26: 133865628 | G26: 359466105 | H26: 240012288 | I26: 119453817 | J26: 0.4976987553 | K26: =K6+K10+K16+K20+K25 -> 0
A28: Expenditure - Functional
A29: Governance and administration | C29: =SUM(C30:C32) -> 0 | D29: 207003732 | E29: 0 | F29: 13423179 | G29: 73486980 | H29: 103501914 | I29: =G29-H29 -> -30014934 | J29: =IF(I29=0,"",I29/H29) -> -0.2899939995 | K29: =SUM(K30:K32) -> 0
A30: Executive and council | C30: ='C2C'!C129 -> 0 | D30: ='C2C'!D129 -> 62817204 | E30: ='C2C'!E129 -> 0 | F30: ='C2C'!F129 -> 3493771 | G30: ='C2C'!G129 -> 21919592 | H30: ='C2C'!H129 -> 31408608 | I30: -9489016 | J30: =IF(I30=0,"",I30/H30) -> -0.3021151399 | K30: ='C2C'!K129 -> 0
A31: Finance and administration | C31: ='C2C'!C132 -> 0 | D31: ='C2C'!D132 -> 141413689 | E31: ='C2C'!E132 -> 0 | F31: ='C2C'!F132 -> 9777474 | G31: ='C2C'!G132 -> 50761614 | H31: ='C2C'!H132 -> 70706880 | I31: -19945266 | J31: -0.2820838085 | K31: ='C2C'!K132 -> 0
A32: Internal audit | C32: ='C2C'!C146 -> 0 | D32: ='C2C'!D146 -> 2772839 | E32: ='C2C'!E146 -> 0 | F32: ='C2C'!F146 -> 151934 | G32: ='C2C'!G146 -> 805774 | H32: ='C2C'!H146 -> 1386426 | I32: -580652 | J32: -0.4188121111 | K32: ='C2C'!K146 -> 0
A33: Community and public safety | C33: =SUM(C34:C38) -> 0 | D33: 26362251 | E33: 0 | F33: 2499978 | G33: 10665220 | H33: 13181112 | I33: -2515892 | J33: -0.1908709978 | K33: =SUM(K34:K38) -> 0
A34: Community and social services | C34: ='C2C'!C149 -> 0 | D34: ='C2C'!D149 -> 10254486 | E34: ='C2C'!E149 -> 0 | F34: ='C2C'!F149 -> 1130621 | G34: ='C2C'!G149 -> 3879491 | H34: ='C2C'!H149 -> 5127234 | I34: -1247743 | J34: -0.2433559693 | K34: ='C2C'!K149 -> 0
A35: Sport and recreation | C35: ='C2C'!C171 -> 0 | D35: ='C2C'!D171 -> 15203620 | E35: ='C2C'!E171 -> 0 | F35: ='C2C'!F171 -> 1264923 | G35: ='C2C'!G171 -> 6354158 | H35: ='C2C'!H171 -> 7601808 | I35: -1247650 | J35: -0.1641254291 | K35: ='C2C'!K171 -> 0
A36: Public safety | C36: ='C2C'!C177 -> 0 | D36: ='C2C'!D177 -> 0 | E36: ='C2C'!E177 -> 0 | F36: ='C2C'!F177 -> 0 | G36: ='C2C'!G177 -> 0 | H36: ='C2C'!H177 -> 0 | I36: 0 | K36: ='C2C'!K177 -> 0
A37: Housing | C37: ='C2C'!C186 -> 0 | D37: ='C2C'!D186 -> 904145 | E37: ='C2C'!E186 -> 0 | F37: ='C2C'!F186 -> 104434 | G37: ='C2C'!G186 -> 431571 | H37: ='C2C'!H186 -> 452070 | I37: -20499 | J37: -0.04534474749 | K37: ='C2C'!K186 -> 0
A38: Health | C38: ='C2C'!C189 -> 0 | D38: ='C2C'!D189 -> 0 | E38: ='C2C'!E189 -> 0 | F38: ='C2C'!F189 -> 0 | G38: ='C2C'!G189 -> 0 | H38: ='C2C'!H189 -> 0 | I38: 0 | K38: ='C2C'!K189 -> 0
A39: Economic and environmental services | C39: =SUM(C40:C42) -> 0 | D39: 75251047 | E39: 0 | F39: 6793223 | G39: 33105137 | H39: 37625538 | I39: -4520401 | J39: -0.1201418303 | K39: =SUM(K40:K42) -> 0
A40: Planning and development | C40: ='C2C'!C198 -> 0 | D40: ='C2C'!D198 -> 24977647 | E40: ='C2C'!E198 -> 0 | F40: ='C2C'!F198 -> 1869219 | G40: ='C2C'!G198 -> 7966241 | H40: ='C2C'!H198 -> 12488820 | I40: -4522579 | J40: -0.3621302093 | K40: ='C2C'!K198 -> 0
A41: Road transport | C41: ='C2C'!C209 -> 0 | D41: ='C2C'!D209 -> 50273400 | E41: ='C2C'!E209 -> 0 | F41: ='C2C'!F209 -> 4924004 | G41: ='C2C'!G209 -> 25138896 | H41: ='C2C'!H209 -> 25136718 | I41: 2178 | J41: 8.664615643e-05 | K41: ='C2C'!K209 -> 0
A42: Environmental protection | C42: ='C2C'!C214 -> 0 | D42: ='C2C'!D214 -> 0 | E42: ='C2C'!E214 -> 0 | F42: ='C2C'!F214 -> 0 | G42: ='C2C'!G214 -> 0 | H42: ='C2C'!H214 -> 0 | I42: 0 | K42: ='C2C'!K214 -> 0
A43: Trading services | C43: =SUM(C44:C47) -> 0 | D43: =SUM(D44:D47) -> 51735556 | E43: 0 | F43: 1914110 | G43: 14978599 | H43: 25867776 | I43: -10889177 | J43: -0.4209552843 | K43: =SUM(K44:K47) -> 0
A44: Energy sources | C44: ='C2C'!C222 -> 0 | D44: ='C2C'!D222 -> 42764245 | E44: ='C2C'!E222 -> 0 | F44: ='C2C'!F222 -> 1655699 | G44: ='C2C'!G222 -> 12862558 | H44: ='C2C'!H222 -> 21382128 | I44: -8519570 | J44: -0.3984435038 | K44: ='C2C'!K222 -> 0
A45: Water management | C45: ='C2C'!C226 -> 0 | D45: ='C2C'!D226 -> 0 | E45: ='C2C'!E226 -> 0 | F45: ='C2C'!F226 -> 0 | G45: ='C2C'!G226 -> 0 | H45: ='C2C'!H226 -> 0 | I45: 0 | K45: ='C2C'!K226 -> 0
A46: Waste water management | C46: ='C2C'!C230 -> 0 | D46: ='C2C'!D230 -> 1047846 | E46: ='C2C'!E230 -> 0 | F46: ='C2C'!F230 -> 56672 | G46: ='C2C'!G230 -> 311707 | H46: ='C2C'!H230 -> 523926 | I46: -212219 | J46: -0.4050552941 | K46: ='C2C'!K230 -> 0
A47: Waste management | C47: ='C2C'!C235 -> 0 | D47: ='C2C'!D235 -> 7923465 | E47: ='C2C'!E235 -> 0 | F47: ='C2C'!F235 -> 201739 | G47: ='C2C'!G235 -> 1804334 | H47: ='C2C'!H235 -> 3961722 | I47: -2157388 | J47: -0.5445581492 | K47: ='C2C'!K235 -> 0
A48: Other | C48: ='C2C'!C240 -> 0 | D48: ='C2C'!D240 -> 0 | E48: ='C2C'!E240 -> 0 | F48: ='C2C'!F240 -> 0 | G48: ='C2C'!G240 -> 0 | H48: ='C2C'!H240 -> 0 | I48: 0 | K48: ='C2C'!K240 -> 0
A49: Total Expenditure - Functional | B49: 3 | C49: =C29+C33+C39+C43+C48 -> 0 | D49: =D29+D33+D39+D43+D48 -> 360352586 | E49: 0 | F49: 24630490 | G49: 132235936 | H49: 180176340 | I49: -47940404 | J49: -0.2660749131 | K49: =K29+K33+K39+K43+K48 -> 0
A50: Surplus/ (Deficit) for the year | C50: =C26-C49 -> 0 | D50: 119671999.3 | E50: 0 | F50: 109235138 | G50: 227230169 | H50: 59835948 | I50: =I26-I49 -> 167394221 | J50: =IF(I50=0,"",I50/H50) -> 2.797552752 | K50: =K26-K49 -> 0
A51: =head27a -> References
A52: 1. Government Finance Statistics Functions and Sub-functions are standardised to assist the compilation of national and international accounts for comparison purposes
A53: 2. Total Revenue by functional classification must reconcile to Total Operating Revenue shown in the Financial Performance Statement
A54: 3. Total Expenditure by functional classification must reconcile to total operating expenditure shown in 'Financial Performance Statement'
A55: 4. All amounts must be classified under a functional classification (modified GFS). The GFS function 'Other' is only for Abbatoirs, Air Transport, Licensing and Regulation, Markets and Tourism - and if used must be supported by footnotes. Nothing else may be placed under 'Other'. Assign associate share to relevant classification

Sheet C2C
A1: =muni& " - "&S71A& " - "&date -> LIM332 Greater Letaba - Table C2 Monthly Budget Statement - Financial Performance (functional classification) - M06 December
A2: =desc -> Description | B2: =head27 -> Ref | C2: =Head1 -> 2019/20 | D2: =Head2 -> Budget Year 2020/21
C3: =Head5 -> Audited Outcome | D3: =Head6 -> Original Budget | E3: =Head7 -> Adjusted Budget | F3: =Head38 -> Monthly actual | G3: =Head39 -> YearTD actual | H3: =Head40 -> YearTD budget | I3: =Head41 -> YTD variance | J3: =Head41 -> YTD variance | K3: =Head8 -> Full Year Forecast
A4: R thousands | B4: 1 | J4: %
A5: Revenue - Functional
A6: Municipal governance and administration | C6: =C7+C10+C24 -> 0 | D6: 424295643 | E6: 0 | F6: 131642587 | G6: 339799865 | H6: 212147820 | I6: =G6-H6 -> 127652045 | J6: =IF(I6=0,"",I6/H6) -> 0.601712735 | K6: =K7+K10+K24 -> 0
A7: Executive and council | C7: =SUM(C8:C9) -> 0 | D7: =SUM(D8:D9) -> 0 | E7: 0 | F7: 0 | G7: 0 | H7: 0 | I7: =G7-H7 -> 0 | J7: =IF(I7=0,"",I7/H7) ->  | K7: 0
A8: Mayor and Council | I8: 0
A9: Municipal Manager, Town Secretary and Chief Executive | I9: 0
A10: Finance and administration | C10: =SUM(C11:C23) -> 0 | D10: 424295643 | E10: 0 | F10: 131642587 | G10: 339799865 | H10: 212147820 | I10: =G10-H10 -> 127652045 | J10: =IF(I10=0,"",I10/H10) -> 0.601712735 | K10: =SUM(K11:K23) -> 0
A11: Administrative and Corporate Support | I11: 0
A12: Asset Management | I12: 0
A13: Finance | D13: 424295643 | F13: =131642998-411 -> 131642587 | G13: =283710160+56089705 -> 339799865 | H13: 212147820 | I13: 127652045 | J13: 0.601712735
A14: Fleet Management | I14: 0
A15: Human Resources | I15: 0
A16: Information Technology | I16: =G16-H16 -> 0 | J16: =IF(I16=0,"",I16/H16) -> 
A17: Legal Services | I17: 0
A18: Marketing, Customer Relations, Publicity and Media Co-ordination | I18: 0
A19: Property Services | I19: 0
A20: Risk Management | I20: 0
A21: Security Services | I21: 0
A22: Supply Chain Management | I22: 0
A23: Valuation Service | I23: 0
A24: Internal audit | C24: =SUM(C25:C25) -> 0 | D24: 0 | E24: 0 | F24: 0 | G24: 0 | H24: 0 | I24: 0 | K24: =SUM(K25:K25) -> 0
A25: Governance Function | I25: 0
A26: Community and public safety | C26: =C27+C49+C55+C64+C67 -> 0 | D26: =D27+D49+D55+D64+D67 -> 0 | E26: 0 | F26: 0 | G26: 0 | H26: 0 | I26: 0 | K26: 0
A27: Community and social services | C27: =SUM(C28:C48) -> 0 | D27: 0 | E27: 0 | F27: 0 | G27: 0 | H27: 0 | I27: 0 | K27: =SUM(K28:K48) -> 0
A28: Aged Care | I28: =G28-H28 -> 0 | J28: =IF(I28=0,"",I28/H28) -> 
A29: Agricultural | I29: 0
A30: Animal Care and Diseases | I30: 0
A31: Cemeteries, Funeral Parlours and Crematoriums | I31: 0
A32: Child Care Facilities | I32: 0
A33: Community Halls and Facilities | I33: 0
A34: Consumer Protection | I34: 0
A35: Cultural Matters | I35: =G35-H35 -> 0 | J35: =IF(I35=0,"",I35/H35) -> 
A36: Disaster Management | I36: 0
A37: Education | I37: 0
A38: Indigenous and Customary Law | I38: 0
A39: Industrial Promotion | I39: 0
A40: Language Policy | I40: 0
A41: Libraries and Archives | I41: 0
A42: Literacy Programmes | I42: 0
A43: Media Services | I43: 0
A44: Museums and Art Galleries | I44: 0
A45: Population Development | I45: 0
A46: Provincial Cultural Matters | I46: 0
A47: Theatres | I47: 0
A48: Zoo's | I48: 0
A49: Sport and recreation | C49: =SUM(C50:C54) -> 0 | D49: =SUM(D50:D54) -> 0 | E49: 0 | F49: 0 | G49: 0 | H49: 0 | I49: =G49-H49 -> 0 | J49: =IF(I49=0,"",I49/H49) ->  | K49: 0
A50: Beaches and Jetties | I50: 0
A51: Casinos, Racing, Gambling, Wagering | I51: 0
A52: Community Parks (including Nurseries) | I52: 0
A53: Recreational Facilities | I53: 0
A54: Sports Grounds and Stadiums | I54: 0
A55: Public safety | C55: =SUM(C56:C63) -> 0 | D55: =SUM(D56:D63) -> 0 | E55: 0 | F55: 0 | G55: 0 | H55: 0 | I55: 0 | K55: 0
A56: Civil Defence | I56: 0
A57: Cleansing | I57: 0
A58: Control of Public Nuisances | I58: =G58-H58 -> 0 | J58: =IF(I58=0,"",I58/H58) -> 
A59: Fencing and Fences | I59: 0
A60: Fire Fighting and Protection | I60: 0
A61: Licensing and Control of Animals | I61: =G61-H61 -> 0 | J61: =IF(I61=0,"",I61/H61) -> 
A62: Police Forces, Traffic and Street Parking Control | I62: =G62-H62 -> 0 | J62: =IF(I62=0,"",I62/H62) -> 
A63: Pounds | I63: 0
A64: Housing | C64: =SUM(C65:C66) -> 0 | D64: 0 | E64: 0 | F64: 0 | G64: 0 | H64: 0 | I64: =G64-H64 -> 0 | J64: =IF(I64=0,"",I64/H64) ->  | K64: =SUM(K65:K66) -> 0
A65: Housing | I65: =G65-H65 -> 0 | J65: =IF(I65=0,"",I65/H65) -> 
A66: Informal Settlements | I66: =G66-H66 -> 0 | J66: =IF(I66=0,"",I66/H66) -> 
A67: Health | C67: =SUM(C68:C74) -> 0 | D67: 0 | E67: 0 | F67: 0 | G67: 0 | H67: 0 | I67: 0 | K67: =SUM(K68:K74) -> 0
A68: Ambulance | I68: 0
A69: Health Services | I69: 0
A70: Laboratory Services | I70: =G70-H70 -> 0 | J70: =IF(I70=0,"",I70/H70) -> 
A71: Food Control | I71: =G71-H71 -> 0 | J71: =IF(I71=0,"",I71/H71) -> 
A72: Health Surveillance and Prevention of Communicable Diseases including immunizations | I72: 0
A73: Vector Control | I73: 0
A74: Chemical Safety | I74: 0
A75: Economic and environmental services | C75: =C76+C87+C92 -> 0 | D75: 18568265 | E75: 0 | F75: 0 | G75: 8444628 | H75: 9284130 | I75: -839502 | J75: -0.0904233353 | K75: =K76+K87+K92 -> 0
A76: Planning and development | C76: =SUM(C77:C86) -> 0 | D76: 0 | E76: 0 | F76: 0 | G76: 0 | H76: 0 | I76: 0 | K76: =SUM(K77:K86) -> 0
A77: Billboards | I77: =G77-H77 -> 0 | J77: =IF(I77=0,"",I77/H77) -> 
A78: Corporate Wide Strategic Planning (IDPs, LEDs) | I78: 0
A79: Central City Improvement District | I79: 0
A80: Development Facilitation | I80: =G80-H80 -> 0 | J80: =IF(I80=0,"",I80/H80) -> 
A81: Economic Development/Planning | I81: =G81-H81 -> 0 | J81: =IF(I81=0,"",I81/H81) -> 
A82: Regional Planning and Development | I82: =G82-H82 -> 0 | J82: =IF(I82=0,"",I82/H82) -> 
A83: Town Planning, Building Regulations and Enforcement, and City Engineer | I83: =G83-H83 -> 0 | J83: =IF(I83=0,"",I83/H83) -> 
A84: Project Management Unit | I84: 0
A85: Provincial Planning | I85: 0
A86: Support to Local Municipalities | I86: 0
A87: Road transport | C87: =SUM(C88:C91) -> 0 | D87: 18568265 | E87: 0 | F87: 0 | G87: 8444628 | H87: 9284130 | I87: -839502 | J87: -0.0904233353 | K87: =SUM(K88:K91) -> 0
A88: Public Transport | I88: 0
A89: Road and Traffic Regulation | D89: 18568265 | F89: 0 | G89: 8444628 | H89: 9284130 | I89: -839502 | J89: -0.0904233353
A90: Roads | I90: 0
A91: Taxi Ranks | I91: 0
A92: Environmental protection | C92: =SUM(C93:C98) -> 0 | D92: =SUM(D93:D98) -> 0 | E92: 0 | F92: 0 | G92: 0 | H92: 0 | I92: 0 | K92: 0
A93: Biodiversity and Landscape | I93: 0
A94: Coastal Protection | I94: 0
A95: Indigenous Forests | I95: =G95-H95 -> 0 | J95: =IF(I95=0,"",I95/H95) -> 
A96: Nature Conservation | I96: =G96-H96 -> 0 | J96: =IF(I96=0,"",I96/H96) -> 
A97: Pollution Control | I97: 0
A98: Soil Conservation | I98: 0
A99: Trading services | C99: =C100+C104+C108+C113 -> 0 | D99: =D100+D104+D108+D113 -> 37160677.34 | E99: 0 | F99: 2223041 | G99: 11221612 | H99: 18580338 | I99: -7358726 | J99: -0.3960490923 | K99: =K100+K104+K108+K113 -> 0
A100: Energy sources | C100: =SUM(C101:C103) -> 0 | D100: =SUM(D101:D103) -> 30188381.34 | E100: 0 | F100: 1804769 | G100: 9085330 | H100: 15094188 | I100: -6008858 | J100: -0.3980908413 | K100: 0
A101: Electricity | D101: 30188381.34 | F101: 1804769 | G101: 9085330 | H101: 15094188 | I101: -6008858 | J101: -0.3980908413
A102: Street Lighting and Signal Systems | I102: =G102-H102 -> 0 | J102: =IF(I102=0,"",I102/H102) -> 
A103: Nonelectric Energy | I103: 0
A104: Water management | C104: =SUM(C105:C107) -> 0 | D104: =SUM(D105:D107) -> 0 | E104: 0 | F104: 0 | G104: 0 | H104: 0 | I104: 0 | K104: 0
A105: Water Treatment | I105: 0
A106: Water Distribution | I106: =G106-H106 -> 0 | J106: =IF(I106=0,"",I106/H106) -> 
A107: Water Storage | I107: 0
A108: Waste water management | C108: =SUM(C109:C112) -> 0 | D108: =SUM(D109:D112) -> 0 | E108: 0 | F108: 0 | G108: 0 | H108: 0 | I108: 0 | K108: 0
A109: Public Toilets | I109: 0
A110: Sewerage | I110: 0
A111: Storm Water Management | I111: =G111-H111 -> 0 | J111: =IF(I111=0,"",I111/H111) -> 
A112: Waste Water Treatment | I112: 0
A113: Waste management | C113: =SUM(C114:C117) -> 0 | D113: 6972296 | E113: 0 | F113: 418272 | G113: 2136282 | H113: 3486150 | I113: -1349868 | J113: -0.387208812 | K113: =SUM(K114:K117) -> 0
A114: Recycling | I114: =G114-H114 -> 0 | J114: =IF(I114=0,"",I114/H114) -> 
A115: Solid Waste Disposal (Landfill Sites) | I115: =G115-H115 -> 0 | J115: =IF(I115=0,"",I115/H115) -> 
A116: Solid Waste Removal | D116: 6972296 | F116: 418272 | G116: 2136282 | H116: 3486150 | I116: -1349868 | J116: -0.387208812
A117: Street Cleaning | I117: =G117-H117 -> 0 | J117: =IF(I117=0,"",I117/H117) -> 
A118: Other | C118: =SUM(C119:C124) -> 0 | D118: =SUM(D119:D124) -> 0 | E118: 0 | F118: 0 | G118: 0 | H118: 0 | I118: 0 | K118: 0
A119: Abattoirs | I119: 0
A120: Air Transport | I120: 0
A121: Forestry | I121: =G121-H121 -> 0 | J121: =IF(I121=0,"",I121/H121) -> 
A122: Licensing and Regulation | I122: 0
A123: Markets | I123: 0
A124: Tourism | I124: =G124-H124 -> 0 | J124: =IF(I124=0,"",I124/H124) -> 
A125: ="Total "&A5 -> Total Revenue - Functional | B125: 2 | C125: =C6+C26+C75+C99+C118 -> 0 | D125: 480024585.3 | E125: 0 | F125: 133865628 | G125: 359466105 | H125: 240012288 | I125: =G125-H125 -> 119453817 | J125: =IF(I125=0,"",I125/H125) -> 0.4976987553 | K125: =K6+K26+K75+K99+K118 -> 0
A127: Expenditure - Functional
A128: =A6 -> Municipal governance and administration | C128: =C129+C132+C146 -> 0 | D128: 207003732 | E128: 0 | F128: 13423179 | G128: 73486980 | H128: 103501914 | I128: =G128-H128 -> -30014934 | J128: =IF(I128=0,"",I128/H128) -> -0.2899939995 | K128: =K129+K132+K146 -> 0
A129: Executive and council | C129: =SUM(C130:C131) -> 0 | D129: 62817204 | E129: 0 | F129: 3493771 | G129: 21919592 | H129: 31408608 | I129: -9489016 | J129: -0.3021151399 | K129: 0
A130: Mayor and Council | D130: 51448791 | F130: 3254323 | G130: 19538286 | H130: 25724388 | I130: -6186102 | J130: -0.2404761583
A131: Municipal Manager, Town Secretary and Chief Executive | D131: 11368413 | F131: 239448 | G131: 2381306 | H131: 5684220 | I131: -3302914 | J131: -0.5810672353
A132: Finance and administration | C132: =SUM(C133:C145) -> 0 | D132: 141413689 | E132: 0 | F132: 9777474 | G132: 50761614 | H132: 70706880 | I132: -19945266 | J132: -0.2820838085 | K132: =SUM(K133:K145) -> 0
A133: Administrative and Corporate Support | D133: 44783051 | F133: 2372913 | G133: 10925372 | H133: 22391538 | I133: -11466166 | J133: -0.5120758565
A134: Asset Management | D134: 5811335 | F134: 329997 | G134: 4927551 | H134: 2905662 | I134: 2021889 | J134: 0.695844527
A135: Finance | D135: 45072896 | F135: 4058796 | G135: 14644481 | H135: 22536450 | I135: -7891969 | J135: -0.350186875
A136: Fleet Management | D136: 0 | F136: 0 | G136: 100826 | H136: 0 | I136: 100826
A137: Human Resources | D137: 13827743 | F137: 795611 | G137: 7743293 | H137: 6913884 | I137: 829409 | J137: 0.1199628168
A138: Information Technology | D138: 7626819 | F138: 156018 | G138: 2070514 | H138: 3813408 | I138: -1742894 | J138: -0.4570436733
A139: Legal Services | D139: 7216083 | F139: 897137 | G139: 3720123 | H139: 3608058 | I139: 112065 | J139: 0.03105964483
A140: Marketing, Customer Relations, Publicity and Media Co-ordination | D140: 3500459 | F140: 217951 | G140: 975331 | H140: 1750230 | I140: -774899 | J140: -0.4427412397
A141: Property Services | D141: 9530918 | F141: 716796 | G141: 4216345 | H141: 4765452 | I141: -549107 | J141: -0.1152266354
A142: Risk Management | D142: 1064747 | F142: 0 | G142: 300121 | H142: 532380 | I142: -232259 | J142: -0.4362654495
A143: Security Services | D143: 0 | F143: 0 | G143: 0 | H143: 0 | I143: 0
A144: Supply Chain Management | D144: 2979638 | F144: 232255 | G144: 1137657 | H144: 1489818 | I144: -352161 | J144: -0.2363785375
A145: Valuation Service | F145: 0 | G145: 0 | H145: 0 | I145: 0
A146: Internal audit | C146: =SUM(C147:C147) -> 0 | D146: 2772839 | E146: 0 | F146: 151934 | G146: 805774 | H146: 1386426 | I146: -580652 | J146: -0.4188121111 | K146: =SUM(K147:K147) -> 0
A147: Governance Function | D147: 2772839 | F147: 151934 | G147: 805774 | H147: 1386426 | I147: -580652 | J147: -0.4188121111
A148: Community and public safety | C148: =C149+C171+C177+C186+C189 -> 0 | D148: 26362251 | E148: 0 | F148: 2499978 | G148: 10665220 | H148: 13181112 | I148: -2515892 | J148: -0.1908709978 | K148: =K149+K171+K177+K186+K189 -> 0
A149: Community and social services | C149: =SUM(C150:C170) -> 0 | D149: 10254486 | E149: 0 | F149: 1130621 | G149: 3879491 | H149: 5127234 | I149: -1247743 | J149: -0.2433559693 | K149: =SUM(K150:K170) -> 0
A150: Aged Care | F150: 0 | G150: 0 | H150: 0 | I150: 0
A151: Agricultural | F151: 0 | G151: 0 | H151: 0 | I151: 0
A152: Animal Care and Diseases | F152: 0 | G152: 0 | H152: 0 | I152: 0
A153: Cemeteries, Funeral Parlours and Crematoriums | D153: 0 | F153: 0 | G153: 0 | H153: 0 | I153: 0
A154: Child Care Facilities | D154: 0 | F154: 0 | G154: 0 | H154: 0 | I154: 0
A155: Community Halls and Facilities | D155: 4691445 | F155: 660439 | G155: 1047423 | H155: 2345712 | I155: -1298289 | J155: -0.5534733164
A156: Consumer Protection | F156: 0 | G156: 0 | H156: 0 | I156: 0
A157: Cultural Matters | F157: 0 | G157: 0 | H157: 0 | I157: =G157-H157 -> 0 | J157: =IF(I157=0,"",I157/H157) -> 
A158: Disaster Management | D158: 2015964 | F158: 111032 | G158: 1145724 | H158: 1007982 | I158: =G158-H158 -> 137742 | J158: =IF(I158=0,"",I158/H158) -> 0.1366512497
A159: Education | F159: 0 | G159: 0 | H159: 0 | I159: =G159-H159 -> 0 | J159: =IF(I159=0,"",I159/H159) -> 
A160: =A38 -> Indigenous and Customary Law | F160: 0 | G160: 0 | H160: 0 | I160: 0
A161: Industrial Promotion | F161: 0 | G161: 0 | H161: 0 | I161: 0
A162: Language Policy | F162: 0 | G162: 0 | H162: 0 | I162: 0
A163: Libraries and Archives | D163: 3547077 | F163: 359150 | G163: 1686344 | H163: 1773540 | I163: -87196 | J163: -0.04916494694
A164: Literacy Programmes | F164: 0 | G164: 0 | H164: 0 | I164: 0
A165: Media Services | F165: 0 | G165: 0 | H165: 0 | I165: 0
A166: Museums and Art Galleries | F166: 0 | G166: 0 | H166: 0 | I166: 0
A167: Population Development | F167: 0 | G167: 0 | H167: 0 | I167: 0
A168: Provincial Cultural Matters | F168: 0 | G168: 0 | H168: 0 | I168: 0
A169: Theatres | F169: 0 | G169: 0 | H169: 0 | I169: 0
A170: Zoo's | F170: 0 | G170: 0 | H170: 0 | I170: 0
A171: Sport and recreation | C171: =SUM(C172:C176) -> 0 | D171: 15203620 | E171: 0 | F171: 1264923 | G171: 6354158 | H171: 7601808 | I171: =G171-H171 -> -1247650 | J171: =IF(I171=0,"",I171/H171) -> -0.1641254291 | K171: 0
A172: Beaches and Jetties | F172: 0 | G172: 0 | H172: 0 | I172: 0
A173: Casinos, Racing, Gambling, Wagering | F173: 0 | G173: 0 | H173: 0 | I173: 0
A174: Community Parks (including Nurseries) | F174: 0 | G174: 0 | H174: 0 | I174: 0
A175: Recreational Facilities | F175: 0 | G175: 0 | H175: 0 | I175: 0
A176: Sports Grounds and Stadiums | D176: 15203620 | F176: 1264923 | G176: 6354158 | H176: 7601808 | I176: -1247650 | J176: -0.1641254291
A177: Public safety | C177: =SUM(C178:C185) -> 0 | D177: 0 | E177: 0 | F177: 0 | G177: 0 | H177: 0 | I177: 0 | K177: 0
A178: Civil Defence | I178: 0
A179: Cleansing | I179: 0
A180: Control of Public Nuisances | I180: =G180-H180 -> 0 | J180: =IF(I180=0,"",I180/H180) -> 
A181: Fencing and Fences | I181: 0
A182: Fire Fighting and Protection | I182: 0
A183: Licensing and Control of Animals | I183: =G183-H183 -> 0 | J183: =IF(I183=0,"",I183/H183) -> 
A184: Police Forces, Traffic and Street Parking Control | I184: =G184-H184 -> 0 | J184: =IF(I184=0,"",I184/H184) -> 
A185: Pounds | I185: 0
A186: Housing | C186: =SUM(C187:C188) -> 0 | D186: 904145 | E186: 0 | F186: 104434 | G186: 431571 | H186: 452070 | I186: =G186-H186 -> -20499 | J186: =IF(I186=0,"",I186/H186) -> -0.04534474749 | K186: =SUM(K187:K188) -> 0
A187: Housing | D187: 904145 | F187: 104434 | G187: 431571 | H187: 452070 | I187: =G187-H187 -> -20499 | J187: =IF(I187=0,"",I187/H187) -> -0.04534474749
A188: Informal Settlements | F188: 0 | G188: 0 | H188: 0 | I188: =G188-H188 -> 0 | J188: =IF(I188=0,"",I188/H188) -> 
A189: Health | C189: =SUM(C190:C196) -> 0 | D189: 0 | E189: 0 | F189: 0 | G189: 0 | H189: 0 | I189: 0 | K189: 0
A190: Ambulance | I190: 0
A191: Health Services | I191: 0
A192: =A70 -> Laboratory Services | I192: 0
A193: Food Control | I193: =G193-H193 -> 0 | J193: =IF(I193=0,"",I193/H193) -> 
A194: Health Surveillance and Prevention of Communicable Diseases including immunizations | I194: =G194-H194 -> 0 | J194: =IF(I194=0,"",I194/H194) -> 
A195: Vector Control | I195: 0
A196: Chemical Safety | I196: 0
A197: Economic and environmental services | C197: =C198+C209+C214 -> 0 | D197: 75251047 | E197: 0 | F197: 6793223 | G197: 33105137 | H197: 37625538 | I197: -4520401 | J197: -0.1201418303 | K197: =K198+K209+K214 -> 0
A198: Planning and development | C198: =SUM(C199:C208) -> 0 | D198: 24977647 | E198: 0 | F198: 1869219 | G198: 7966241 | H198: 12488820 | I198: -4522579 | J198: -0.3621302093 | K198: 0
A199: Billboards | F199: 0 | G199: 0 | H199: 0 | I199: 0
A200: Corporate Wide Strategic Planning (IDPs, LEDs) | D200: 7093860 | F200: 856145 | G200: 1922525 | H200: 3546930 | I200: -1624405 | J200: -0.4579749248
A201: Central City Improvement District | F201: 0 | G201: 0 | H201: 0 | I201: 0
... 54 more rows

Sheet C3-FinPerf V
A1: =muni& " - "&S71C& " - "&date -> LIM332 Greater Letaba - Table C3 Monthly Budget Statement - Financial Performance (revenue and expenditure by municipal vote) - M06 December
A2: =Vdesc -> Vote Description | B2: =head27 -> Ref | C2: =Head1 -> 2019/20 | D2: =Head2 -> Budget Year 2020/21
C3: =Head5 -> Audited Outcome | D3: =Head6 -> Original Budget | E3: =Head7 -> Adjusted Budget | F3: =Head38 -> Monthly actual | G3: =Head39 -> YearTD actual | H3: =Head40 -> YearTD budget | I3: =Head41 -> YTD variance | J3: =Head41 -> YTD variance | K3: =Head8 -> Full Year Forecast
A4: R thousands | J4: %
A5: Revenue by Vote | B5: 1
A6: ='Org structure'!A2 -> Vote 1 - Executive & Council | C6: ='C3C'!C6 -> 0 | D6: ='C3C'!D6 -> 0 | E6: ='C3C'!E6 -> 0 | F6: ='C3C'!F6 -> 0 | G6: ='C3C'!G6 -> 0 | H6: ='C3C'!H6 -> 0 | I6: =G6-H6 -> 0 | J6: =IF(I6=0,"",I6/H6) ->  | K6: ='C3C'!K6 -> 0
A7: ='Org structure'!A3 -> Vote 2 - Finance and Administration | C7: ='C3C'!C17 -> 0 | D7: ='C3C'!D17 -> 424295643 | E7: ='C3C'!E17 -> 0 | F7: ='C3C'!F17 -> 131642998 | G7: ='C3C'!G17 -> 283710160 | H7: ='C3C'!H17 -> 212147820 | I7: =G7-H7 -> 71562340 | J7: =IF(I7=0,"",I7/H7) -> 0.3373230043 | K7: ='C3C'!K17 -> 0
A8: ='Org structure'!A4 -> Vote 3 - Internal Audit | C8: ='C3C'!C28 -> 0 | D8: ='C3C'!D28 -> 0 | E8: ='C3C'!E28 -> 0 | F8: ='C3C'!F28 -> 0 | G8: ='C3C'!G28 -> 0 | H8: ='C3C'!H28 -> 0 | I8: 0 | K8: ='C3C'!K28 -> 0
A9: ='Org structure'!A5 -> Vote 4 - Community and Public Safety | C9: ='C3C'!C39 -> 0 | D9: ='C3C'!D39 -> 0 | E9: ='C3C'!E39 -> 0 | F9: ='C3C'!F39 -> 0 | G9: ='C3C'!G39 -> 0 | H9: ='C3C'!H39 -> 0 | I9: 0 | K9: ='C3C'!K39 -> 0
A10: ='Org structure'!A6 -> Vote 5 - Sports and Recreation | C10: ='C3C'!C50 -> 0 | D10: ='C3C'!D50 -> 0 | E10: ='C3C'!E50 -> 0 | F10: ='C3C'!F50 -> 0 | G10: ='C3C'!G50 -> 0 | H10: ='C3C'!H50 -> 0 | I10: 0 | K10: ='C3C'!K50 -> 0
A11: ='Org structure'!A7 -> Vote 6 - Housing | C11: ='C3C'!C61 -> 0 | D11: ='C3C'!D61 -> 0 | E11: ='C3C'!E61 -> 0 | F11: ='C3C'!F61 -> 0 | G11: ='C3C'!G61 -> 0 | H11: ='C3C'!H61 -> 0 | I11: 0 | K11: ='C3C'!K61 -> 0
A12: ='Org structure'!A8 -> Vote 7 - Planning and development | C12: ='C3C'!C72 -> 0 | D12: ='C3C'!D72 -> 0 | E12: ='C3C'!E72 -> 0 | F12: ='C3C'!F72 -> 0 | G12: ='C3C'!G72 -> 0 | H12: ='C3C'!H72 -> 0 | I12: 0 | K12: ='C3C'!K72 -> 0
A13: ='Org structure'!A9 -> Vote 8 - Road Transport | C13: ='C3C'!C83 -> 0 | D13: ='C3C'!D83 -> 18568265 | E13: ='C3C'!E83 -> 0 | F13: ='C3C'!F83 -> 0 | G13: ='C3C'!G83 -> 8444628 | H13: ='C3C'!H83 -> 9284130 | I13: -839502 | J13: -0.0904233353 | K13: ='C3C'!K83 -> 0
A14: ='Org structure'!A10 -> Vote 9 - Energy Sources | C14: ='C3C'!C94 -> 0 | D14: ='C3C'!D94 -> 30188381.34 | E14: ='C3C'!E94 -> 0 | F14: ='C3C'!F94 -> 1804769 | G14: ='C3C'!G94 -> 9085330 | H14: ='C3C'!H94 -> 15094188 | I14: -6008858 | J14: -0.3980908413 | K14: ='C3C'!K94 -> 0
A15: ='Org structure'!A11 -> Vote 10 - Waste Water Management | C15: ='C3C'!C105 -> 0 | D15: ='C3C'!D105 -> 0 | E15: ='C3C'!E105 -> 0 | F15: ='C3C'!F105 -> 0 | G15: ='C3C'!G105 -> 0 | H15: ='C3C'!H105 -> 0 | I15: 0 | K15: ='C3C'!K105 -> 0
A16: ='Org structure'!A12 -> Vote 11 - Waste Management | C16: ='C3C'!C116 -> 0 | D16: ='C3C'!D116 -> 6972296 | E16: ='C3C'!E116 -> 0 | F16: ='C3C'!F116 -> 418272 | G16: ='C3C'!G116 -> 2136282 | H16: ='C3C'!H116 -> 3486150 | I16: -1349868 | J16: -0.387208812 | K16: ='C3C'!K116 -> 0
A17: ='Org structure'!A13 -> 0 | C17: ='C3C'!C127 -> 0 | D17: ='C3C'!D127 -> 0 | E17: ='C3C'!E127 -> 0 | F17: ='C3C'!F127 -> 0 | G17: ='C3C'!G127 -> 0 | H17: ='C3C'!H127 -> 0 | I17: 0 | K17: ='C3C'!K127 -> 0
A18: ='Org structure'!A14 -> 0 | C18: ='C3C'!C138 -> 0 | D18: ='C3C'!D138 -> 0 | E18: ='C3C'!E138 -> 0 | F18: ='C3C'!F138 -> 0 | G18: ='C3C'!G138 -> 0 | H18: ='C3C'!H138 -> 0 | I18: 0 | K18: ='C3C'!K138 -> 0
A19: ='Org structure'!A15 -> 0 | C19: ='C3C'!C149 -> 0 | D19: ='C3C'!D149 -> 0 | E19: ='C3C'!E149 -> 0 | F19: ='C3C'!F149 -> 0 | G19: ='C3C'!G149 -> 0 | H19: ='C3C'!H149 -> 0 | I19: 0 | K19: ='C3C'!K149 -> 0
A20: ='Org structure'!A16 -> 0 | C20: ='C3C'!C160 -> 0 | D20: ='C3C'!D160 -> 0 | E20: ='C3C'!E160 -> 0 | F20: ='C3C'!F160 -> 0 | G20: ='C3C'!G160 -> 0 | H20: ='C3C'!H160 -> 0 | I20: 0 | K20: ='C3C'!K160 -> 0
A21: Total Revenue by Vote | B21: 2 | C21: =SUM(C6:C20) -> 0 | D21: =SUM(D6:D20) -> 480024585.3 | E21: 0 | F21: 133866039 | G21: 303376400 | H21: 240012288 | I21: 63364112 | J21: 0.2640036163 | K21: =SUM(K6:K20) -> 0
A23: Expenditure by Vote | B23: 1
A24: ='Org structure'!A2 -> Vote 1 - Executive & Council | C24: ='C3C'!C174 -> 0 | D24: ='C3C'!D174 -> 62817204 | E24: ='C3C'!E174 -> 0 | F24: ='C3C'!F174 -> 3493771 | G24: ='C3C'!G174 -> 21919592 | H24: ='C3C'!H174 -> 31408608 | I24: =G24-H24 -> -9489016 | J24: =IF(I24=0,"",I24/H24) -> -0.3021151399 | K24: ='C3C'!K174 -> 0
A25: ='Org structure'!A3 -> Vote 2 - Finance and Administration | C25: ='C3C'!C185 -> 0 | D25: ='C3C'!D185 -> 141413689 | E25: ='C3C'!E185 -> 0 | F25: ='C3C'!F185 -> 9777474 | G25: ='C3C'!G185 -> 50660788 | H25: ='C3C'!H185 -> 70706880 | I25: -20046092 | J25: -0.2835097801 | K25: ='C3C'!K185 -> 0
A26: ='Org structure'!A4 -> Vote 3 - Internal Audit | C26: ='C3C'!C196 -> 0 | D26: ='C3C'!D196 -> 2772839 | E26: ='C3C'!E196 -> 0 | F26: ='C3C'!F196 -> 151934 | G26: ='C3C'!G196 -> 805774 | H26: ='C3C'!H196 -> 1386426 | I26: -580652 | J26: -0.4188121111 | K26: ='C3C'!K196 -> 0
A27: ='Org structure'!A5 -> Vote 4 - Community and Public Safety | C27: ='C3C'!C207 -> 0 | D27: ='C3C'!D207 -> 10254486 | E27: ='C3C'!E207 -> 0 | F27: ='C3C'!F207 -> 1130621 | G27: ='C3C'!G207 -> 3879491 | H27: ='C3C'!H207 -> 5127234 | I27: -1247743 | J27: -0.2433559693 | K27: ='C3C'!K207 -> 0
A28: ='Org structure'!A6 -> Vote 5 - Sports and Recreation | C28: ='C3C'!C218 -> 0 | D28: ='C3C'!D218 -> 15203620 | E28: ='C3C'!E218 -> 0 | F28: ='C3C'!F218 -> 1264923 | G28: ='C3C'!G218 -> 6354158 | H28: ='C3C'!H218 -> 7601808 | I28: -1247650 | J28: -0.1641254291 | K28: ='C3C'!K218 -> 0
A29: ='Org structure'!A7 -> Vote 6 - Housing | C29: ='C3C'!C229 -> 0 | D29: ='C3C'!D229 -> 904145 | E29: ='C3C'!E229 -> 0 | F29: ='C3C'!F229 -> 104434 | G29: ='C3C'!G229 -> 431571 | H29: ='C3C'!H229 -> 452070 | I29: -20499 | J29: -0.04534474749 | K29: ='C3C'!K229 -> 0
A30: ='Org structure'!A8 -> Vote 7 - Planning and development | C30: ='C3C'!C240 -> 0 | D30: ='C3C'!D240 -> 24977647 | E30: ='C3C'!E240 -> 0 | F30: ='C3C'!F240 -> 1869219 | G30: ='C3C'!G240 -> 7966241 | H30: ='C3C'!H240 -> 12488820 | I30: -4522579 | J30: =IF(I30=0,"",I30/H30) -> -0.3621302093 | K30: ='C3C'!K240 -> 0
A31: ='Org structure'!A9 -> Vote 8 - Road Transport | C31: ='C3C'!C251 -> 0 | D31: ='C3C'!D251 -> 50273400 | E31: ='C3C'!E251 -> 0 | F31: ='C3C'!F251 -> 4924004 | G31: ='C3C'!G251 -> 25138896 | H31: ='C3C'!H251 -> 25136718 | I31: 2178 | J31: 8.664615643e-05 | K31: ='C3C'!K251 -> 0
A32: ='Org structure'!A10 -> Vote 9 - Energy Sources | C32: ='C3C'!C262 -> 0 | D32: ='C3C'!D262 -> 42764245 | E32: ='C3C'!E262 -> 0 | F32: ='C3C'!F262 -> 1655699 | G32: ='C3C'!G262 -> 12862558 | H32: ='C3C'!H262 -> 21382128 | I32: -8519570 | J32: -0.3984435038 | K32: ='C3C'!K262 -> 0
A33: ='Org structure'!A11 -> Vote 10 - Waste Water Management | C33: ='C3C'!C273 -> 0 | D33: ='C3C'!D273 -> 1047846 | E33: ='C3C'!E273 -> 0 | F33: ='C3C'!F273 -> 56672 | G33: ='C3C'!G273 -> 311707 | H33: ='C3C'!H273 -> 523926 | I33: -212219 | J33: =IF(I33=0,"",I33/H33) -> -0.4050552941 | K33: ='C3C'!K273 -> 0
A34: ='Org structure'!A12 -> Vote 11 - Waste Management | C34: ='C3C'!C284 -> 0 | D34: ='C3C'!D284 -> 7923465 | E34: ='C3C'!E284 -> 0 | F34: ='C3C'!F284 -> 201498 | G34: ='C3C'!G284 -> 1904820 | H34: ='C3C'!H284 -> 3961722 | I34: -2056902 | J34: =IF(I34=0,"",I34/H34) -> -0.5191939263 | K34: ='C3C'!K284 -> 0
A35: ='Org structure'!A13 -> 0 | C35: ='C3C'!C295 -> 0 | D35: ='C3C'!D295 -> 0 | E35: ='C3C'!E295 -> 0 | F35: ='C3C'!F295 -> 0 | G35: ='C3C'!G295 -> 0 | H35: ='C3C'!H295 -> 0 | I35: 0 | J35: =IF(I35=0,"",I35/H35) ->  | K35: ='C3C'!K295 -> 0
A36: ='Org structure'!A14 -> 0 | C36: ='C3C'!C306 -> 0 | D36: ='C3C'!D306 -> 0 | E36: ='C3C'!E306 -> 0 | F36: ='C3C'!F306 -> 0 | G36: ='C3C'!G306 -> 0 | H36: ='C3C'!H306 -> 0 | I36: 0 | J36: =IF(I36=0,"",I36/H36) ->  | K36: ='C3C'!K306 -> 0
A37: ='Org structure'!A15 -> 0 | C37: ='C3C'!C317 -> 0 | D37: ='C3C'!D317 -> 0 | E37: ='C3C'!E317 -> 0 | F37: ='C3C'!F317 -> 0 | G37: ='C3C'!G317 -> 0 | H37: ='C3C'!H317 -> 0 | I37: 0 | J37: =IF(I37=0,"",I37/H37) ->  | K37: ='C3C'!K317 -> 0
A38: ='Org structure'!A16 -> 0 | C38: ='C3C'!C328 -> 0 | D38: ='C3C'!D328 -> 0 | E38: ='C3C'!E328 -> 0 | F38: ='C3C'!F328 -> 0 | G38: ='C3C'!G328 -> 0 | H38: ='C3C'!H328 -> 0 | I38: 0 | K38: ='C3C'!K328 -> 0
A39: Total Expenditure by Vote | B39: 2 | C39: =SUM(C24:C38) -> 0 | D39: =SUM(D24:D38) -> 360352586 | E39: 0 | F39: 24630249 | G39: 132235596 | H39: 180176340 | I39: -47940744 | J39: =IF(I39=0,"",I39/H39) -> -0.2660768001 | K39: =SUM(K24:K38) -> 0
A40: =result -> Surplus/ (Deficit) for the year | B40: 2 | C40: =C21-C39 -> 0 | D40: 119671999.3 | E40: 0 | F40: 109235790 | G40: 171140804 | H40: 59835948 | I40: =I21-I39 -> 111304856 | J40: =IF(I40=0,"",I40/H40) -> 1.860167002 | K40: =K21-K39 -> 0
A41: =head27a -> References
A42: 1. Insert 'Vote'; e.g. Department, if different to standard classification structure
A43: 2. Must reconcile to Monthly Budget Statement - Financial Performance Statement (standard classification)

Sheet C3C
A1: =muni& " - "&S71C& " - "&"A"& " - "&date -> LIM332 Greater Letaba - Table C3 Monthly Budget Statement - Financial Performance (revenue and expenditure by municipal vote) - A - M06 December
A2: =Vdesc -> Vote Description | B2: =head27 -> Ref | C2: =Head1 -> 2019/20 | D2: =Head2 -> Budget Year 2020/21 | L2: =Head4 -> 
A3: R thousand | C3: =Head5 -> Audited Outcome | D3: =Head6 -> Original Budget | E3: =Head7 -> Adjusted Budget | F3: =Head38 -> Monthly actual | G3: =Head39 -> YearTD actual | H3: =Head40 -> YearTD budget | I3: =Head41 -> YTD variance | J3: =Head41 -> YTD variance | K3: =Head8 -> Full Year Forecast | L3: =Head12 -> Forecast 2010/11 | M3: =Head13 -> Forecast 2011/12 | N3: =Head14 -> Forecast 2012/13 | O3: =Head15 -> Forecast 2013/14 | P3: =Head16 -> Forecast 2014/15 | Q3: =Head17 -> Forecast 2015/16 | R3: =Head18 -> Forecast 2016/17 | S3: =Head19 -> Forecast 2017/18 | T3: =Head20 -> Forecast 2018/19 | U3: =Head21 -> Forecast 2019/20 | V3: =Head22 -> Forecast 2020/21 | W3: =Head23 -> Forecast 2021/22
J4: %
A5: Revenue by Vote | B5: 1
A6: ='Org structure'!A2 -> Vote 1 - Executive & Council | C6: =SUM(C7:C16) -> 0 | D6: =SUM(D7:D16) -> 0 | E6: 0 | F6: 0 | G6: 0 | H6: 0 | I6: =G6-H6 -> 0 | J6: =IF(I6=0,"",I6/H6) ->  | K6: 0
A7: ='Org structure'!E3 -> 1,1 - Mayor and Council | I7: 0
A8: ='Org structure'!E4 -> 1,2 - Municipal Manager | I8: 0
A9: ='Org structure'!E5 -> 0 | I9: 0
A10: ='Org structure'!E6 -> 0 | I10: 0
A11: ='Org structure'!E7 -> 0 | I11: 0
A12: ='Org structure'!E8 -> 0 | I12: 0
A13: ='Org structure'!E9 -> 0 | I13: 0
A14: ='Org structure'!E10 -> 0 | I14: 0
A15: ='Org structure'!E11 -> 0 | I15: 0
A16: ='Org structure'!E12 -> 0 | I16: 0
A17: ='Org structure'!A3 -> Vote 2 - Finance and Administration | C17: =SUM(C18:C27) -> 0 | D17: =SUM(D18:D27) -> 424295643 | E17: 0 | F17: 131642998 | G17: 283710160 | H17: 212147820 | I17: 71562340 | J17: 0.3373230043 | K17: 0
A18: ='Org structure'!E14 -> 2,1 - Administrative and Corporate Support | I18: 0
A19: ='Org structure'!E15 -> 2,2 - Asset Management | I19: 0
A20: ='Org structure'!E16 -> 2,3 - Budget and Treasury Office | D20: =22099720-3561235+800106+836000+156750+10000000+10000000+10687728+1980255+30000+297936000+2000000+1467000+57229000+634319+12000000 -> 424295643 | F20: 131642998 | G20: 283710160 | H20: 212147820 | I20: 71562340 | J20: 0.3373230043
A21: ='Org structure'!E17 -> 2,4 - Human Resource | I21: 0
A22: ='Org structure'!E18 -> 2,5 - Information Technology | I22: 0
A23: ='Org structure'!E19 -> 2,6 - Legal Services | I23: 0
A24: ='Org structure'!E20 -> 2,7 - Customer Relation and Coordination | I24: 0
A25: ='Org structure'!E21 -> 2,8 - Property Services | I25: 0
A26: ='Org structure'!E22 -> 2,9 - Risk Management | I26: 0
A27: ='Org structure'!E23 -> 2.10 - Supply Chain Management | I27: 0
A28: ='Org structure'!A4 -> Vote 3 - Internal Audit | C28: =SUM(C29:C38) -> 0 | D28: 0 | E28: 0 | F28: 0 | G28: 0 | H28: 0 | I28: 0 | K28: 0
A29: ='Org structure'!E25 -> 3,1 - Governance Function | I29: 0
A30: ='Org structure'!E26 -> 0 | I30: 0
A31: ='Org structure'!E27 -> 0 | I31: 0
A32: ='Org structure'!E28 -> 0 | I32: 0
A33: ='Org structure'!E29 -> 0 | I33: 0
A34: ='Org structure'!E30 -> 0 | I34: 0
A35: ='Org structure'!E31 -> 0 | I35: 0
A36: ='Org structure'!E32 -> 0 | I36: 0
A37: ='Org structure'!E33 -> 0 | I37: 0
A38: ='Org structure'!E34 -> 0 | I38: 0
A39: ='Org structure'!A5 -> Vote 4 - Community and Public Safety | C39: =SUM(C40:C49) -> 0 | D39: 0 | E39: 0 | F39: 0 | G39: 0 | H39: 0 | I39: 0 | K39: 0
A40: ='Org structure'!E36 -> 4,1 - Cemetries and crematoriums | I40: 0
A41: ='Org structure'!E37 -> 4,2 - Community halls and Facilities | I41: 0
A42: ='Org structure'!E38 -> 4,3 - Disaster Management | I42: 0
A43: ='Org structure'!E39 -> 4,4 - Libraries and Archives | I43: 0
A44: ='Org structure'!E40 -> 0 | I44: 0
A45: ='Org structure'!E41 -> 0 | I45: 0
A46: ='Org structure'!E42 -> 0 | I46: 0
A47: ='Org structure'!E43 -> 0 | I47: 0
A48: ='Org structure'!E44 -> 0 | I48: 0
A49: ='Org structure'!E45 -> 0 | I49: 0
A50: ='Org structure'!A6 -> Vote 5 - Sports and Recreation | C50: =SUM(C51:C60) -> 0 | D50: =SUM(D51:D60) -> 0 | E50: 0 | F50: 0 | G50: 0 | H50: 0 | I50: 0 | K50: 0
A51: ='Org structure'!E47 -> 5,1 - Community parks | I51: 0
A52: ='Org structure'!E48 -> 0 | I52: 0
A53: ='Org structure'!E49 -> 0 | I53: 0
A54: ='Org structure'!E50 -> 0 | I54: 0
A55: ='Org structure'!E51 -> 0 | I55: 0
A56: ='Org structure'!E52 -> 0 | I56: 0
A57: ='Org structure'!E53 -> 0 | I57: 0
A58: ='Org structure'!E54 -> 0 | I58: 0
A59: ='Org structure'!E55 -> 0 | I59: 0
A60: ='Org structure'!E56 -> 0 | I60: 0
A61: ='Org structure'!A7 -> Vote 6 - Housing | C61: =SUM(C62:C71) -> 0 | D61: =SUM(D62:D71) -> 0 | E61: 0 | F61: 0 | G61: 0 | H61: 0 | I61: 0 | K61: 0
A62: ='Org structure'!E58 -> 6,1 - Housing | I62: 0
A63: ='Org structure'!E59 -> 0 | I63: 0
A64: ='Org structure'!E60 -> 0 | I64: 0
A65: ='Org structure'!E61 -> 0 | I65: 0
A66: ='Org structure'!E62 -> 0 | I66: 0
A67: ='Org structure'!E63 -> 0 | I67: 0
A68: ='Org structure'!E64 -> 0 | I68: 0
A69: ='Org structure'!E65 -> 0 | I69: 0
A70: ='Org structure'!E66 -> 0 | I70: =G70-H70 -> 0 | J70: =IF(I70=0,"",I70/H70) -> 
A71: ='Org structure'!E67 -> 0 | I71: 0
A72: ='Org structure'!A8 -> Vote 7 - Planning and development | C72: =SUM(C73:C82) -> 0 | D72: 0 | E72: 0 | F72: 0 | G72: 0 | H72: 0 | I72: 0 | K72: 0
A73: ='Org structure'!E69 -> 7,1 - Corporate Wide Strategic Planning (IDP & LED) | I73: 0
A74: ='Org structure'!E70 -> 7,2 - Town Planning and Building Regulations | I74: 0
A75: ='Org structure'!E71 -> 7,3 - Project Management Unit | I75: 0
A76: ='Org structure'!E72 -> 0 | I76: 0
A77: ='Org structure'!E73 -> 0 | I77: 0
A78: ='Org structure'!E74 -> 0 | I78: 0
A79: ='Org structure'!E75 -> 0 | I79: 0
A80: ='Org structure'!E76 -> 0 | I80: 0
A81: ='Org structure'!E77 -> 0 | I81: 0
A82: ='Org structure'!E78 -> 0 | I82: 0
A83: ='Org structure'!A9 -> Vote 8 - Road Transport | C83: =SUM(C84:C93) -> 0 | D83: =SUM(D84:D93) -> 18568265 | E83: 0 | F83: 0 | G83: 8444628 | H83: 9284130 | I83: -839502 | J83: -0.0904233353 | K83: 0
A84: ='Org structure'!E80 -> 8,1 - Road and Traffic Regulations | D84: =86286+15595856+2886123 -> 18568265 | F84: ='C2C'!F89 -> 0 | G84: ='C2C'!G89 -> 8444628 | H84: ='C2C'!H89 -> 9284130 | I84: -839502 | J84: -0.0904233353
A85: ='Org structure'!E81 -> 8,2 - Roads | I85: 0
A86: ='Org structure'!E82 -> 8,3 - Taxi Ranks | I86: 0
A87: ='Org structure'!E83 -> 0 | I87: 0
A88: ='Org structure'!E84 -> 0 | I88: 0
A89: ='Org structure'!E85 -> 0 | I89: 0
A90: ='Org structure'!E86 -> 0 | I90: 0
A91: ='Org structure'!E87 -> 0 | I91: 0
A92: ='Org structure'!E88 -> 0 | I92: 0
A93: ='Org structure'!E89 -> 0 | I93: 0
A94: ='Org structure'!A10 -> Vote 9 - Energy Sources | C94: =SUM(C95:C104) -> 0 | D94: =SUM(D95:D104) -> 30188381.34 | E94: 0 | F94: 1804769 | G94: 9085330 | H94: 15094188 | I94: -6008858 | J94: -0.3980908413 | K94: 0
A95: ='Org structure'!E91 -> 9,1 - Electricity | D95: 30188381.34 | F95: ='C2C'!F101 -> 1804769 | G95: ='C2C'!G101 -> 9085330 | H95: ='C2C'!H101 -> 15094188 | I95: -6008858 | J95: -0.3980908413
A96: ='Org structure'!E92 -> 9,2 - Street Lighting | I96: 0
A97: ='Org structure'!E93 -> 0 | I97: 0
A98: ='Org structure'!E94 -> 0 | I98: 0
A99: ='Org structure'!E95 -> 0 | I99: 0
A100: ='Org structure'!E96 -> 0 | I100: 0
A101: ='Org structure'!E97 -> 0 | I101: 0
A102: ='Org structure'!E98 -> 0 | I102: 0
A103: ='Org structure'!E99 -> 0 | I103: 0
A104: ='Org structure'!E100 -> 0 | I104: 0
A105: ='Org structure'!A11 -> Vote 10 - Waste Water Management | C105: =SUM(C106:C115) -> 0 | D105: =SUM(D106:D115) -> 0 | E105: 0 | F105: 0 | G105: 0 | H105: 0 | I105: 0 | K105: 0
A106: ='Org structure'!E102 -> 10,1 - Public Toilets | I106: 0
A107: ='Org structure'!E103 -> 0 | I107: 0
A108: ='Org structure'!E104 -> 0 | I108: 0
A109: ='Org structure'!E105 -> 0 | I109: 0
A110: ='Org structure'!E106 -> 0 | I110: 0
A111: ='Org structure'!E107 -> 0 | I111: 0
A112: ='Org structure'!E108 -> 0 | I112: 0
A113: ='Org structure'!E109 -> 0 | I113: 0
A114: ='Org structure'!E110 -> 0 | I114: 0
A115: ='Org structure'!E111 -> 0 | I115: 0
A116: ='Org structure'!A12 -> Vote 11 - Waste Management | C116: =SUM(C117:C126) -> 0 | D116: =SUM(D117:D126) -> 6972296 | E116: 0 | F116: 418272 | G116: 2136282 | H116: 3486150 | I116: -1349868 | J116: -0.387208812 | K116: 0
A117: ='Org structure'!E113 -> 11,1 - Solid Waste Removal | D117: 6972296 | F117: ='C2C'!F116 -> 418272 | G117: ='C2C'!G116 -> 2136282 | H117: ='C2C'!H116 -> 3486150 | I117: -1349868 | J117: -0.387208812
A118: ='Org structure'!E114 -> 0 | I118: 0
A119: ='Org structure'!E115 -> 0 | I119: 0
A120: ='Org structure'!E116 -> 0 | I120: 0
A121: ='Org structure'!E117 -> 0 | I121: 0
A122: ='Org structure'!E118 -> 0 | I122: 0
A123: ='Org structure'!E119 -> 0 | I123: 0
A124: ='Org structure'!E120 -> 0 | I124: 0
A125: ='Org structure'!E121 -> 0 | I125: 0
A126: ='Org structure'!E122 -> 0 | I126: 0
A127: ='Org structure'!A13 -> 0 | C127: =SUM(C128:C137) -> 0 | D127: =SUM(D128:D137) -> 0 | E127: 0 | F127: 0 | G127: 0 | H127: 0 | I127: 0 | K127: 0
A128: ='Org structure'!E124 -> 12.1 - [Name of sub-vote] | I128: 0
A129: ='Org structure'!E125 -> 0 | I129: 0
A130: ='Org structure'!E126 -> 0 | I130: 0
A131: ='Org structure'!E127 -> 0 | I131: 0
A132: ='Org structure'!E128 -> 0 | I132: 0
A133: ='Org structure'!E129 -> 0 | I133: 0
A134: ='Org structure'!E130 -> 0 | I134: =G134-H134 -> 0 | J134: =IF(I134=0,"",I134/H134) -> 
A135: ='Org structure'!E131 -> 0 | I135: 0
A136: ='Org structure'!E132 -> 0 | I136: 0
A137: ='Org structure'!E133 -> 0 | I137: 0
A138: ='Org structure'!A14 -> 0 | C138: =SUM(C139:C148) -> 0 | D138: =SUM(D139:D148) -> 0 | E138: 0 | F138: 0 | G138: 0 | H138: 0 | I138: 0 | K138: 0
A139: ='Org structure'!E135 -> 13.1 - [Name of sub-vote] | I139: 0
A140: ='Org structure'!E136 -> 0 | I140: 0
A141: ='Org structure'!E137 -> 0 | I141: 0
A142: ='Org structure'!E138 -> 0 | I142: 0
A143: ='Org structure'!E139 -> 0 | I143: 0
A144: ='Org structure'!E140 -> 0 | I144: 0
A145: ='Org structure'!E141 -> 0 | I145: 0
A146: ='Org structure'!E142 -> 0 | I146: 0
A147: ='Org structure'!E143 -> 0 | I147: 0
A148: ='Org structure'!E144 -> 0 | I148: 0
A149: ='Org structure'!A15 -> 0 | C149: =SUM(C150:C159) -> 0 | D149: =SUM(D150:D159) -> 0 | E149: 0 | F149: 0 | G149: 0 | H149: 0 | I149: 0 | K149: 0
A150: ='Org structure'!E146 -> 14.1 - [Name of sub-vote] | I150: 0
A151: ='Org structure'!E147 -> 0 | I151: 0
A152: ='Org structure'!E148 -> 0 | I152: 0
A153: ='Org structure'!E149 -> 0 | I153: 0
A154: ='Org structure'!E150 -> 0 | I154: 0
A155: ='Org structure'!E151 -> 0 | I155: 0
A156: ='Org structure'!E152 -> 0 | I156: 0
A157: ='Org structure'!E153 -> 0 | I157: 0
A158: ='Org structure'!E154 -> 0 | I158: 0
A159: ='Org structure'!E155 -> 0 | I159: 0
A160: ='Org structure'!A16 -> 0 | C160: =SUM(C161:C170) -> 0 | D160: =SUM(D161:D170) -> 0 | E160: 0 | F160: 0 | G160: 0 | H160: 0 | I160: 0 | K160: 0
A161: ='Org structure'!E157 -> 15.1 - [Name of sub-vote] | I161: 0
A162: ='Org structure'!E158 -> 0 | I162: 0
A163: ='Org structure'!E159 -> 0 | I163: 0
A164: ='Org structure'!E160 -> 0 | I164: 0
A165: ='Org structure'!E161 -> 0 | I165: 0
A166: ='Org structure'!E162 -> 0 | I166: 0
A167: ='Org structure'!E163 -> 0 | I167: 0
A168: ='Org structure'!E164 -> 0 | I168: 0
A169: ='Org structure'!E165 -> 0 | I169: 0
A170: ='Org structure'!E166 -> 0 | I170: 0 | L170: =SUM(L78:L81) -> 0 | M170: 0 | N170: 0 | O170: 0 | P170: 0 | Q170: 0 | R170: 0 | S170: 0 | T170: 0 | U170: 0 | V170: 0 | W170: 0
A171: Total Revenue by Vote | B171: 2 | C171: =C6+C17+C28+C39+C50+C61+C72+C83+C94+C105+C116+C127+C138+C149+C160 -> 0 | D171: =D6+D17+D28+D39+D50+D61+D72+D83+D94+D105+D116+D127+D138+D149+D160 -> 480024585.3 | E171: 0 | F171: 133866039 | G171: 303376400 | H171: 240012288 | I171: 63364112 | J171: 0.2640036163 | K171: 0
I172: 0
A173: Expenditure by Vote | B173: 1 | I173: 0
A174: ='Org structure'!A2 -> Vote 1 - Executive & Council | C174: =SUM(C175:C184) -> 0 | D174: 62817204 | E174: 0 | F174: 3493771 | G174: 21919592 | H174: 31408608 | I174: -9489016 | J174: -0.3021151399 | K174: 0
A175: ='Org structure'!E3 -> 1,1 - Mayor and Council | D175: 51448791 | F175: 3254323 | G175: 19538286 | H175: 25724388 | I175: -6186102 | J175: -0.2404761583
A176: ='Org structure'!E4 -> 1,2 - Municipal Manager | D176: 11368413 | F176: 239448 | G176: 2381306 | H176: 5684220 | I176: -3302914 | J176: -0.5810672353
A177: ='Org structure'!E5 -> 0 | I177: 0
A178: ='Org structure'!E6 -> 0 | I178: 0
A179: ='Org structure'!E7 -> 0 | I179: 0
A180: ='Org structure'!E8 -> 0 | I180: 0
A181: ='Org structure'!E9 -> 0 | I181: 0
A182: ='Org structure'!E10 -> 0 | I182: 0
A183: ='Org structure'!E11 -> 0 | I183: 0
A184: ='Org structure'!E12 -> 0 | I184: 0
A185: ='Org structure'!A3 -> Vote 2 - Finance and Administration | C185: =SUM(C186:C195) -> 0 | D185: =SUM(D186:D195) -> 141413689 | E185: =SUM(E186:E195) -> 0 | F185: 9777474 | G185: 50660788 | H185: 70706880 | I185: -20046092 | J185: -0.2835097801 | K185: 0
A186: ='Org structure'!E14 -> 2,1 - Administrative and Corporate Support | D186: 44783051 | F186: 2372913 | G186: 10925372 | H186: 22391538 | I186: -11466166 | J186: -0.5120758565
A187: ='Org structure'!E15 -> 2,2 - Asset Management | D187: 5811335 | F187: 329997 | G187: 4927551 | H187: 2905662 | I187: 2021889 | J187: 0.695844527
A188: ='Org structure'!E16 -> 2,3 - Budget and Treasury Office | D188: 45072896 | F188: 4058796 | G188: 14644481 | H188: 22536450 | I188: -7891969 | J188: -0.350186875
A189: ='Org structure'!E17 -> 2,4 - Human Resource | D189: 13827743 | F189: 795611 | G189: 7743293 | H189: 6913884 | I189: 829409 | J189: 0.1199628168
A190: ='Org structure'!E18 -> 2,5 - Information Technology | D190: 7626819 | F190: 156018 | G190: 2070514 | H190: 3813408 | I190: -1742894 | J190: -0.4570436733
A191: ='Org structure'!E19 -> 2,6 - Legal Services | D191: 7216083 | F191: 897137 | G191: 3720123 | H191: 3608058 | I191: 112065 | J191: 0.03105964483
A192: ='Org structure'!E20 -> 2,7 - Customer Relation and Coordination | D192: 3500459 | F192: 217951 | G192: 975331 | H192: 1750230 | I192: -774899 | J192: -0.4427412397
A193: ='Org structure'!E21 -> 2,8 - Property Services | D193: 9530918 | F193: 716796 | G193: 4216345 | H193: 4765452 | I193: -549107 | J193: -0.1152266354
A194: ='Org structure'!E22 -> 2,9 - Risk Management | D194: 1064747 | F194: 0 | G194: 300121 | H194: 532380 | I194: -232259 | J194: -0.4362654495
A195: ='Org structure'!E23 -> 2.10 - Supply Chain Management | D195: 2979638 | F195: 232255 | G195: 1137657 | H195: 1489818 | I195: -352161 | J195: -0.2363785375
A196: ='Org structure'!A4 -> Vote 3 - Internal Audit | C196: =SUM(C197:C206) -> 0 | D196: 2772839 | E196: 0 | F196: 151934 | G196: 805774 | H196: 1386426 | I196: -580652 | J196: -0.4188121111 | K196: 0
A197: ='Org structure'!E25 -> 3,1 - Governance Function | D197: 2772839 | F197: 151934 | G197: 805774 | H197: 1386426 | I197: -580652 | J197: -0.4188121111
A198: ='Org structure'!E26 -> 0 | I198: =G198-H198 -> 0 | J198: =IF(I198=0,"",I198/H198) -> 
A199: ='Org structure'!E27 -> 0 | I199: 0
A200: ='Org structure'!E28 -> 0 | I200: 0
... 147 more rows

Sheet C4-FinPerf RE
A1: =muni& " - "&S71B& " - "&date -> LIM332 Greater Letaba - Table C4 Monthly Budget Statement - Financial Performance (revenue and expenditure) - M06 December
A2: =desc -> Description | B2: =head27 -> Ref | C2: =Head1 -> 2019/20 | D2: =Head2 -> Budget Year 2020/21
C3: =Head5 -> Audited Outcome | D3: =Head6 -> Original Budget | E3: =Head7 -> Adjusted Budget | F3: =Head38 -> Monthly actual | G3: =Head39 -> YearTD actual | H3: =Head40 -> YearTD budget | I3: =Head41 -> YTD variance | J3: =Head41 -> YTD variance | K3: =Head8 -> Full Year Forecast
A4: R thousands | J4: %
A5: Revenue By Source
A6: Property rates | D6: 18538486 | F6: 972343 | G6: 14751243 | H6: 9269238 | I6: =G6-H6 -> 5482005 | J6: =IF(I6=0,"",I6/H6) -> 0.5914191652
A7: Service charges - electricity revenue | D7: 15163463.32 | F7: 1726542 | G7: 8928881 | H7: 9594192 | I7: -665311 | J7: -0.069345183
A8: Service charges - water revenue | F8: 0 | G8: 0 | H8: 0 | I8: 0
A9: Service charges - sanitation revenue | F9: 0 | G9: 0 | H9: 0 | I9: 0
A10: Service charges - refuse revenue | D10: 6972296 | F10: 418272 | G10: 2136282 | H10: 3486150 | I10: -1349868 | J10: -0.387208812
A12: Rental of facilities and equipment | D12: 156757 | F12: 13165 | G12: 38509 | H12: 78378 | I12: -39869 | J12: -0.508675904
A13: Interest earned - external investments | D13: 30072 | F13: 166777 | G13: 968362 | H13: 1005126 | I13: -36764 | J13: -0.03657650882
A14: Interest earned - outstanding debtors | D14: 10687728 | F14: 437824 | G14: 2768739 | H14: 5343864 | I14: -2575125 | J14: -0.4818844566
A15: Dividends received | D15: 0 | F15: 0 | G15: 0 | H15: 0 | I15: 0
A16: Fines, penalties and forfeits | D16: 86286 | F16: 0 | G16: 7420 | H16: 43140 | I16: -35720 | J16: -0.8280018544
A17: Licences and permits | D17: 15595856 | F17: 0 | G17: 7535753 | H17: 7797930 | I17: -262177 | J17: -0.03362135849
A18: Agency services | D18: 14886123 | F18: 0 | G18: 900113 | H18: 7443060 | I18: -6542947 | J18: -0.8790668085
A19: Transfers and subsidies | D19: 305403000 | F19: 130109625 | G19: 265028412 | H19: 181315998 | I19: 83712414 | J19: 0.4616934795
A20: Other revenue | D20: 27641199.02 | F20: 21080 | G20: 312391 | H20: =10818054+3500000 -> 14318054 | I20: -14005663 | J20: -0.9781820211
A21: Gains | D21: 634319 | F21: 0 | G21: 0 | H21: 317160 | I21: -317160 | J21: -1
A22: Total Revenue (excluding capital transfers and contributions) | C22: =SUM(C6:C10)+SUM(C12:C21) -> 0 | D22: 415795585.3 | E22: 0 | F22: 133865628 | G22: 303376105 | H22: 240012290 | I22: 63363815 | J22: 0.2640023767 | K22: =SUM(K6:K10)+SUM(K12:K21) -> 0
A24: Expenditure By Type
A25: Employee related costs | D25: 119396185 | F25: 11416504 | G25: 59441887 | H25: 62285700 | I25: =G25-H25 -> -2843813 | J25: =IF(I25=0,"",I25/H25) -> -0.04565755864
A26: Remuneration of councillors | D26: 25155137 | F26: 2713127 | G26: 12945873 | H26: 12577566 | I26: 368307 | J26: 0.02928285171
A27: Debt impairment | D27: 2150991 | F27: 45000 | G27: 45000 | H27: 1075500 | I27: -1030500 | J27: -0.9581589958
A28: Depreciation & asset impairment | D28: 13023086 | F28: 0 | G28: 8696 | H28: 6511542 | I28: -6502846 | J28: -0.9986645252
A29: Finance charges | F29: 0 | G29: 0 | H29: 0 | I29: 0
A30: Bulk purchases | D30: 19389506 | F30: 2857696 | G30: 12370103 | H30: 9694752 | I30: 2675351 | J30: 0.2759586836
A31: Other materials | F31: 885590 | G31: 6503642 | H31: 8601078 | I31: -2097436 | J31: -0.2438573397
A32: Contracted services | D32: 32718181.07 | F32: 4986659 | G32: 25625626 | H32: 47368362 | I32: -21742736 | J32: -0.4590138878
A33: Transfers and subsidies | D33: 0 | F33: 0 | G33: 0 | H33: 0 | I33: 0
A34: Other expenditure | D34: 148519499.9 | F34: =4341914-2616000 -> 1725914 | G34: =26851109-11556000 -> 15295109 | H34: 32061840 | I34: -16766731 | J34: -0.5229497434
A35: Losses | F35: 0 | G35: 0 | H35: 0 | I35: 0
A36: Total Expenditure | C36: =SUM(C25:C35) -> 0 | D36: =SUM(D25:D35) -> 360352586 | E36: =SUM(E25:E35) -> 0 | F36: 24630490 | G36: 132235936 | H36: 180176340 | I36: -47940404 | J36: -0.2660749131 | K36: 0
A38: Surplus/(Deficit) | C38: =C22-C36 -> 0 | D38: 55442999.34 | E38: 0 | F38: 109235138 | G38: 171140169 | H38: 59835950 | I38: =I22-I36 -> 111304219 | J38: 1.860156294 | K38: =K22-K36 -> 0
A39: Transfers and subsidies - capital (monetary allocations) (National / Provincial and District) | D39: 57229000 | F39: 0 | G39: 53090000 | H39: 0 | I39: =G39-H39 -> 53090000
A40: Transfers and subsidies - capital (monetary allocations) (National / Provincial Departmental Agencies, Households, Non-profit Institutions, Private Enterprises, Public Corporatons, Higher Educational Institutions) | F40: 0 | G40: 0 | I40: =G40-H40 -> 0
A41: Transfers and subsidies - capital (in-kind - all) | D41: 7000000 | F41: 0 | G41: 3000000 | H41: 0 | I41: =G41-H41 -> 3000000
A42: Surplus/(Deficit) after capital transfers & contributions | C42: =C38+SUM(C39:C41) -> 0 | D42: 119671999.3 | E42: 0 | F42: 109235138 | G42: 227230169 | H42: 59835950 | K42: =K38+SUM(K39:K41) -> 0
A43: Taxation | I43: =G43-H43 -> 0 | J43: =IF(I43=0,"",I43/H43) -> 
A44: Surplus/(Deficit) after taxation | C44: =C42-C43 -> 0 | D44: 119671999.3 | E44: 0 | F44: 109235138 | G44: 227230169 | H44: 59835950 | K44: =K42-K43 -> 0
A45: Attributable to minorities
A46: Surplus/(Deficit) attributable to municipality | C46: =SUM(C44:C45) -> 0 | D46: 119671999.3 | E46: 0 | F46: 109235138 | G46: 227230169 | H46: 59835950 | K46: =SUM(K44:K45) -> 0
A47: Share of surplus/ (deficit) of associate
A48: Surplus/ (Deficit) for the year | C48: =C46+C47 -> 0 | D48: 119671999.3 | E48: 0 | F48: 109235138 | G48: 227230169 | H48: 59835950 | K48: =K46+K47 -> 0
A49: =head27a -> References
A50: 1. Material variances to be explained on Table SC1
A53: =A22&" including capital transfers/contributions etc" -> Total Revenue (excluding capital transfers and contributions) including capital transfers/contributions etc | C53: =C22+SUM(C39:C41) -> 0 | D53: 480024585.3 | E53: 0 | F53: 133865628 | G53: 359466105 | H53: 240012290 | K53: =K22+SUM(K39:K41) -> 0

Sheet C5-Capex
A1: =muni& " - "&S71D& " - "&date -> LIM332 Greater Letaba - Table C5 Monthly Budget Statement - Capital Expenditure (municipal vote, functional classification and funding) - M06 December
A2: =Vdesc -> Vote Description | B2: =head27 -> Ref | C2: =Head1 -> 2019/20 | D2: =Head2 -> Budget Year 2020/21
C3: =Head5 -> Audited Outcome | D3: =Head6 -> Original Budget | E3: =Head7 -> Adjusted Budget | F3: =Head38 -> Monthly actual | G3: =Head39 -> YearTD actual | H3: =Head40 -> YearTD budget | I3: =Head41 -> YTD variance | J3: =Head41 -> YTD variance | K3: =Head8 -> Full Year Forecast
A4: R thousands | B4: 1 | J4: %
A5: Multi-Year expenditure appropriation | B5: 2
A6: ='Org structure'!A2 -> Vote 1 - Executive & Council | C6: ='C5C'!C7 -> 0 | D6: ='C5C'!D7 -> 0 | E6: ='C5C'!E7 -> 0 | F6: ='C5C'!F7 -> 0 | G6: ='C5C'!G7 -> 0 | H6: ='C5C'!H7 -> 0 | I6: =G6-H6 -> 0 | J6: =IF(I6=0,"",I6/H6) ->  | K6: ='C5C'!K7 -> 0
A7: ='Org structure'!A3 -> Vote 2 - Finance and Administration | C7: ='C5C'!C18 -> 0 | D7: ='C5C'!D18 -> 0 | E7: ='C5C'!E18 -> 0 | F7: ='C5C'!F18 -> 0 | G7: ='C5C'!G18 -> 0 | H7: ='C5C'!H18 -> 0 | I7: =G7-H7 -> 0 | J7: =IF(I7=0,"",I7/H7) ->  | K7: ='C5C'!K18 -> 0
A8: ='Org structure'!A4 -> Vote 3 - Internal Audit | C8: ='C5C'!C29 -> 0 | D8: ='C5C'!D29 -> 0 | E8: ='C5C'!E29 -> 0 | F8: ='C5C'!F29 -> 0 | G8: ='C5C'!G29 -> 0 | H8: ='C5C'!H29 -> 0 | I8: =G8-H8 -> 0 | J8: =IF(I8=0,"",I8/H8) ->  | K8: ='C5C'!K29 -> 0
A9: ='Org structure'!A5 -> Vote 4 - Community and Public Safety | C9: ='C5C'!C40 -> 0 | D9: ='C5C'!D40 -> 5450000 | E9: ='C5C'!E40 -> 0 | F9: ='C5C'!F40 -> 7132639 | G9: ='C5C'!G40 -> 7658260 | H9: ='C5C'!H40 -> 19386522 | I9: -11728262 | J9: -0.6049698858 | K9: ='C5C'!K40 -> 0
A10: ='Org structure'!A6 -> Vote 5 - Sports and Recreation | C10: ='C5C'!C51 -> 0 | D10: ='C5C'!D51 -> 33500625.82 | E10: ='C5C'!E51 -> 0 | F10: ='C5C'!F51 -> 382275 | G10: ='C5C'!G51 -> 8136398 | H10: ='C5C'!H51 -> 1150002 | I10: 6986396 | J10: 6.075116391 | K10: ='C5C'!K51 -> 0
A11: ='Org structure'!A7 -> Vote 6 - Housing | C11: ='C5C'!C62 -> 0 | D11: ='C5C'!D62 -> 0 | E11: ='C5C'!E62 -> 0 | F11: ='C5C'!F62 -> 0 | G11: ='C5C'!G62 -> 0 | H11: ='C5C'!H62 -> 0 | I11: 0 | K11: ='C5C'!K62 -> 0
A12: ='Org structure'!A8 -> Vote 7 - Planning and development | C12: ='C5C'!C73 -> 0 | D12: ='C5C'!D73 -> 0 | E12: ='C5C'!E73 -> 0 | F12: ='C5C'!F73 -> 0 | G12: ='C5C'!G73 -> 0 | H12: ='C5C'!H73 -> 0 | I12: 0 | K12: ='C5C'!K73 -> 0
A13: ='Org structure'!A9 -> Vote 8 - Road Transport | C13: ='C5C'!C84 -> 0 | D13: ='C5C'!D84 -> 35503861.18 | E13: ='C5C'!E84 -> 0 | F13: ='C5C'!F84 -> 4177906 | G13: ='C5C'!G84 -> 10245722 | H13: ='C5C'!H84 -> 32589498 | I13: -22343776 | J13: -0.6856127701 | K13: ='C5C'!K84 -> 0
A14: ='Org structure'!A10 -> Vote 9 - Energy Sources | C14: ='C5C'!C95 -> 0 | D14: ='C5C'!D95 -> 0 | E14: ='C5C'!E95 -> 0 | F14: ='C5C'!F95 -> 0 | G14: ='C5C'!G95 -> 0 | H14: ='C5C'!H95 -> 0 | I14: 0 | K14: ='C5C'!K95 -> 0
A15: ='Org structure'!A11 -> Vote 10 - Waste Water Management | C15: ='C5C'!C106 -> 0 | D15: ='C5C'!D106 -> 0 | E15: ='C5C'!E106 -> 0 | F15: ='C5C'!F106 -> 0 | G15: ='C5C'!G106 -> 0 | H15: ='C5C'!H106 -> 0 | I15: 0 | K15: ='C5C'!K106 -> 0
A16: ='Org structure'!A12 -> Vote 11 - Waste Management | C16: ='C5C'!C117 -> 0 | D16: ='C5C'!D117 -> 0 | E16: ='C5C'!E117 -> 0 | F16: ='C5C'!F117 -> 0 | G16: ='C5C'!G117 -> 0 | H16: ='C5C'!H117 -> 0 | I16: 0 | K16: ='C5C'!K117 -> 0
A17: ='Org structure'!A13 -> 0 | C17: ='C5C'!C128 -> 0 | D17: ='C5C'!D128 -> 0 | E17: ='C5C'!E128 -> 0 | F17: ='C5C'!F128 -> 0 | G17: ='C5C'!G128 -> 0 | H17: ='C5C'!H128 -> 0 | I17: 0 | K17: ='C5C'!K128 -> 0
A18: ='Org structure'!A14 -> 0 | C18: ='C5C'!C139 -> 0 | D18: ='C5C'!D139 -> 0 | E18: ='C5C'!E139 -> 0 | F18: ='C5C'!F139 -> 0 | G18: ='C5C'!G139 -> 0 | H18: ='C5C'!H139 -> 0 | I18: =G18-H18 -> 0 | J18: =IF(I18=0,"",I18/H18) ->  | K18: ='C5C'!K139 -> 0
A19: ='Org structure'!A15 -> 0 | C19: ='C5C'!C150 -> 0 | D19: ='C5C'!D150 -> 0 | E19: ='C5C'!E150 -> 0 | F19: ='C5C'!F150 -> 0 | G19: ='C5C'!G150 -> 0 | H19: ='C5C'!H150 -> 0 | I19: =G19-H19 -> 0 | J19: =IF(I19=0,"",I19/H19) ->  | K19: ='C5C'!K150 -> 0
A20: ='Org structure'!A16 -> 0 | C20: ='C5C'!C161 -> 0 | D20: ='C5C'!D161 -> 0 | E20: ='C5C'!E161 -> 0 | F20: ='C5C'!F161 -> 0 | G20: ='C5C'!G161 -> 0 | H20: ='C5C'!H161 -> 0 | I20: =G20-H20 -> 0 | J20: =IF(I20=0,"",I20/H20) ->  | K20: ='C5C'!K161 -> 0
A21: Total Capital Multi-year expenditure | B21: 4,7 | C21: =SUM(C6:C20) -> 0 | D21: =SUM(D6:D20) -> 74454487 | E21: 0 | F21: 11692820 | G21: 26040380 | H21: 53126022 | I21: -27085642 | J21: =IF(I21=0,"",I21/H21) -> -0.5098375707 | K21: =SUM(K6:K20) -> 0
A23: Single Year expenditure appropriation | B23: 2
A24: ='Org structure'!A2 -> Vote 1 - Executive & Council | C24: ='C5C'!C176 -> 0 | D24: ='C5C'!D176 -> 400000 | E24: ='C5C'!E176 -> 0 | F24: ='C5C'!F176 -> 0 | G24: ='C5C'!G176 -> 0 | H24: ='C5C'!H176 -> 0 | I24: ='C5C'!I176 -> 0 | J24: =IF(I24=0,"",I24/H24) ->  | K24: ='C5C'!K176 -> 0
A25: ='Org structure'!A3 -> Vote 2 - Finance and Administration | C25: ='C5C'!C187 -> 0 | D25: ='C5C'!D187 -> 2010000 | E25: ='C5C'!E187 -> 0 | F25: ='C5C'!F187 -> 175217 | G25: ='C5C'!G187 -> 30958470 | H25: ='C5C'!H187 -> 2454994 | I25: ='C5C'!I187 -> 28503476 | J25: =IF(I25=0,"",I25/H25) -> 11.61040557 | K25: ='C5C'!K187 -> 0
A26: ='Org structure'!A4 -> Vote 3 - Internal Audit | C26: ='C5C'!C198 -> 0 | D26: ='C5C'!D198 -> 0 | E26: ='C5C'!E198 -> 0 | F26: ='C5C'!F198 -> 0 | G26: ='C5C'!G198 -> 0 | H26: ='C5C'!H198 -> 0 | I26: ='C5C'!I198 -> 0 | K26: ='C5C'!K198 -> 0
A27: ='Org structure'!A5 -> Vote 4 - Community and Public Safety | C27: ='C5C'!C209 -> 0 | D27: ='C5C'!D209 -> 520000 | E27: ='C5C'!E209 -> 0 | F27: ='C5C'!F209 -> 0 | G27: ='C5C'!G209 -> 354522 | H27: ='C5C'!H209 -> 0 | I27: ='C5C'!I209 -> 354522 | K27: ='C5C'!K209 -> 0
A28: ='Org structure'!A6 -> Vote 5 - Sports and Recreation | C28: ='C5C'!C220 -> 0 | D28: ='C5C'!D220 -> 0 | E28: ='C5C'!E220 -> 0 | F28: ='C5C'!F220 -> 0 | G28: ='C5C'!G220 -> 0 | H28: ='C5C'!H220 -> 0 | I28: ='C5C'!I220 -> 0 | K28: ='C5C'!K220 -> 0
A29: ='Org structure'!A7 -> Vote 6 - Housing | C29: ='C5C'!C231 -> 0 | D29: ='C5C'!D231 -> 0 | E29: ='C5C'!E231 -> 0 | F29: ='C5C'!F231 -> 0 | G29: ='C5C'!G231 -> 0 | H29: ='C5C'!H231 -> 0 | I29: ='C5C'!I231 -> 0 | K29: ='C5C'!K231 -> 0
A30: ='Org structure'!A8 -> Vote 7 - Planning and development | C30: ='C5C'!C242 -> 0 | D30: ='C5C'!D242 -> 0 | E30: ='C5C'!E242 -> 0 | F30: ='C5C'!F242 -> 0 | G30: ='C5C'!G242 -> 0 | H30: ='C5C'!H242 -> 0 | I30: ='C5C'!I242 -> 0 | K30: ='C5C'!K242 -> 0
A31: ='Org structure'!A9 -> Vote 8 - Road Transport | C31: ='C5C'!C253 -> 0 | D31: ='C5C'!D253 -> 29277515 | E31: ='C5C'!E253 -> 0 | F31: ='C5C'!F253 -> 0 | G31: ='C5C'!G253 -> 0 | H31: ='C5C'!H253 -> 0 | I31: ='C5C'!I253 -> 0 | K31: ='C5C'!K253 -> 0
A32: ='Org structure'!A10 -> Vote 9 - Energy Sources | C32: ='C5C'!C264 -> 0 | D32: ='C5C'!D264 -> 8110000 | E32: ='C5C'!E264 -> 0 | F32: ='C5C'!F264 -> 174000 | G32: ='C5C'!G264 -> 214688 | H32: ='C5C'!H264 -> 4054998 | I32: ='C5C'!I264 -> -3840310 | J32: -0.9470559542 | K32: ='C5C'!K264 -> 0
A33: ='Org structure'!A11 -> Vote 10 - Waste Water Management | C33: ='C5C'!C275 -> 0 | D33: ='C5C'!D275 -> 2000000 | E33: ='C5C'!E275 -> 0 | F33: ='C5C'!F275 -> 0 | G33: ='C5C'!G275 -> 802847 | H33: ='C5C'!H275 -> 0 | I33: ='C5C'!I275 -> 802847 | K33: ='C5C'!K275 -> 0
A34: ='Org structure'!A12 -> Vote 11 - Waste Management | C34: ='C5C'!C286 -> 0 | D34: ='C5C'!D286 -> 2900000 | E34: ='C5C'!E286 -> 0 | F34: ='C5C'!F286 -> 0 | G34: ='C5C'!G286 -> 0 | H34: ='C5C'!H286 -> 0 | I34: ='C5C'!I286 -> 0 | K34: ='C5C'!K286 -> 0
A35: ='Org structure'!A13 -> 0 | C35: ='C5C'!C297 -> 0 | D35: ='C5C'!D297 -> 0 | E35: ='C5C'!E297 -> 0 | F35: ='C5C'!F297 -> 0 | G35: ='C5C'!G297 -> 0 | H35: ='C5C'!H297 -> 0 | I35: ='C5C'!I297 -> 0 | K35: ='C5C'!K297 -> 0
A36: ='Org structure'!A14 -> 0 | C36: ='C5C'!C308 -> 0 | D36: ='C5C'!D308 -> 0 | E36: ='C5C'!E308 -> 0 | F36: ='C5C'!F308 -> 0 | G36: ='C5C'!G308 -> 0 | H36: ='C5C'!H308 -> 0 | I36: ='C5C'!I308 -> 0 | K36: ='C5C'!K308 -> 0
A37: ='Org structure'!A15 -> 0 | C37: ='C5C'!C319 -> 0 | D37: ='C5C'!D319 -> 0 | E37: ='C5C'!E319 -> 0 | F37: ='C5C'!F319 -> 0 | G37: ='C5C'!G319 -> 0 | H37: ='C5C'!H319 -> 0 | I37: ='C5C'!I319 -> 0 | K37: ='C5C'!K319 -> 0
A38: ='Org structure'!A16 -> 0 | C38: ='C5C'!C330 -> 0 | D38: ='C5C'!D330 -> 0 | E38: ='C5C'!E330 -> 0 | F38: ='C5C'!F330 -> 0 | G38: ='C5C'!G330 -> 0 | H38: ='C5C'!H330 -> 0 | I38: ='C5C'!I330 -> 0 | K38: ='C5C'!K330 -> 0
A39: Total Capital single-year expenditure | B39: 4 | C39: =SUM(C24:C38) -> 0 | D39: 45217515 | E39: 0 | F39: 349217 | G39: 32330527 | H39: 6509992 | I39: 25820535 | J39: 3.966292893 | K39: =SUM(K24:K38) -> 0
A40: Total Capital Expenditure | C40: =C39+C21 -> 0 | D40: 119672002 | E40: 0 | F40: 12042037 | G40: 58370907 | H40: 59636014 | I40: -1265107 | J40: =IF(I40=0,"",I40/H40) -> -0.02121380882 | K40: =K39+K21 -> 0
A42: Capital Expenditure - Functional Classification
A43: Governance and administration | C43: =SUM(C44:C46) -> 0 | D43: 2410000 | E43: 0 | F43: 175217 | G43: 32116470 | H43: 1004994 | I43: =G43-H43 -> 31111476 | J43: =IF(I43=0,"",I43/H43) -> 30.95687735 | K43: =SUM(K44:K46) -> 0
A44: Executive and council | D44: 400000 | G44: 0 | I44: 0 | J44: =IF(I44=0,"",I44/H44) -> 
A45: Finance and administration | D45: =1010000+1000000 -> 2010000 | F45: 175217 | G45: 32116470 | H45: 1004994 | I45: 31111476 | J45: 30.95687735
A46: Internal audit | D46: 0 | G46: 0 | I46: 0
A47: Community and public safety | C47: =SUM(C48:C52) -> 0 | D47: 39470625 | E47: 0 | F47: 7514914 | G47: 15794658 | H47: 20536524 | I47: -4741866 | J47: -0.2308991531 | K47: =SUM(K48:K52) -> 0
A48: Community and social services | D48: =400000+5450000 -> 5850000 | F48: 7132639 | G48: 7658260 | H48: 19386522 | I48: -11728262 | J48: -0.6049698858
A49: Sport and recreation | D49: =2300000+6876663+10700000+13623962 -> 33500625 | F49: 382275 | G49: =2294398+5842000 -> 8136398 | H49: 1150002 | I49: 6986396 | J49: 6.075116391
A50: Public safety | D50: =120000 -> 120000 | I50: 0
A51: Housing | I51: 0
A52: Health | I52: 0
A53: Economic and environmental services | C53: =SUM(C54:C56) -> 0 | D53: 64781375 | E53: 0 | F53: 4177906 | G53: 10245722 | H53: 32589498 | I53: -22343776 | J53: -0.6856127701 | K53: =SUM(K54:K56) -> 0
A54: Planning and development | F54: 0 | G54: 0 | H54: 0 | I54: 0
A55: Road transport | D55: 64781375 | F55: 4177906 | G55: =5745722+4500000 -> 10245722 | H55: 32589498 | I55: -22343776 | J55: -0.6856127701
A56: Environmental protection | F56: 0 | G56: 0 | H56: 0 | I56: 0
A57: Trading services | C57: =SUM(C58:C61) -> 0 | D57: 13010000 | E57: 0 | F57: 174000 | G57: 214688 | H57: 5505000 | I57: -5290312 | J57: -0.9610012716 | K57: =SUM(K58:K61) -> 0
A58: Energy sources | D58: =1110000+7000000 -> 8110000 | F58: 174000 | G58: 214688 | H58: 4054998 | I58: -3840310 | J58: -0.9470559542
A59: Water management | F59: 0 | G59: 0 | H59: 0 | I59: 0
A60: Waste water management | D60: 2000000 | F60: 0 | G60: 0 | H60: 0 | I60: 0
A61: Waste management | D61: 2900000 | F61: 0 | G61: 0 | H61: 1450002 | I61: -1450002 | J61: -1
A62: Other | F62: 0 | G62: 0 | H62: 0 | I62: 0
A63: Total Capital Expenditure - Functional Classification | B63: 3 | C63: =C43+C47+C53+C57+C62 -> 0 | D63: =D43+D47+D53+D57+D62 -> 119672000 | E63: 0 | F63: 12042037 | G63: 58371538 | H63: 59636016 | I63: -1264478 | J63: -0.02120326079 | K63: =K43+K47+K53+K57+K62 -> 0
A65: Funded by:
A66: National Government | D66: 57229000 | F66: 7485596 | G66: 28830458.88 | H66: 32445211 | I66: =G66-H66 -> -3614752.12 | J66: =IF(I66=0,"",I66/H66) -> -0.1114109605
A67: Provincial Government | I67: 0
A68: District Municipality | I68: 0
A69: ='C4-FinPerf RE'!A40 -> Transfers and subsidies - capital (monetary allocations) (National / Provincial Departmental Agencies, Households, Non-profit Institutions, Private Enterprises, Public Corporatons, Higher Educational Institutions) | D69: 7000000 | F69: 0 | G69: 0 | H69: 0 | I69: 0
A70: Transfers recognised - capital | C70: =SUM(C66:C69) -> 0 | D70: 64229000 | E70: 0 | F70: 7485596 | G70: 28830458.88 | H70: 32445211 | I70: -3614752.12 | J70: -0.1114109605 | K70: =SUM(K66:K69) -> 0
A72: Borrowing | B72: 6 | I72: 0
A73: Internally generated funds | D73: 55443000 | F73: =8048175-3491734 -> 4556441 | G73: 29540449 | H73: 27190803 | I73: 2349646 | J73: 0.0864132626
A74: Total Capital Funding | C74: =+C70+C72+C73 -> 0 | D74: 119672000 | E74: 0 | F74: 12042037 | G74: 58370907.88 | H74: 59636014 | I74: -1265106.12 | J74: -0.02121379407 | K74: =+K70+K72+K73 -> 0
A75: =head27a -> References
A76: 1. Municipalities may choose to appropriate for capital expenditure for three years or for one year (if one year appropriation projected expenditure required for yr2 and yr3).
A77: 2. Include capital component of PPP unitary payment
A78: 3. Capital expenditure by functional classification must reconcile to the total of multi-year and single year appropriations
A79: 4. Include expenditure on investment property, intangible and biological assets
A81: 6. Include finance leases and PPP capital funding component of unitary payment - total borrowing/repayments to reconcile to changes in Table SA17
A86: check balance | C86: =C40-C74 -> 0 | D86: =D40-D74 -> 2 | E86: 0 | F86: 0 | G86: -0.8799999952 | H86: 0 | K86: 0

Sheet C5C
A1: =muni& " - "&S71D& " - "&"A"& " - "&date -> LIM332 Greater Letaba - Table C5 Monthly Budget Statement - Capital Expenditure (municipal vote, functional classification and funding) - A - M06 December
A2: =Vdesc -> Vote Description | B2: =head27 -> Ref | C2: =Head1 -> 2019/20 | D2: =Head2 -> Budget Year 2020/21 | L2: =Head4 -> 
A3: R thousand | C3: =Head5 -> Audited Outcome | D3: =Head6 -> Original Budget | E3: =Head7 -> Adjusted Budget | F3: =Head38 -> Monthly actual | G3: =Head39 -> YearTD actual | H3: =Head40 -> YearTD budget | I3: =Head41 -> YTD variance | J3: =Head41 -> YTD variance | K3: =Head8 -> Full Year Forecast | L3: =Head12 -> Forecast 2010/11 | M3: =Head13 -> Forecast 2011/12 | N3: =Head14 -> Forecast 2012/13 | O3: =Head15 -> Forecast 2013/14 | P3: =Head16 -> Forecast 2014/15 | Q3: =Head17 -> Forecast 2015/16 | R3: =Head18 -> Forecast 2016/17 | S3: =Head19 -> Forecast 2017/18 | T3: =Head20 -> Forecast 2018/19 | U3: =Head21 -> Forecast 2019/20 | V3: =Head22 -> Forecast 2020/21 | W3: =Head23 -> Forecast 2021/22
J4: %
A5: Capital expenditure - Municipal Vote
A6: Expenditure of multi-year capital appropriation | B6: 1
A7: ='Org structure'!A2 -> Vote 1 - Executive & Council | C7: =SUM(C8:C17) -> 0 | D7: =SUM(D8:D17) -> 0 | E7: 0 | F7: 0 | G7: 0 | H7: 0 | I7: =G7-H7 -> 0 | J7: =IF(I7=0,"",I7/H7) ->  | K7: 0
A8: ='Org structure'!E3 -> 1,1 - Mayor and Council | I8: 0
A9: ='Org structure'!E4 -> 1,2 - Municipal Manager | I9: 0
A10: ='Org structure'!E5 -> 0 | I10: 0
A11: ='Org structure'!E6 -> 0 | I11: 0
A12: ='Org structure'!E7 -> 0 | I12: 0
A13: ='Org structure'!E8 -> 0 | I13: 0
A14: ='Org structure'!E9 -> 0 | I14: 0
A15: ='Org structure'!E10 -> 0 | I15: 0
A16: ='Org structure'!E11 -> 0 | I16: 0
A17: ='Org structure'!E12 -> 0 | I17: 0
A18: ='Org structure'!A3 -> Vote 2 - Finance and Administration | C18: =SUM(C19:C28) -> 0 | D18: =SUM(D19:D28) -> 0 | E18: 0 | F18: 0 | G18: 0 | H18: 0 | I18: 0 | K18: 0
A19: ='Org structure'!E14 -> 2,1 - Administrative and Corporate Support | I19: 0
A20: ='Org structure'!E15 -> 2,2 - Asset Management | I20: 0
A21: ='Org structure'!E16 -> 2,3 - Budget and Treasury Office | I21: 0
A22: ='Org structure'!E17 -> 2,4 - Human Resource | I22: 0
A23: ='Org structure'!E18 -> 2,5 - Information Technology | I23: 0
A24: ='Org structure'!E19 -> 2,6 - Legal Services | I24: 0
A25: ='Org structure'!E20 -> 2,7 - Customer Relation and Coordination | I25: 0
A26: ='Org structure'!E21 -> 2,8 - Property Services | I26: 0
A27: ='Org structure'!E22 -> 2,9 - Risk Management | I27: 0
A28: ='Org structure'!E23 -> 2.10 - Supply Chain Management | I28: 0
A29: ='Org structure'!A4 -> Vote 3 - Internal Audit | C29: =SUM(C30:C39) -> 0 | D29: 0 | E29: 0 | F29: 0 | G29: 0 | H29: 0 | I29: 0 | K29: 0
A30: ='Org structure'!E25 -> 3,1 - Governance Function | I30: 0
A31: ='Org structure'!E26 -> 0 | I31: 0
A32: ='Org structure'!E27 -> 0 | I32: 0
A33: ='Org structure'!E28 -> 0 | I33: 0
A34: ='Org structure'!E29 -> 0 | I34: 0
A35: ='Org structure'!E30 -> 0 | I35: 0
A36: ='Org structure'!E31 -> 0 | I36: 0
A37: ='Org structure'!E32 -> 0 | I37: 0
A38: ='Org structure'!E33 -> 0 | I38: 0
A39: ='Org structure'!E34 -> 0 | I39: 0
A40: ='Org structure'!A5 -> Vote 4 - Community and Public Safety | C40: =SUM(C41:C50) -> 0 | D40: 5450000 | E40: 0 | F40: 7132639 | G40: 7658260 | H40: 19386522 | I40: -11728262 | J40: -0.6049698858 | K40: 0
A41: ='Org structure'!E36 -> 4,1 - Cemetries and crematoriums | I41: 0
A42: ='Org structure'!E37 -> 4,2 - Community halls and Facilities | D42: 5450000 | F42: 7132639 | G42: 7658260 | H42: 19386522 | I42: =G42-H42 -> -11728262 | J42: -0.6049698858
A43: ='Org structure'!E38 -> 4,3 - Disaster Management | I43: 0
A44: ='Org structure'!E39 -> 4,4 - Libraries and Archives | I44: 0
A45: ='Org structure'!E40 -> 0 | I45: 0
A46: ='Org structure'!E41 -> 0 | I46: 0
A47: ='Org structure'!E42 -> 0 | I47: 0
A48: ='Org structure'!E43 -> 0 | I48: 0
A49: ='Org structure'!E44 -> 0 | I49: 0
A50: ='Org structure'!E45 -> 0 | I50: 0
A51: ='Org structure'!A6 -> Vote 5 - Sports and Recreation | C51: =SUM(C52:C61) -> 0 | D51: =SUM(D52:D61) -> 33500625.82 | E51: 0 | F51: 382275 | G51: 8136398 | H51: 1150002 | I51: 6986396 | J51: 6.075116391 | K51: 0
A52: ='Org structure'!E47 -> 5,1 - Community parks | D52: =500000+1800000+6876663.4+10700000+13623962.42 -> 33500625.82 | F52: 382275 | G52: 8136398 | H52: 1150002 | I52: 6986396 | J52: 6.075116391
A53: ='Org structure'!E48 -> 0 | I53: 0
A54: ='Org structure'!E49 -> 0 | I54: 0
A55: ='Org structure'!E50 -> 0 | I55: 0
A56: ='Org structure'!E51 -> 0 | I56: 0
A57: ='Org structure'!E52 -> 0 | I57: 0
A58: ='Org structure'!E53 -> 0 | I58: 0
A59: ='Org structure'!E54 -> 0 | I59: 0
A60: ='Org structure'!E55 -> 0 | I60: 0
A61: ='Org structure'!E56 -> 0 | I61: 0
A62: ='Org structure'!A7 -> Vote 6 - Housing | C62: =SUM(C63:C72) -> 0 | D62: =SUM(D63:D72) -> 0 | E62: 0 | F62: 0 | G62: 0 | H62: 0 | I62: 0 | K62: 0
A63: ='Org structure'!E58 -> 6,1 - Housing | I63: 0
A64: ='Org structure'!E59 -> 0 | I64: 0
A65: ='Org structure'!E60 -> 0 | I65: 0
A66: ='Org structure'!E61 -> 0 | I66: 0
A67: ='Org structure'!E62 -> 0 | I67: 0
A68: ='Org structure'!E63 -> 0 | I68: 0
A69: ='Org structure'!E64 -> 0 | I69: 0
A70: ='Org structure'!E65 -> 0 | I70: 0
A71: ='Org structure'!E66 -> 0 | I71: =G71-H71 -> 0 | J71: =IF(I71=0,"",I71/H71) -> 
A72: ='Org structure'!E67 -> 0 | I72: 0
A73: ='Org structure'!A8 -> Vote 7 - Planning and development | C73: =SUM(C74:C83) -> 0 | D73: 0 | E73: 0 | F73: 0 | G73: 0 | H73: 0 | I73: 0 | K73: 0
A74: ='Org structure'!E69 -> 7,1 - Corporate Wide Strategic Planning (IDP & LED) | I74: 0
A75: ='Org structure'!E70 -> 7,2 - Town Planning and Building Regulations | I75: 0
A76: ='Org structure'!E71 -> 7,3 - Project Management Unit | I76: 0
A77: ='Org structure'!E72 -> 0 | I77: 0
A78: ='Org structure'!E73 -> 0 | I78: 0
A79: ='Org structure'!E74 -> 0 | I79: 0
A80: ='Org structure'!E75 -> 0 | I80: 0
A81: ='Org structure'!E76 -> 0 | I81: 0
A82: ='Org structure'!E77 -> 0 | I82: 0
A83: ='Org structure'!E78 -> 0 | I83: 0
A84: ='Org structure'!A9 -> Vote 8 - Road Transport | C84: =SUM(C85:C94) -> 0 | D84: =SUM(D85:D94) -> 35503861.18 | E84: 0 | F84: 4177906 | G84: 10245722 | H84: 32589498 | I84: -22343776 | J84: -0.6856127701 | K84: 0
A85: ='Org structure'!E80 -> 8,1 - Road and Traffic Regulations | I85: 0
A86: ='Org structure'!E81 -> 8,2 - Roads | D86: =3163000+6633937+3840000+7500000+9200000+3261918.6+1905005.58 -> 35503861.18 | F86: 4177906 | G86: =5745722+4500000 -> 10245722 | H86: 32589498 | I86: -22343776 | J86: -0.6856127701
A87: ='Org structure'!E82 -> 8,3 - Taxi Ranks | I87: 0
A88: ='Org structure'!E83 -> 0 | I88: 0
A89: ='Org structure'!E84 -> 0 | I89: 0
A90: ='Org structure'!E85 -> 0 | I90: 0
A91: ='Org structure'!E86 -> 0 | I91: 0
A92: ='Org structure'!E87 -> 0 | I92: 0
A93: ='Org structure'!E88 -> 0 | I93: 0
A94: ='Org structure'!E89 -> 0 | I94: 0
A95: ='Org structure'!A10 -> Vote 9 - Energy Sources | C95: =SUM(C96:C105) -> 0 | D95: =SUM(D96:D105) -> 0 | E95: 0 | F95: 0 | G95: 0 | H95: 0 | I95: 0 | K95: 0
A96: ='Org structure'!E91 -> 9,1 - Electricity | I96: 0
A97: ='Org structure'!E92 -> 9,2 - Street Lighting | I97: 0
A98: ='Org structure'!E93 -> 0 | I98: 0
A99: ='Org structure'!E94 -> 0 | I99: 0
A100: ='Org structure'!E95 -> 0 | I100: 0
A101: ='Org structure'!E96 -> 0 | I101: 0
A102: ='Org structure'!E97 -> 0 | I102: 0
A103: ='Org structure'!E98 -> 0 | I103: 0
A104: ='Org structure'!E99 -> 0 | I104: 0
A105: ='Org structure'!E100 -> 0 | I105: 0
A106: ='Org structure'!A11 -> Vote 10 - Waste Water Management | C106: =SUM(C107:C116) -> 0 | D106: =SUM(D107:D116) -> 0 | E106: 0 | F106: 0 | G106: 0 | H106: 0 | I106: 0 | K106: 0
A107: ='Org structure'!E102 -> 10,1 - Public Toilets | I107: 0
A108: ='Org structure'!E103 -> 0 | I108: 0
A109: ='Org structure'!E104 -> 0 | I109: 0
A110: ='Org structure'!E105 -> 0 | I110: 0
A111: ='Org structure'!E106 -> 0 | I111: 0
A112: ='Org structure'!E107 -> 0 | I112: 0
A113: ='Org structure'!E108 -> 0 | I113: 0
A114: ='Org structure'!E109 -> 0 | I114: 0
A115: ='Org structure'!E110 -> 0 | I115: 0
A116: ='Org structure'!E111 -> 0 | I116: 0
A117: ='Org structure'!A12 -> Vote 11 - Waste Management | C117: =SUM(C118:C127) -> 0 | D117: =SUM(D118:D127) -> 0 | E117: 0 | F117: 0 | G117: 0 | H117: 0 | I117: 0 | K117: 0
A118: ='Org structure'!E113 -> 11,1 - Solid Waste Removal | I118: 0
A119: ='Org structure'!E114 -> 0 | I119: 0
A120: ='Org structure'!E115 -> 0 | I120: 0
A121: ='Org structure'!E116 -> 0 | I121: 0
A122: ='Org structure'!E117 -> 0 | I122: 0
A123: ='Org structure'!E118 -> 0 | I123: 0
A124: ='Org structure'!E119 -> 0 | I124: 0
A125: ='Org structure'!E120 -> 0 | I125: 0
A126: ='Org structure'!E121 -> 0 | I126: 0
A127: ='Org structure'!E122 -> 0 | I127: 0
A128: ='Org structure'!A13 -> 0 | C128: =SUM(C129:C138) -> 0 | D128: =SUM(D129:D138) -> 0 | E128: 0 | F128: 0 | G128: 0 | H128: 0 | I128: 0 | K128: 0
A129: ='Org structure'!E124 -> 12.1 - [Name of sub-vote] | I129: 0
A130: ='Org structure'!E125 -> 0 | I130: 0
A131: ='Org structure'!E126 -> 0 | I131: 0
A132: ='Org structure'!E127 -> 0 | I132: 0
A133: ='Org structure'!E128 -> 0 | I133: 0
A134: ='Org structure'!E129 -> 0 | I134: 0
A135: ='Org structure'!E130 -> 0 | I135: =G135-H135 -> 0 | J135: =IF(I135=0,"",I135/H135) -> 
A136: ='Org structure'!E131 -> 0 | I136: 0
A137: ='Org structure'!E132 -> 0 | I137: 0
A138: ='Org structure'!E133 -> 0 | I138: 0
A139: ='Org structure'!A14 -> 0 | C139: =SUM(C140:C149) -> 0 | D139: =SUM(D140:D149) -> 0 | E139: 0 | F139: 0 | G139: 0 | H139: 0 | I139: 0 | K139: 0
A140: ='Org structure'!E135 -> 13.1 - [Name of sub-vote] | I140: 0
A141: ='Org structure'!E136 -> 0 | I141: 0
A142: ='Org structure'!E137 -> 0 | I142: 0
A143: ='Org structure'!E138 -> 0 | I143: 0
A144: ='Org structure'!E139 -> 0 | I144: 0
A145: ='Org structure'!E140 -> 0 | I145: 0
A146: ='Org structure'!E141 -> 0 | I146: 0
A147: ='Org structure'!E142 -> 0 | I147: 0
A148: ='Org structure'!E143 -> 0 | I148: 0
A149: ='Org structure'!E144 -> 0 | I149: 0
A150: ='Org structure'!A15 -> 0 | C150: =SUM(C151:C160) -> 0 | D150: =SUM(D151:D160) -> 0 | E150: 0 | F150: 0 | G150: 0 | H150: 0 | I150: 0 | K150: 0
A151: ='Org structure'!E146 -> 14.1 - [Name of sub-vote] | I151: 0
A152: ='Org structure'!E147 -> 0 | I152: 0
A153: ='Org structure'!E148 -> 0 | I153: 0
A154: ='Org structure'!E149 -> 0 | I154: 0
A155: ='Org structure'!E150 -> 0 | I155: 0
A156: ='Org structure'!E151 -> 0 | I156: 0
A157: ='Org structure'!E152 -> 0 | I157: 0
A158: ='Org structure'!E153 -> 0 | I158: 0
A159: ='Org structure'!E154 -> 0 | I159: 0
A160: ='Org structure'!E155 -> 0 | I160: 0
A161: ='Org structure'!A16 -> 0 | C161: =SUM(C162:C171) -> 0 | D161: =SUM(D162:D171) -> 0 | E161: 0 | F161: 0 | G161: 0 | H161: 0 | I161: 0 | K161: 0
A162: ='Org structure'!E157 -> 15.1 - [Name of sub-vote] | I162: 0
A163: ='Org structure'!E158 -> 0 | I163: 0
A164: ='Org structure'!E159 -> 0 | I164: 0
A165: ='Org structure'!E160 -> 0 | I165: 0
A166: ='Org structure'!E161 -> 0 | I166: 0
A167: ='Org structure'!E162 -> 0 | I167: 0
A168: ='Org structure'!E163 -> 0 | I168: 0
A169: ='Org structure'!E164 -> 0 | I169: 0
A170: ='Org structure'!E165 -> 0 | I170: 0
A171: ='Org structure'!E166 -> 0 | I171: 0 | L171: =SUM(L79:L82) -> 0 | M171: 0 | N171: 0 | O171: 0 | P171: 0 | Q171: 0 | R171: 0 | S171: 0 | T171: 0 | U171: 0 | V171: 0 | W171: 0
A172: Total multi-year capital expenditure | C172: =C7+C18+C29+C40+C51+C62+C73+C84+C95+C106+C117+C128+C139+C150+C161 -> 0 | D172: =D7+D18+D29+D40+D51+D62+D73+D84+D95+D106+D117+D128+D139+D150+D161 -> 74454487 | E172: 0 | F172: 11692820 | G172: 26040380 | H172: 53126022 | I172: -27085642 | J172: -0.5098375707 | K172: 0
I173: 0
A174: Capital expenditure - Municipal Vote
A175: Expenditue of single-year capital appropriation | B175: 1 | I175: 0
A176: ='Org structure'!A2 -> Vote 1 - Executive & Council | C176: =SUM(C177:C186) -> 0 | D176: 400000 | E176: 0 | F176: 0 | G176: 0 | H176: 0 | I176: 0 | K176: 0
A177: ='Org structure'!E3 -> 1,1 - Mayor and Council | D177: 400000 | I177: 0
A178: ='Org structure'!E4 -> 1,2 - Municipal Manager | I178: 0
A179: ='Org structure'!E5 -> 0 | I179: 0
A180: ='Org structure'!E6 -> 0 | I180: 0
A181: ='Org structure'!E7 -> 0 | I181: 0
A182: ='Org structure'!E8 -> 0 | I182: 0
A183: ='Org structure'!E9 -> 0 | I183: 0
A184: ='Org structure'!E10 -> 0 | I184: 0
A185: ='Org structure'!E11 -> 0 | I185: 0
A186: ='Org structure'!E12 -> 0 | I186: 0
A187: ='Org structure'!A3 -> Vote 2 - Finance and Administration | C187: =SUM(C188:C197) -> 0 | D187: =SUM(D188:D197) -> 2010000 | E187: =SUM(E188:E197) -> 0 | F187: 175217 | G187: 30958470 | H187: 2454994 | I187: 28503476 | J187: 11.61040557 | K187: 0
A188: ='Org structure'!E14 -> 2,1 - Administrative and Corporate Support | I188: 0
A189: ='Org structure'!E15 -> 2,2 - Asset Management | I189: 0
A190: ='Org structure'!E16 -> 2,3 - Budget and Treasury Office | D190: 0 | I190: 0
A191: ='Org structure'!E17 -> 2,4 - Human Resource | D191: 0 | I191: 0
A192: ='Org structure'!E18 -> 2,5 - Information Technology | D192: 1000000 | I192: 0
A193: ='Org structure'!E19 -> 2,6 - Legal Services | D193: 0 | I193: 0
A194: ='Org structure'!E20 -> 2,7 - Customer Relation and Coordination | D194: 0 | I194: 0
A195: ='Org structure'!E21 -> 2,8 - Property Services | D195: 1010000 | F195: 175217 | G195: =32116470-1158000 -> 30958470 | H195: =1004994+1450000 -> 2454994 | I195: 28503476 | J195: 11.61040557
A196: ='Org structure'!E22 -> 2,9 - Risk Management | I196: 0
A197: ='Org structure'!E23 -> 2.10 - Supply Chain Management | I197: 0
A198: ='Org structure'!A4 -> Vote 3 - Internal Audit | C198: =SUM(C199:C208) -> 0 | D198: 0 | E198: 0 | F198: 0 | G198: 0 | H198: 0 | I198: 0 | K198: 0
A199: ='Org structure'!E25 -> 3,1 - Governance Function | I199: 0
A200: ='Org structure'!E26 -> 0 | I200: =G200-H200 -> 0 | J200: =IF(I200=0,"",I200/H200) -> 
... 145 more rows

Sheet C6-FinPos
A1: =muni& " - "&S71E& " - "&date -> LIM332 Greater Letaba - Table C6 Monthly Budget Statement - Financial Position - M06 December
A2: =desc -> Description | B2: =head27 -> Ref | C2: =Head1 -> 2019/20 | D2: =Head2 -> Budget Year 2020/21
C3: =Head5 -> Audited Outcome | D3: =Head6 -> Original Budget | E3: =Head7 -> Adjusted Budget | F3: =Head39 -> YearTD actual | G3: =Head8 -> Full Year Forecast
A4: R thousands | B4: 1
A5: ASSETS
A6: Current assets
A7: Cash | D7: 8814408.614 | F7: 128730519
A8: Call investment deposits | D8: 271598.02 | F8: 117565
A9: Consumer debtors | D9: 5320000 | F9: 12231277
A10: Other debtors | D10: 79682000 | F10: =106653674 -> 106653674
A11: Current portion of long-term receivables | D11: 7623000 | F11: =7666531+2259643 -> 9926174
A12: Inventory | D12: 8724000 | F12: 9941617
A13: Total current assets | C13: =SUM(C7:C12) -> 0 | D13: =SUM(D7:D12) -> 110435006.6 | E13: =SUM(E7:E12) -> 0 | F13: =SUM(F7:F12) -> 267600826 | G13: =SUM(G7:G12) -> 0
A15: Non current assets
A16: Long-term receivables
A17: Investments | F17: 0
A18: Investment property | D18: 217491 | F18: 213057
A19: Investments in Associate
A20: Property, plant and equipment | D20: 997990993 | F20: =962299544+58371000 -> 1020670544
A22: Biological
A23: Intangible | D23: 135000 | F23: 88925
A24: Other non-current assets | D24: 549000 | F24: 548500
A25: Total non current assets | C25: =SUM(C16:C20)+SUM(C22:C24) -> 0 | D25: =SUM(D16:D20)+SUM(D22:D24) -> 998892484 | E25: =SUM(E16:E20)+SUM(E22:E24) -> 0 | F25: =SUM(F16:F20)+SUM(F22:F24) -> 1021521026 | G25: =SUM(G16:G20)+SUM(G22:G24) -> 0
A26: TOTAL ASSETS | C26: =C13+C25 -> 0 | D26: =D13+D25 -> 1109327491 | E26: =E13+E25 -> 0 | F26: =F13+F25 -> 1289121852 | G26: =G13+G25 -> 0
A28: LIABILITIES
A29: Current liabilities
A30: Bank overdraft
A31: Borrowing
A32: Consumer deposits | D32: 390000 | F32: 384985
A33: Trade and other payables | D33: 31802696 | F33: =78796450+812078 -> 79608528
A34: Provisions | F34: 0
A35: Total current liabilities | C35: =SUM(C30:C34) -> 0 | D35: =SUM(D30:D34) -> 32192696 | E35: =SUM(E30:E34) -> 0 | F35: =SUM(F30:F34) -> 79993513 | G35: =SUM(G30:G34) -> 0
A37: Non current liabilities
A38: Borrowing
A39: Provisions | D39: 13965000 | F39: =12983317+486795 -> 13470112
A40: Total non current liabilities | C40: =SUM(C38:C39) -> 0 | D40: =SUM(D38:D39) -> 13965000 | E40: =SUM(E38:E39) -> 0 | F40: =SUM(F38:F39) -> 13470112 | G40: =SUM(G38:G39) -> 0
A41: TOTAL LIABILITIES | C41: =C35+C40 -> 0 | D41: =D35+D40 -> 46157696 | E41: =E35+E40 -> 0 | F41: =F35+F40 -> 93463625 | G41: =G35+G40 -> 0
A43: NET ASSETS | B43: 2 | C43: =C26-C41 -> 0 | D43: =D26-D41 -> 1063169795 | E43: =E26-E41 -> 0 | F43: =F26-F41 -> 1195658227 | G43: =G26-G41 -> 0
A45: COMMUNITY WEALTH/EQUITY
A46: Accumulated Surplus/(Deficit) | D46: 1063169795 | F46: 1195658227
A47: Reserves
A48: TOTAL COMMUNITY WEALTH/EQUITY | B48: 2 | C48: =SUM(C46:C47) -> 0 | D48: =SUM(D46:D47) -> 1063169795 | E48: =SUM(E46:E47) -> 0 | F48: =SUM(F46:F47) -> 1195658227 | G48: =SUM(G46:G47) -> 0
A49: =head27a -> References
A50: 1. Material variances to be explained in Table SC1
A51: 2. Net assets must balance with Total Community Wealth/Equity
A54: check balance | C54: =C43-C48 -> 0 | D54: =D43-D48 -> 0 | E54: =E43-E48 -> 0 | F54: =F43-F48 -> 0 | G54: =G43-G48 -> 0

Sheet C7-CFlow
A1: =muni& " - "&S71F& " - "&date -> LIM332 Greater Letaba - Table C7 Monthly Budget Statement - Cash Flow - M06 December
A2: =desc -> Description | B2: =head27 -> Ref | C2: =Head1 -> 2019/20 | D2: =Head2 -> Budget Year 2020/21
C3: =Head5 -> Audited Outcome | D3: =Head6 -> Original Budget | E3: =Head7 -> Adjusted Budget | F3: =Head38 -> Monthly actual | G3: =Head39 -> YearTD actual | H3: =Head40 -> YearTD budget | I3: =Head41 -> YTD variance | J3: =Head41 -> YTD variance | K3: =Head8 -> Full Year Forecast
A4: R thousands | B4: 1 | J4: %
A5: CASH FLOW FROM OPERATING ACTIVITIES
A6: Receipts
A7: Property rates | D7: 13458000 | F7: 1048691 | G7: 8977101 | I7: =G7-H7 -> 8977101 | J7: =IF(I7=0,"",I7/H7) -> 
A8: Service charges | D8: 16295319.02 | F8: 725846 | G8: 4643702 | I8: 4643702 | J8: =IF(I8=0,"",I8/H8) -> 
A9: Other revenue | D9: 46747284.89 | F9: =3400+18362+24574+1257+3526390+527246 -> 4101229 | G9: =5820+240239+196505+2126+900113+7536010-169900+2190446 -> 10901359 | I9: 10901359 | J9: =IF(I9=0,"",I9/H9) -> 
A10: Transfers and Subsidies - Operational | D10: 305403000 | F10: 149925000 | G10: 287963000 | I10: 287963000 | J10: =IF(I10=0,"",I10/H10) -> 
A11: Transfers and Subsidies - Capital | D11: 64229000 | F11: 26860000 | G11: 56090000 | I11: 56090000 | J11: =IF(I11=0,"",I11/H11) -> 
A12: Interest | D12: 6436636.86 | F12: 110400 | G12: 2302121 | I12: 2302121
A13: Dividends | I13: 0
A14: Payments
A15: Suppliers and employees | D15: -334154836.2 | F15: -24630490 | G15: -132235936 | I15: =H15-G15 -> 132235936
A16: Finance charges | I16: =H16-G16 -> 0
A17: Transfers and Grants | I17: =H17-G17 -> 0
A18: NET CASH FROM/(USED) OPERATING ACTIVITIES | C18: =SUM(C7:C13)+SUM(C15:C17) -> 0 | D18: 118414404.6 | E18: 0 | F18: 158140676 | G18: 238641347 | H18: 0 | I18: =H18-G18 -> -238641347 | K18: =SUM(K7:K13)+SUM(K15:K17) -> 0
A20: CASH FLOWS FROM INVESTING ACTIVITIES
A21: Receipts
A22: Proceeds on disposal of PPE | D22: 607004 | I22: =G22-H22 -> 0 | J22: =IF(I22=0,"",I22/H22) -> 
A24: Decrease (increase) in non-current receivables | I24: =G24-H24 -> 0
A25: Decrease (increase) in non-current investments | I25: =G25-H25 -> 0
A26: Payments
A27: Capital assets | D27: -112163000 | F27: -12042037 | G27: -58370907 | I27: =H27-G27 -> 58370907
A28: NET CASH FROM/(USED) INVESTING ACTIVITIES | C28: =SUM(C22:C25)+C27 -> 0 | D28: =SUM(D22:D25)+D27 -> -111555996 | E28: 0 | F28: -12042037 | G28: -58370907 | H28: 0 | I28: =H28-G28 -> 58370907 | K28: =SUM(K22:K25)+K27 -> 0
A30: CASH FLOWS FROM FINANCING ACTIVITIES
A31: Receipts
A32: Short term loans | I32: =G32-H32 -> 0 | J32: =IF(I32=0,"",I32/H32) -> 
A33: Borrowing long term/refinancing | I33: =G33-H33 -> 0
A34: Increase (decrease) in consumer deposits | I34: =G34-H34 -> 0
A35: Payments
A36: Repayment of borrowing | I36: =H36-G36 -> 0
A37: NET CASH FROM/(USED) FINANCING ACTIVITIES | C37: =SUM(C32:C34)+C36 -> 0 | D37: 0 | E37: 0 | F37: 0 | G37: 0 | H37: 0 | I37: =H37-G37 -> 0 | K37: =SUM(K32:K34)+K36 -> 0
A39: NET INCREASE/ (DECREASE) IN CASH HELD | C39: =C18+C28+C37 -> 0 | D39: 6858408.614 | E39: 0 | F39: 146098639 | G39: 180270440 | H39: 0 | K39: =K18+K28+K37 -> 0
A40: Cash/cash equivalents at beginning: | D40: 1956000 | G40: 4686105 | H40: =IF(E40=0, D40, E40) -> 1956000 | K40: =G40 -> 4686105
A41: Cash/cash equivalents at month/year end: | C41: =C39+C40 -> 0 | D41: =D39+D40 -> 8814408.614 | E41: =E39+E40 -> 0 | G41: =G39+G40 -> 184956545 | H41: =H39+H40 -> 1956000 | K41: =K39+K40 -> 4686105
A42: References
A43: 1. Material variances to be explained in Table SC1

Sheet SC1
A1: =muni& " - "&S71G& " - "&date -> LIM332 Greater Letaba - Supporting Table SC1 Material variance explanations - M06 December
A2: =head27 -> Ref | B2: =desc -> Description
C3: Variance | D3: Reasons for material deviations | E3: Remedial or corrective steps/remarks
B4: R thousands
A5: 1 | B5: ='C4-FinPerf RE'!A5 -> Revenue By Source
A10: 2 | B10: ='C4-FinPerf RE'!A24 -> Expenditure By Type
A15: 3 | B15: =RIGHT('C5-Capex'!A40,19) -> Capital Expenditure
A20: 4 | B20: Financial Position
A25: 5 | B25: Cash Flow
A30: 6 | B30: Measureable performance
A35: 7 | B35: Municipal Entities
A41: =head27a -> References
A42: 1. Revenue for each source, vote and standard classification
A43: 2. Expenditure for each type, vote and standard classification
A44: 3. Capital expenditure for each vote and standard classification
A45: 4. Explain any material variances between the annual budget and the expected financial position based on current trends
A46: 5. Cash receipts by source and cash payments by type where not explained under revenue and expenditure
A47: 6. For Sept, Dec, Mar and Jun statements explain any material variances in achievement of measurable performance objectives

Sheet SC2
A1: =muni& " - "&S71H& " - "&Head57 -> LIM332 Greater Letaba - Supporting Table SC2 Monthly Budget Statement - performance indicators - M06 December
A2: Description of financial indicator | B2: Basis of calculation | C2: =head27 -> Ref | D2: =Head1 -> 2019/20 | E2: =Head2 -> Budget Year 2020/21
D3: =Head5 -> Audited Outcome | E3: =Head6 -> Original Budget | F3: =Head7 -> Adjusted Budget | G3: =Head39 -> YearTD actual | H3: =Head8 -> Full Year Forecast
A5: Borrowing Management
A7: Capital Charges to Operating Expenditure | B7: Interest & principal paid/Operating Expenditure | D7: =IF(ISERROR((D42-D43)/D45),0,((D42-D43)/D45)) -> 0 | E7: =IF(ISERROR((E42+E44)/E45),0,((E42+E44)/E45)) -> 0.03613984333 | F7: =IF(ISERROR((F42+F44)/F45),0,((F42+F44)/F45)) -> 0 | G7: =IF(ISERROR((G42+G44)/G45),0,((G42+G44)/G45)) -> 0 | H7: =IF(ISERROR((H42+H44)/H45),0,((H42+H44)/H45)) -> 0
A8: Borrowed funding of 'own' capital expenditure | B8: Borrowings/Capital expenditure excl. transfers and grants | D8: =IF(ISERROR(D47/D46),0,(D47/D46)) -> 0 | E8: =IF(ISERROR(E47/E46),0,(E47/E46)) -> 0 | F8: =IF(ISERROR(F47/F46),0,(F47/F46)) -> 0 | G8: =IF(ISERROR(G47/G46),0,(G47/G46)) -> 0 | H8: =IF(ISERROR(H47/H46),0,(H47/H46)) -> 0
A9: Safety of Capital
A10: Debt to Equity | B10: Loans, Accounts Payable, Overdraft & Tax Provision/ Funds & Reserves | D10: =IF(ISERROR(D48/D49),0,(D48/D49)) -> 0 | E10: =IF(ISERROR(E48/E49),0,(E48/E49)) -> 0.02991309211 | F10: =IF(ISERROR(F48/F49),0,(F48/F49)) -> 0 | G10: =IF(ISERROR(G48/G49),0,(G48/G49)) -> 0.06658134089 | H10: =IF(ISERROR(H48/H49),0,(H48/H49)) -> 0
A11: Gearing | B11: Long Term Borrowing/ Funds & Reserves | D11: =IF(ISERROR(D51/D50),0,(D51/D50)) -> 0 | E11: =IF(ISERROR(E51/E50),0,(E51/E50)) -> 0 | F11: =IF(ISERROR(F51/F50),0,(F51/F50)) -> 0 | G11: =IF(ISERROR(G51/G50),0,(G51/G50)) -> 0 | H11: =IF(ISERROR(H51/H50),0,(H51/H50)) -> 0
A12: Liquidity
A13: Current Ratio | B13: Current assets/current liabilities | C13: 1 | D13: =IF(ISERROR(D52/D53),0,(D52/D53)) -> 0 | E13: =IF(ISERROR(E52/E53),0,(E52/E53)) -> 3.430436725 | F13: =IF(ISERROR(F52/F53),0,(F52/F53)) -> 0 | G13: =IF(ISERROR(G52/G53),0,(G52/G53)) -> 3.345281586 | H13: =IF(ISERROR(H52/H53),0,(H52/H53)) -> 0
A14: Liquidity Ratio | B14: Monetary Assets/Current Liabilities | D14: =IF(ISERROR(D54/D53),0,(D54/D53)) -> 0 | E14: =IF(ISERROR(E54/E53),0,(E54/E53)) -> 0.2822381398 | F14: =IF(ISERROR(F54/F53),0,(F54/F53)) -> 0 | G14: =IF(ISERROR(G54/G53),0,(G54/G53)) -> 1.61073166 | H14: =IF(ISERROR(H54/H53),0,(H54/H53)) -> 0
A15: Revenue Management
A16: Annual Debtors Collection Rate (Payment Level %) | B16: Last 12 Mths Receipts/ Last 12 Mths Billing
A17: Outstanding Debtors to Revenue | B17: Total Outstanding Debtors to Annual Revenue | D17: =IF(ISERROR(D59/D55),0,(D59/D55)) -> 0 | E17: =IF(ISERROR(E59/E55),0,(E59/E55)) -> 0.2227657129 | F17: =IF(ISERROR(F59/F55),0,(F59/F55)) -> 0 | G17: =IF(ISERROR(G59/G55),0,(G59/G55)) -> 0.4245921906 | H17: =IF(ISERROR(H59/H55),0,(H59/H55)) -> 0
A18: Longstanding Debtors Recovered | B18: Debtors > 12 Mths Recovered/Total Debtors > 12 Months Old | D18: =IF(ISERROR(D64/D63),0,(D64/D63)) -> 0 | E18: =IF(ISERROR(E64/E63),0,(E64/E63)) -> 0 | F18: =IF(ISERROR(F64/F63),0,(F64/F63)) -> 0 | G18: =IF(ISERROR(G64/G63),0,(G64/G63)) -> 0 | H18: =IF(ISERROR(H64/H63),0,(H64/H63)) -> 0
A19: Creditors Management
A20: Creditors System Efficiency | B20: % of Creditors Paid Within Terms (within MFMA s 65(e))
A21: Funding of Provisions
A22: Percentage Of Provisions Not Funded | B22: Unfunded Provisions/Total Provisions
A23: Other Indicators
A24: Electricity Distribution Losses | B24: % Volume (units purchased and generated less units sold)/units purchased and generated | C24: 2
A25: Water Distribution Losses | B25: % Volume (units purchased and own source less units sold)/Total units purchased and own source | C25: 2
A26: Employee costs | B26: Employee costs/Total Revenue - capital revenue | D26: =IF(ISERROR(D40/D55),0,(D40/D55)) -> 0 | E26: =IF(ISERROR(E40/E55),0,(E40/E55)) -> 0.2871511608 | F26: =IF(ISERROR(F40/F55),0,(F40/F55)) -> 0 | G26: =IF(ISERROR(G40/G55),0,(G40/G55)) -> 0.195934637 | H26: =IF(ISERROR(H40/H55),0,(H40/H55)) -> 0
A27: Repairs & Maintenance | B27: R&M/Total Revenue - capital revenue | D27: =IF(ISERROR(D41/D55),0,(D41/D55)) -> 0 | E27: =IF(ISERROR(E41/E55),0,(E41/E55)) -> 0.08367637182 | F27: =IF(ISERROR(F41/F55),0,(F41/F55)) -> 0 | G27: =IF(ISERROR(G41/G55),0,(G41/G55)) -> 0.02143755521 | H27: =IF(ISERROR(H41/H55),0,(H41/H55)) -> 0
A28: Interest & Depreciation | B28: I&D/Total Revenue - capital revenue | D28: =IF(ISERROR((D42+D44)/D55),0,((D42+D44)/D55)) -> 0 | E28: =IF(ISERROR((E42+E44)/E55),0,((E42+E44)/E55)) -> 0.03132088569 | F28: =IF(ISERROR((F42+F44)/F55),0,((F42+F44)/F55)) -> 0 | G28: =IF(ISERROR((G42+G44)/G55),0,((G42+G44)/G55)) -> 0 | H28: =IF(ISERROR((H42+H44)/H55),0,((H42+H44)/H55)) -> 0
A29: IDP regulation financial viability indicators
A30: i. Debt coverage | B30: (Total Operating Revenue - Operating Grants)/Debt service payments due within financial year)
A31: ii. O/S Service Debtors to Revenue | B31: Total outstanding service debtors/annual revenue received for services
A32: iii. Cost coverage | B32: (Available cash + Investments)/monthly fixed operational expenditure
A33: References
A34: 1. Consumer debtors > 12 months old are excluded from current assets.
A35: 2. Material variances to be explained.
A37: Calculations
A38: ='C6-FinPos'!A38 -> Borrowing | D38: ='C6-FinPos'!C38 -> 0 | E38: ='C6-FinPos'!D38 -> 0 | F38: ='C6-FinPos'!E38 -> 0 | G38: ='C6-FinPos'!F38 -> 0 | H38: 0
A39: Total Assets | D39: ='C6-FinPos'!C26 -> 0 | E39: ='C6-FinPos'!D26 -> 1109327491 | F39: ='C6-FinPos'!E26 -> 0 | G39: ='C6-FinPos'!F26 -> 1289121852 | H39: ='C6-FinPos'!G26 -> 0
A40: ='C4-FinPerf RE'!A25 -> Employee related costs | D40: ='C4-FinPerf RE'!C25 -> 0 | E40: ='C4-FinPerf RE'!D25 -> 119396185 | F40: ='C4-FinPerf RE'!E25 -> 0 | G40: ='C4-FinPerf RE'!G25 -> 59441887 | H40: ='C4-FinPerf RE'!K25 -> 0
A41: =A27 -> Repairs & Maintenance | E41: 34792266 | G41: 6503642
A42: Interest (finance charges) | D42: ='C4-FinPerf RE'!C29 -> 0 | E42: ='C4-FinPerf RE'!D29 -> 0 | F42: ='C4-FinPerf RE'!E29 -> 0 | G42: ='C4-FinPerf RE'!G29 -> 0 | H42: ='C4-FinPerf RE'!K29 -> 0
A43: Principal paid | D43: =-'C7-CFlow'!C36 -> 0 | E43: =-'C7-CFlow'!D36 -> 0 | F43: =-'C7-CFlow'!E36 -> 0 | G43: =-'C7-CFlow'!G36 -> 0 | H43: =-'C7-CFlow'!K36 -> 0
A44: Depreciation | D44: ='C4-FinPerf RE'!C28 -> 0 | E44: ='C4-FinPerf RE'!D28 -> 13023086 | F44: ='C4-FinPerf RE'!E28 -> 0 | H44: ='C4-FinPerf RE'!K26 -> 0
A45: Operating expenditure | D45: ='C4-FinPerf RE'!C36 -> 0 | E45: ='C4-FinPerf RE'!D36 -> 360352586 | F45: ='C4-FinPerf RE'!E36 -> 0 | G45: ='C4-FinPerf RE'!G36 -> 132235936 | H45: ='C4-FinPerf RE'!K36 -> 0
A46: ='C5-Capex'!A40 -> Total Capital Expenditure | D46: ='C5-Capex'!C40 -> 0 | E46: ='C5-Capex'!D40 -> 119672002 | F46: ='C5-Capex'!E40 -> 0 | G46: ='C5-Capex'!G40 -> 58370907 | H46: ='C5-Capex'!K40 -> 0
A47: Borrowed funding for capital | D47: ='C5-Capex'!C72 -> 0 | E47: ='C5-Capex'!D72 -> 0 | F47: ='C5-Capex'!E72 -> 0 | G47: ='C5-Capex'!G72 -> 0 | H47: ='C5-Capex'!K72 -> 0
A48: Debt | D48: ='C6-FinPos'!C30+'C6-FinPos'!C31+'C6-FinPos'!C33+'C6-FinPos'!C38 -> 0 | E48: ='C6-FinPos'!D30+'C6-FinPos'!D31+'C6-FinPos'!D33+'C6-FinPos'!D38 -> 31802696 | F48: ='C6-FinPos'!E30+'C6-FinPos'!E31+'C6-FinPos'!E33+'C6-FinPos'!E38 -> 0 | G48: ='C6-FinPos'!F30+'C6-FinPos'!F31+'C6-FinPos'!F33+'C6-FinPos'!F38 -> 79608528 | H48: ='C6-FinPos'!G30+'C6-FinPos'!G31+'C6-FinPos'!G33+'C6-FinPos'!G38 -> 0
A49: Equity | D49: ='C6-FinPos'!C48 -> 0 | E49: ='C6-FinPos'!D48 -> 1063169795 | F49: ='C6-FinPos'!E48 -> 0 | G49: ='C6-FinPos'!F48 -> 1195658227 | H49: ='C6-FinPos'!G48 -> 0
A50: ='C6-FinPos'!A47 -> Reserves | D50: ='C6-FinPos'!C47 -> 0 | E50: ='C6-FinPos'!D47 -> 0 | F50: ='C6-FinPos'!E47 -> 0 | G50: ='C6-FinPos'!F47 -> 0 | H50: ='C6-FinPos'!G47 -> 0
A51: ='C6-FinPos'!A38 -> Borrowing | D51: ='C6-FinPos'!C38 -> 0 | E51: ='C6-FinPos'!D38 -> 0 | F51: ='C6-FinPos'!E38 -> 0 | G51: ='C6-FinPos'!F38 -> 0 | H51: ='C6-FinPos'!G38 -> 0
A52: ='C6-FinPos'!A6 -> Current assets | D52: ='C6-FinPos'!C13 -> 0 | E52: ='C6-FinPos'!D13 -> 110435006.6 | F52: ='C6-FinPos'!E13 -> 0 | G52: ='C6-FinPos'!F13 -> 267600826 | H52: ='C6-FinPos'!G13 -> 0
A53: ='C6-FinPos'!A29 -> Current liabilities | D53: ='C6-FinPos'!C35 -> 0 | E53: ='C6-FinPos'!D35 -> 32192696 | F53: ='C6-FinPos'!E35 -> 0 | G53: ='C6-FinPos'!F35 -> 79993513 | H53: ='C6-FinPos'!G35 -> 0
A54: Monetary assets | D54: ='C6-FinPos'!C7+'C6-FinPos'!C8 -> 0 | E54: ='C6-FinPos'!D7+'C6-FinPos'!D8 -> 9086006.634 | F54: ='C6-FinPos'!E7+'C6-FinPos'!E8 -> 0 | G54: ='C6-FinPos'!F7+'C6-FinPos'!F8 -> 128848084 | H54: ='C6-FinPos'!G7+'C6-FinPos'!G8 -> 0
A55: ='C4-FinPerf RE'!A22 -> Total Revenue (excluding capital transfers and contributions) | D55: ='C4-FinPerf RE'!C22 -> 0 | E55: ='C4-FinPerf RE'!D22 -> 415795585.3 | F55: ='C4-FinPerf RE'!E22 -> 0 | G55: ='C4-FinPerf RE'!G22 -> 303376105 | H55: ='C4-FinPerf RE'!K22 -> 0
A56: ='C4-FinPerf RE'!A19 -> Transfers and subsidies | D56: ='C4-FinPerf RE'!C19 -> 0 | E56: ='C4-FinPerf RE'!D19 -> 305403000 | F56: ='C4-FinPerf RE'!E19 -> 0 | G56: ='C4-FinPerf RE'!G19 -> 265028412 | H56: ='C4-FinPerf RE'!K19 -> 0
A57: ='C4-FinPerf RE'!A39 -> Transfers and subsidies - capital (monetary allocations) (National / Provincial and District) | D57: ='C4-FinPerf RE'!C39 -> 0 | E57: ='C4-FinPerf RE'!D39 -> 57229000 | F57: ='C4-FinPerf RE'!E39 -> 0 | G57: ='C4-FinPerf RE'!G39 -> 53090000 | H57: ='C4-FinPerf RE'!K39 -> 0
A58: Debt service payments | D58: ='C7-CFlow'!C12+'C7-CFlow'!C36 -> 0 | E58: ='C7-CFlow'!D12+'C7-CFlow'!D36 -> 6436636.86 | F58: ='C7-CFlow'!E12+'C7-CFlow'!E36 -> 0 | G58: ='C7-CFlow'!G16+'C7-CFlow'!G36 -> 0 | H58: ='C7-CFlow'!K16+'C7-CFlow'!K36 -> 0
A59: Outstanding debtors (receivables) | D59: ='C6-FinPos'!C9+'C6-FinPos'!C10+'C6-FinPos'!C11+'C6-FinPos'!C16 -> 0 | E59: ='C6-FinPos'!D9+'C6-FinPos'!D10+'C6-FinPos'!D11+'C6-FinPos'!D16 -> 92625000 | F59: ='C6-FinPos'!E9+'C6-FinPos'!E10+'C6-FinPos'!E11+'C6-FinPos'!E16 -> 0 | G59: ='C6-FinPos'!F9+'C6-FinPos'!F10+'C6-FinPos'!F11+'C6-FinPos'!F16 -> 128811125 | H59: ='C6-FinPos'!G9+'C6-FinPos'!G10+'C6-FinPos'!G11+'C6-FinPos'!G16 -> 0
A60: Annual services revenue | D60: =SUM('C4-FinPerf RE'!C7:C11) -> 0 | E60: =SUM('C4-FinPerf RE'!D7:D11) -> 22135759.32 | F60: =SUM('C4-FinPerf RE'!E7:E11) -> 0 | G60: =SUM('C4-FinPerf RE'!G7:G11) -> 11065163
A61: Cash + investments | B61: Including LT investments | D61: ='C6-FinPos'!C7+'C6-FinPos'!C8+'C6-FinPos'!C17-'C6-FinPos'!C30 -> 0 | E61: ='C6-FinPos'!D7+'C6-FinPos'!D8+'C6-FinPos'!D17-'C6-FinPos'!D30 -> 9086006.634 | F61: ='C6-FinPos'!E7+'C6-FinPos'!E8+'C6-FinPos'!E17-'C6-FinPos'!E30 -> 0 | G61: ='C6-FinPos'!F7+'C6-FinPos'!F8+'C6-FinPos'!F17-'C6-FinPos'!F30 -> 128848084 | H61: ='C6-FinPos'!G7+'C6-FinPos'!G8+'C6-FinPos'!G17-'C6-FinPos'!G30 -> 0
A62: Fixed operational expend. (monthly)
A63: Longstanding debtors outstanding | D63: ='C6-FinPos'!C16 -> 0 | E63: ='C6-FinPos'!D16 -> 0 | F63: ='C6-FinPos'!E16 -> 0 | G63: ='C6-FinPos'!F16 -> 0 | H63: ='C6-FinPos'!G16 -> 0
A64: Longstanding debtors recovered
A65: Attorney collections

Sheet SC3
A1: =muni& " - "&S71I& " - "&Head57 -> LIM332 Greater Letaba - Supporting Table SC3 Monthly Budget Statement - aged debtors - M06 December
A2: =desc -> Description | C2: =Head2 -> Budget Year 2020/21
A3: R thousands | B3: NT Code | C3: 0-30 Days | D3: 31-60 Days | E3: 61-90 Days | F3: 91-120 Days | G3: 121-150 Dys | H3: 151-180 Dys | I3: 181 Dys-1 Yr | J3: Over 1Yr | K3: Total | L3: Total over 90 days | M3: Actual Bad Debts Written Off against Debtors | N3: Impairment - Bad Debts i.t.o Council Policy
A4: Debtors Age Analysis By Income Source
A5: Trade and Other Receivables from Exchange Transactions - Water | B5: 1200 | C5: 0 | D5: 0 | E5: 0 | F5: 0 | G5: 0 | H5: 0 | K5: =SUM(C5:J5) -> 0 | L5: =SUM(F5:J5) -> 0
A6: Trade and Other Receivables from Exchange Transactions - Electricity | B6: 1300 | C6: 1466948 | D6: 1295113 | E6: 1081551 | F6: 1077613 | G6: 960444 | H6: 24993487 | K6: =SUM(C6:J6) -> 30875156 | L6: =SUM(F6:J6) -> 27031544
A7: Receivables from Non-exchange Transactions - Property Rates | B7: 1400 | C7: 1656904 | D7: 2329725 | E7: 630856 | F7: 614879 | G7: 9368 | H7: 74072354 | K7: =SUM(C7:J7) -> 79314086 | L7: 74696601
A8: Receivables from Exchange Transactions - Waste Water Management | B8: 1500 | C8: 0 | D8: 0 | E8: 0 | F8: 0 | G8: 0 | H8: 0 | K8: 0 | L8: 0
A9: Receivables from Exchange Transactions - Waste Management | B9: 1600 | C9: 975934 | D9: 947704 | E9: 436623 | F9: 431257 | G9: 415961 | H9: 62104794 | K9: 65312273 | L9: =SUM(F9:J9) -> 62952012
A10: Receivables from Exchange Transactions - Property Rental Debtors | B10: 1700 | C10: 0 | D10: 0 | E10: 0 | F10: 0 | G10: 0 | H10: 0 | K10: 0 | L10: =SUM(F10:J10) -> 0
A11: Interest on Arrear Debtor Accounts | B11: 1810 | C11: 0 | D11: 0 | E11: 0 | F11: 0 | G11: 0 | H11: 0 | K11: 0 | L11: 0
A12: Recoverable unauthorised, irregular, fruitless and wasteful expenditure | B12: 1820 | C12: 0 | D12: 0 | E12: 0 | F12: 0 | G12: 0 | H12: 0 | K12: 0 | L12: 0
A13: Other | B13: 1900 | C13: 68121 | D13: 66046 | E13: 0 | F13: 0 | G13: 1190 | H13: 17827377 | K13: 17962734 | L13: =SUM(F13:J13) -> 17828567
A14: Total By Income Source | B14: 2000 | C14: =SUM(C5:C13) -> 4167907 | D14: 4638588 | E14: 2149030 | F14: 2123749 | G14: 1386963 | H14: 178998012 | I14: 0 | J14: 0 | K14: 193464249 | L14: =SUM(L5:L13) -> 182508724 | M14: 0 | N14: 0
A15: =Head1&" - totals only" -> 2019/20 - totals only | K15: =SUM(C15:J15) -> 0 | L15: =SUM(F15:J15) -> 0
A16: Debtors Age Analysis By Customer Group
A17: Organs of State | B17: 2200 | C17: 106010 | D17: 297818 | E17: 28215 | F17: 26096 | G17: 16488 | H17: 3461689 | K17: =SUM(C17:J17) -> 3936316 | L17: =SUM(F17:J17) -> 3504273
A18: Commercial | B18: 2300 | C18: 659331 | D18: 329077 | E18: 207803 | F18: 194363 | G18: 130114 | H18: 10758027 | K18: =SUM(C18:J18) -> 12278715 | L18: =SUM(F18:J18) -> 11082504
A19: Households | B19: 2400 | C19: 3402566 | D19: 4011693 | E19: 1913012 | F19: 1903290 | G19: 1240361 | H19: 164778296 | K19: =SUM(C19:J19) -> 177249218 | L19: =SUM(F19:J19) -> 167921947
A20: Other | B20: 2500 | C20: 0 | D20: 0 | E20: 0 | F20: 0 | G20: 0 | H20: 0 | K20: =SUM(C20:J20) -> 0 | L20: =SUM(F20:J20) -> 0
A21: Total By Customer Group | B21: 2600 | C21: =SUM(C17:C20) -> 4167907 | D21: 4638588 | E21: 2149030 | F21: 2123749 | G21: 1386963 | H21: 178998012 | I21: 0 | J21: =SUM(J17:J20) -> 0 | K21: =SUM(K17:K20) -> 193464249 | L21: =SUM(L17:L20) -> 182508724 | M21: =SUM(M17:M20) -> 0 | N21: =SUM(N17:N20) -> 0
A22: Notes
A23: Material increases in value of debtors' categories compared to previous month to be explained
A24: Bad debts = amounts actually written off in the month
A25: Total by Income Source must reconcile with Total by Customer Group
C26: =C14-C21 -> 0 | D26: =D14-D21 -> 0 | E26: =E14-E21 -> 0 | F26: 0 | G26: 0 | H26: 0 | I26: 0 | J26: =J14-J21 -> 0 | K26: 0
C27: =IF(C26=0,"","MUST AGREE") ->  | D27: =IF(D26=0,"","MUST AGREE") -> 

Sheet SC4
A1: =muni& " - "&S71J& " - "&Head57 -> LIM332 Greater Letaba - Supporting Table SC4 Monthly Budget Statement - aged creditors - M06 December
A2: =desc -> Description | B2: NT Code | C2: =Head2 -> Budget Year 2020/21 | L2: Prior year totals for chart (same period)
C3: 0 - 30 Days | D3: 31 - 60 Days | E3: 61 - 90 Days | F3: 91 - 120 Days | G3: 121 - 150 Days | H3: 151 - 180 Days | I3: 181 Days - 1 Year | J3: Over 1 Year | K3: Total
A4: R thousands
A5: Creditors Age Analysis By Customer Type
A6: Bulk Electricity | B6: 0100 | C6: 2857696 | K6: =SUM(C6:J6) -> 2857696
A7: Bulk Water | B7: 0200 | K7: =SUM(C7:J7) -> 0
A8: PAYE deductions | B8: 0300 | K8: 0
A9: VAT (output less input) | B9: 0400 | K9: 0
A10: Pensions / Retirement deductions | B10: 0500 | K10: 0
A11: Loan repayments | B11: 0600 | K11: 0
A12: Trade Creditors | B12: 0700 | K12: 0
A13: Auditor General | B13: 0800 | K13: 0
A14: Other | B14: 0900 | C14: 1670287 | K14: =SUM(C14:J14) -> 1670287
A15: Total By Customer Type | B15: 1000 | C15: =SUM(C6:C14) -> 4527983 | D15: =SUM(D6:D14) -> 0 | E15: 0 | F15: 0 | G15: 0 | H15: 0 | I15: 0 | J15: 0 | K15: =SUM(K6:K14) -> 4527983 | L15: =SUM(L6:L14) -> 0
A16: Notes
A17: Material increases in value of creditors' categories compared to previous month to be explained

Sheet SC5
A1: =muni& " - "&S71K& " - "&Head57 -> LIM332 Greater Letaba - Supporting Table SC5 Monthly Budget Statement - investment portfolio - M06 December
A2: Investments by maturity Name of institution & investment ID | B2: Ref | C2: Period of Investment | D2: Type of Investment | E2: Capital Guarantee (Yes/ No) | F2: Variable or Fixed interest rate | G2: Interest Rate ᶟ | H2: Commission Paid (Rands) | I2: Commission Recipient | J2: Expiry date of investment | K2: Opening balance | L2: Interest to be realised | M2: Partial / Premature Withdrawal (4) | N2: Investment Top Up | O2: Closing Balance
A3: R thousands | C3: Yrs/Months
A4: Municipality
A5: Absa - 20-5202-3167 | C5: No | D5: Variable | E5: 7% - 7.36% | F5: 0 | G5: N/A | H5: N/A | I5: 105990 | J5: 1913-07-14 | K5: 111319.17 | L5: 2853 | M5: -114172.17 | O5: =SUM(K5:N5) -> 0
A6: Old Mutual UTI08356132 | C6: No | D6: Variable | E6: 5.50% - 5.75% | F6: 0 | G6: N/A | H6: N/A | I6: 2094397 | J6: 2198-04-22 | K6: 111319.17 | L6: 0 | O6: 111319.17
A7: FNB - Investment 1 | C7: No | K7: 50000000 | L7: 339643 | M7: -50339643 | N7: 0 | O7: 0
A8: FNB - Investment 2 | C8: No | K8: 50000000 | L8: 355934 | M8: -50355934 | N8: 0 | O8: 0
O9: 0
O10: 0
O11: 0
A12: Municipality sub-total | K12: =SUM(K5:K11) -> 100222638.3 | M12: =SUM(M5:M11) -> -100809749.2 | N12: =SUM(N5:N11) -> 0 | O12: =SUM(O5:O11) -> 111319.17
A14: Entities
O15: =SUM(K15:N15) -> 0
O16: 0
O17: 0
O18: 0
O19: 0
O20: 0
O21: 0
A22: Entities sub-total | K22: =SUM(K15:K21) -> 0 | M22: =SUM(M15:M21) -> 0 | N22: =SUM(N15:N21) -> 0 | O22: =SUM(O15:O21) -> 0
A24: TOTAL INVESTMENTS AND INTEREST | B24: 2 | K24: =K12+K22 -> 100222638.3 | M24: =M12+M22 -> -100809749.2 | N24: =N12+N22 -> 0 | O24: =O12+O22 -> 111319.17
A25: =head27a -> References
A26: 2. List investments in expiry date order
A27: 3. If 'variable' is selected in column F, input interest rate range
A28: 4. Withdrawals to be entered as negative

Sheet SC6
A1: =muni& " - "&S71L& " - "&Head57 -> LIM332 Greater Letaba - Supporting Table SC6 Monthly Budget Statement - transfers and grant receipts - M06 December
A2: =desc -> Description | B2: =head27 -> Ref | C2: =Head1 -> 2019/20 | D2: =Head2 -> Budget Year 2020/21
C3: =Head5 -> Audited Outcome | D3: =Head6 -> Original Budget | E3: =Head7 -> Adjusted Budget | F3: =Head38 -> Monthly actual | G3: =Head39 -> YearTD actual | H3: =Head40 -> YearTD budget | I3: =Head41 -> YTD variance | J3: =Head41 -> YTD variance | K3: =Head8 -> Full Year Forecast
A4: R thousands | J4: %
A5: RECEIPTS: | B5: 1,2
A7: Operating Transfers and Grants
A8: National Government: | C8: =SUM(C9:C19) -> 0 | D8: 308264450 | E8: 0 | F8: 149925000 | G8: 290824450 | H8: 0 | I8: 286197450 | J8: =IF(I8=0,"",I8/H8) ->  | K8: =SUM(K9:K19) -> 0
A9: Local Government Equitable Share | D9: 297936000 | F9: 149265000 | G9: 283336000 | I9: =G9-H9 -> 283336000
A10: Finance Management | D10: 2000000 | F10: 0 | G10: 2000000
A11: EPWP Incentive | D11: 1467000 | F11: 660000 | G11: 1027000
A12: Energy Efficiency and Demand Management | D12: 4000000 | F12: 0 | G12: 1600000
B14: 3 | I14: 0
I15: 0
I16: 0
I17: 0
I18: 0
A19: Other transfers/grants [MIG Operational] | D19: 2861450 | F19: 0 | G19: 2861450 | I19: 2861450
A20: Provincial Government: | C20: =SUM(C21:C26) -> 0 | D20: 0 | E20: 0 | F20: 0 | G20: 0 | H20: 0 | I20: 0 | K20: =SUM(K21:K26) -> 0
I21: =G21-H21 -> 0
I23: 0
B24: 4 | I24: 0
I25: 0
A26: Other transfers and grants [insert description] | I26: 0
A27: District Municipality: | C27: =SUM(C28:C29) -> 0 | D27: 0 | E27: 0 | F27: 0 | G27: 0 | H27: 0 | I27: 0 | K27: =SUM(K28:K29) -> 0
A28: [insert description] | I28: 0
I29: 0
A30: Other grant providers: | C30: =SUM(C31:C37) -> 0 | D30: 0 | E30: 0 | F30: 0 | G30: 0 | H30: 0 | I30: 0 | K30: =SUM(K31:K37) -> 0
A31: [insert description] | I31: 0
I37: 0
A38: Total Operating Transfers and Grants | B38: 5 | C38: =C8+C20+C27+C30 -> 0 | D38: 308264450 | E38: 0 | F38: 149925000 | G38: 290824450 | H38: 0 | I38: 286197450 | K38: =K8+K20+K27+K30 -> 0
A40: Capital Transfers and Grants
A41: =A8 -> National Government: | C41: =SUM(C42:C51) -> 0 | D41: 61367550 | E41: 0 | F41: 26860000 | G41: 53228550 | H41: 0 | I41: 53228550 | J41: =IF(I41=0,"",I41/H41) ->  | K41: 0
A42: Municipal Infrastructure Grant (MIG) | D42: 54367550 | F42: 26860000 | G42: 50228550 | I42: =G42-H42 -> 50228550
I47: 0
I48: 0
I49: 0
I50: 0
A51: Other capital transfers/grants [INEP] | D51: 7000000 | F51: 0 | G51: 3000000 | I51: 3000000
A52: =A20 -> Provincial Government: | C52: =SUM(C53:C58) -> 0 | D52: 0 | E52: 0 | F52: 0 | G52: 0 | H52: 0 | I52: =G52-H52 -> 0 | J52: =IF(I52=0,"",I52/H52) ->  | K52: =SUM(K53:K58) -> 0
A53: [insert description] | I53: 0 | J53: =IF(I53=0,"",I53/H53) -> 
I58: 0
A59: =A27 -> District Municipality: | C59: =SUM(C60:C61) -> 0 | D59: 0 | E59: 0 | F59: 0 | G59: 0 | H59: 0 | I59: 0 | K59: =SUM(K60:K61) -> 0
A60: [insert description] | I60: 0
I61: 0
A62: =A30 -> Other grant providers: | C62: =SUM(C63:C68) -> 0 | D62: 0 | E62: 0 | F62: 0 | G62: 0 | H62: 0 | I62: 0 | K62: =SUM(K63:K68) -> 0
A63: [insert description] | I63: 0 | J63: =IF(I63=0,"",I63/H63) -> 
I68: 0
A69: Total Capital Transfers and Grants | B69: 5 | C69: =C41+C52+C59+C62 -> 0 | D69: =D41+D52+D59+D62 -> 61367550 | E69: 0 | F69: 26860000 | G69: 53228550 | H69: 0 | I69: 53228550 | K69: 0
A71: TOTAL RECEIPTS OF TRANSFERS & GRANTS | B71: 5 | C71: =C38+C69 -> 0 | D71: 369632000 | E71: 0 | F71: 176785000 | G71: 344053000 | H71: 0 | I71: 339426000 | K71: 0
A72: =head27a -> References
A73: 1. Each grant is listed by name as gazetted together with the name of the transferring department or municipality, donor or other organisation
A74: 2. Grant expenditure must be separately listed for each grant received
A75: 3. Replacement of RSC levies
A76: 4. Housing subsidies for housing where ownership transferred
A77: 5. Total recurrent/capital grants and subsidies must reconcile to the 'Financial Performance' Statement

Sheet SC7(1)
A1: =muni& " - "&S71M& " - "&Head57 -> LIM332 Greater Letaba - Supporting Table SC7(1) Monthly Budget Statement - transfers and grant expenditure - M06 December
A2: =desc -> Description | B2: =head27 -> Ref | C2: =Head1 -> 2019/20 | D2: =Head2 -> Budget Year 2020/21
C3: =Head5 -> Audited Outcome | D3: =Head6 -> Original Budget | E3: =Head7 -> Adjusted Budget | F3: =Head38 -> Monthly actual | G3: =Head39 -> YearTD actual | H3: =Head40 -> YearTD budget | I3: =Head41 -> YTD variance | J3: =Head41 -> YTD variance | K3: =Head8 -> Full Year Forecast
A4: R thousands | J4: %
A5: EXPENDITURE
A7: Operating expenditure of Transfers and Grants
A8: ='SC6'!A8 -> National Government: | C8: =SUM(C9:C15) -> 0 | D8: 308264450 | E8: 0 | F8: 27878448.82 | G8: 163561493.5 | H8: 0 | I8: 163561493.5 | J8: =IF(I8=0,"",I8/H8) ->  | K8: =SUM(K9:K15) -> 0
A9: ='SC6'!A9 -> Local Government Equitable Share | D9: 297936000 | F9: 27315900 | G9: 160764241 | I9: =G9-H9 -> 160764241
A10: ='SC6'!A10 -> Finance Management | D10: 2000000 | F10: 41667 | G10: 250000 | H10: 0 | I10: 250000
A11: ='SC6'!A11 -> EPWP Incentive | D11: 1467000 | F11: 119600 | G11: 861760 | H11: 0 | I11: 861760
A12: ='SC6'!A12 -> Energy Efficiency and Demand Management | D12: 4000000 | F12: 0 | G12: 0 | H12: 0 | I12: 0
A13: ='SC6'!A13 -> 0 | I13: 0
A14: ='SC6'!A14 -> 0 | I14: 0
A15: ='SC6'!A19 -> Other transfers/grants [MIG Operational] | D15: 2861450 | F15: 401281.82 | G15: 1685492.49 | H15: 0 | I15: 1685492.49
A16: ='SC6'!A20 -> Provincial Government: | C16: =SUM(C17:C21) -> 0 | D16: 0 | E16: 0 | F16: 0 | G16: 0 | H16: 0 | I16: 0 | K16: =SUM(K17:K21) -> 0
A17: ='SC6'!A21 -> 0 | I17: =G17-H17 -> 0
A18: ='SC6'!A23 -> 0 | I18: 0
A19: ='SC6'!A24 -> 0 | I19: 0
A20: ='SC6'!A25 -> 0 | I20: 0
A21: ='SC6'!A26 -> Other transfers and grants [insert description] | I21: 0
A22: ='SC6'!A27 -> District Municipality: | C22: =SUM(C23:C24) -> 0 | D22: 0 | E22: =SUM(E23:E24) -> 0 | F22: 0 | G22: 0 | H22: 0 | I22: 0 | K22: =SUM(K23:K24) -> 0
I23: 0
A24: ='SC6'!A28 -> [insert description] | I24: 0
A25: ='SC6'!A30 -> Other grant providers: | C25: =SUM(C26:C27) -> 0 | D25: 0 | E25: 0 | F25: 0 | G25: 0 | H25: 0 | I25: 0 | K25: =SUM(K26:K27) -> 0
I26: 0
A27: ='SC6'!A31 -> [insert description]
A28: Total operating expenditure of Transfers and Grants: | C28: =C8+C16+C22+C25 -> 0 | D28: =D8+D16+D22+D25 -> 308264450 | E28: 0 | F28: 27878448.82 | G28: 163561493.5 | H28: 0 | I28: 163561493.5 | K28: =K8+K16+K22+K25 -> 0
A30: Capital expenditure of Transfers and Grants
A31: ='SC6'!A41 -> National Government: | C31: =SUM(C32:C37) -> 0 | D31: 61367550 | E31: 0 | F31: 7084596 | G31: 27145458 | H31: 0 | I31: 27145458 | J31: =IF(I31=0,"",I31/H31) ->  | K31: 0
A32: ='SC6'!A42 -> Municipal Infrastructure Grant (MIG) | D32: =57229000-2861450 -> 54367550 | F32: =7485596-401000 -> 7084596 | G32: =28830458-1685000 -> 27145458 | H32: 0 | I32: =G32-H32 -> 27145458
A33: ='SC6'!A47 -> 0 | I33: 0
A34: ='SC6'!A48 -> 0 | I34: 0
A35: ='SC6'!A49 -> 0 | I35: 0
A36: ='SC6'!A50 -> 0 | I36: 0
A37: ='SC6'!A51 -> Other capital transfers/grants [INEP] | D37: 7000000 | F37: 0 | G37: 0 | I37: 0
A38: ='SC6'!A52 -> Provincial Government: | C38: =SUM(C39:C40) -> 0 | D38: 0 | E38: 0 | F38: 0 | G38: 0 | H38: 0 | I38: =G38-H38 -> 0 | K38: =SUM(K39:K40) -> 0
I39: 0
A40: ='SC6'!A58 -> 0 | I40: 0
A41: ='SC6'!A59 -> District Municipality: | C41: =SUM(C42:C43) -> 0 | D41: 0 | E41: 0 | F41: 0 | G41: 0 | H41: 0 | I41: 0 | K41: =SUM(K42:K43) -> 0
I42: 0
A43: ='SC6'!A61 -> 0 | F43: 0 | G43: 0 | I43: 0
A44: ='SC6'!A62 -> Other grant providers: | C44: =SUM(C45:C46) -> 0 | D44: 0 | E44: 0 | F44: 0 | G44: 0 | H44: 0 | I44: 0 | K44: =SUM(K45:K46) -> 0
I45: 0
A46: ='SC6'!A68 -> 0 | I46: 0
A47: Total capital expenditure of Transfers and Grants | C47: =C31+C38+C41+C44 -> 0 | D47: =D31+D38+D41+D44 -> 61367550 | E47: 0 | F47: 7084596 | G47: 27145458 | H47: 0 | I47: 27145458 | J47: =IF(I47=0,"",I47/H47) ->  | K47: 0
A49: TOTAL EXPENDITURE OF TRANSFERS AND GRANTS | C49: =C28+C47 -> 0 | D49: 369632000 | E49: 0 | F49: 34963044.82 | G49: 190706951.5 | H49: 0 | I49: 190706951.5 | J49: =IF(I49=0,"",I49/H49) ->  | K49: 0
A50: =head27a -> References

Sheet SC7(2)
A1: =muni& " - "&S71T& " - "&Head57 -> LIM332 Greater Letaba - Supporting Table SC7(2) Monthly Budget Statement - Expenditure against approved rollovers - M06 December
A2: =desc -> Description | B2: =head27 -> Ref | C2: =Head2 -> Budget Year 2020/21
C3: ="Approved Rollover " &Head1 -> Approved Rollover 2019/20 | D3: =Head38 -> Monthly actual | E3: =Head39 -> YearTD actual | F3: =Head41 -> YTD variance | G3: =Head41 -> YTD variance
A4: R thousands | G4: %
A5: EXPENDITURE
A7: Operating expenditure of Approved Roll-overs
A8: ='SC6'!A8 -> National Government: | C8: =SUM(C9:C15) -> 0 | D8: =SUM(D9:D15) -> 0 | E8: =SUM(E9:E15) -> 0 | F8: =SUM(F9:F15) -> 0 | G8: =IF(F8=0,"",F8/C8) -> 
A9: ='SC6'!A9 -> Local Government Equitable Share | F9: =E9-C9 -> 0 | G9: =IF(F9=0,"",F9/C9) -> 
A10: ='SC6'!A10 -> Finance Management | F10: =C10-E10 -> 0
A11: ='SC6'!A11 -> EPWP Incentive | F11: 0
A12: ='SC6'!A12 -> Energy Efficiency and Demand Management | F12: 0
A13: ='SC6'!A13 -> 0 | F13: 0
A14: ='SC6'!A14 -> 0 | F14: 0
A15: ='SC6'!A19 -> Other transfers/grants [MIG Operational] | F15: 0
A16: ='SC6'!A20 -> Provincial Government: | C16: =SUM(C17:C21) -> 0 | D16: =SUM(D17:D21) -> 0 | E16: =SUM(E17:E21) -> 0 | F16: =SUM(F17:F21) -> 0
A17: ='SC6'!A21 -> 0 | F17: =C17-E17 -> 0
A18: ='SC6'!A23 -> 0 | F18: =C18-E18 -> 0
A19: ='SC6'!A24 -> 0 | F19: =C19-E19 -> 0
A20: ='SC6'!A25 -> 0 | F20: =C20-E20 -> 0
A21: ='SC6'!A26 -> Other transfers and grants [insert description] | F21: =C21-E21 -> 0
A22: ='SC6'!A27 -> District Municipality: | C22: =SUM(C23:C24) -> 0 | D22: =SUM(D23:D24) -> 0 | E22: =SUM(E23:E24) -> 0 | F22: =SUM(F23:F24) -> 0
F23: =C23-E23 -> 0
A24: ='SC6'!A28 -> [insert description] | F24: =C24-E24 -> 0
A25: ='SC6'!A30 -> Other grant providers: | C25: =SUM(C26:C27) -> 0 | D25: =SUM(D26:D27) -> 0 | E25: =SUM(E26:E27) -> 0 | F25: =SUM(F26:F27) -> 0
F26: =C26-E26 -> 0
A27: ='SC6'!A31 -> [insert description] | F27: =C27-E27 -> 0
A28: Total operating expenditure of Approved Roll-overs | C28: =C8+C16+C22+C25 -> 0 | D28: =D8+D16+D22+D25 -> 0 | E28: =E8+E16+E22+E25 -> 0 | F28: =F8+F16+F22+F25 -> 0
A30: Capital expenditure of Approved Roll-overs
A31: ='SC6'!A41 -> National Government: | C31: =SUM(C32:C37) -> 0 | D31: =SUM(D32:D37) -> 0 | E31: =SUM(E32:E37) -> 0 | F31: =SUM(F32:F37) -> 0
A32: ='SC6'!A42 -> Municipal Infrastructure Grant (MIG) | F32: =C32-E32 -> 0
A33: ='SC6'!A47 -> 0 | F33: 0
A34: ='SC6'!A48 -> 0 | F34: 0
A35: ='SC6'!A49 -> 0 | F35: 0
A36: ='SC6'!A50 -> 0 | F36: 0
A37: ='SC6'!A51 -> Other capital transfers/grants [INEP] | F37: 0
A38: ='SC6'!A52 -> Provincial Government: | C38: =SUM(C39:C40) -> 0 | D38: =SUM(D39:D40) -> 0 | E38: =SUM(E39:E40) -> 0 | F38: =SUM(F39:F40) -> 0
F39: =C39-E39 -> 0
A40: ='SC6'!A58 -> 0 | F40: =C40-E40 -> 0
A41: ='SC6'!A59 -> District Municipality: | C41: =SUM(C42:C43) -> 0 | D41: =SUM(D42:D43) -> 0 | E41: =SUM(E42:E43) -> 0 | F41: =SUM(F42:F43) -> 0
F42: =C42-E42 -> 0
A43: ='SC6'!A61 -> 0 | F43: =C43-E43 -> 0
A44: ='SC6'!A62 -> Other grant providers: | C44: =SUM(C45:C46) -> 0 | D44: =SUM(D45:D46) -> 0 | E44: =SUM(E45:E46) -> 0 | F44: =SUM(F45:F46) -> 0
F45: =C45-E45 -> 0
A46: ='SC6'!A68 -> 0 | F46: =C46-E46 -> 0
A47: Total capital expenditure of Approved Roll-overs | C47: =C31+C38+C41+C44 -> 0 | D47: =D31+D38+D41+D44 -> 0 | E47: =E31+E38+E41+E44 -> 0 | F47: =F31+F38+F41+F44 -> 0
A49: TOTAL EXPENDITURE OF APPROVED ROLL-OVERS | C49: =C28+C47 -> 0 | D49: =D28+D47 -> 0 | E49: =E28+E47 -> 0 | F49: =F28+F47 -> 0
A50: =head27a -> References

Sheet SC8
A1: =muni& " - "&S71N& " - "&Head57 -> LIM332 Greater Letaba - Supporting Table SC8 Monthly Budget Statement - councillor and staff benefits - M06 December
A2: Summary of Employee and Councillor remuneration | B2: =head27 -> Ref | C2: =Head1 -> 2019/20 | D2: =Head2 -> Budget Year 2020/21
C3: =Head5 -> Audited Outcome | D3: =Head6 -> Original Budget | E3: =Head7 -> Adjusted Budget | F3: =Head38 -> Monthly actual | G3: =Head39 -> YearTD actual | H3: =Head40 -> YearTD budget | I3: =Head41 -> YTD variance | J3: =Head41 -> YTD variance | K3: =Head8 -> Full Year Forecast
A4: R thousands | J4: %
B5: 1 | C5: A | D5: B | E5: C | K5: D
A6: Councillors (Political Office Bearers plus Other)
A7: Basic Salaries and Wages | D7: 25155137 | F7: 2608253.74 | G7: 12945873 | H7: 12577566 | I7: =G7-H7 -> 368307 | J7: =IF(I7=0,"",I7/H7) -> 0.02928285171
A8: Pension and UIF Contributions | I8: 0
A9: Medical Aid Contributions | I9: 0
A10: Motor Vehicle Allowance | I10: =G10-H10 -> 0 | J10: =IF(I10=0,"",I10/H10) -> 
A11: Cellphone Allowance | I11: =G11-H11 -> 0 | J11: =IF(I11=0,"",I11/H11) -> 
A12: Housing Allowances | I12: =G12-H12 -> 0 | J12: =IF(I12=0,"",I12/H12) -> 
A13: Other benefits and allowances | I13: 0
A14: Sub Total - Councillors | C14: =SUM(C7:C13) -> 0 | D14: 25155137 | E14: 0 | F14: 2608253.74 | G14: 12945873 | H14: 12577566 | I14: 368307 | J14: 0.02928285171 | K14: 0
A15: % increase | B15: 4 | D15: =IF(D14=0,"",(D14/C14)-1) ->  | E15: =IF(E14=0,"",(E14/C14)-1) ->  | K15: =IF(K14=0,"",(K14/C14)-1) -> 
A17: Senior Managers of the Municipality | B17: 3
A18: Basic Salaries and Wages | D18: 7548701.099 | F18: 562490 | G18: 2912450 | H18: 1879629 | I18: =G18-H18 -> 1032821 | J18: =IF(I18=0,"",I18/H18) -> 0.5494813072
A19: Pension and UIF Contributions | I19: 0
A20: Medical Aid Contributions | I20: 0
A21: Overtime | I21: 0
A22: Performance Bonus | I22: =G22-H22 -> 0 | J22: =IF(I22=0,"",I22/H22) -> 
A23: Motor Vehicle Allowance | I23: =G23-H23 -> 0 | J23: =IF(I23=0,"",I23/H23) -> 
A24: Cellphone Allowance | I24: =G24-H24 -> 0 | J24: =IF(I24=0,"",I24/H24) -> 
A25: Housing Allowances | I25: =G25-H25 -> 0 | J25: =IF(I25=0,"",I25/H25) -> 
A26: Other benefits and allowances | I26: 0
A27: Payments in lieu of leave | I27: 0
A28: Long service awards | I28: 0
A29: Post-retirement benefit obligations | B29: 2 | I29: 0
A30: Sub Total - Senior Managers of Municipality | C30: =SUM(C18:C29) -> 0 | D30: 7548701.099 | E30: 0 | F30: =SUM(F18:F29) -> 562490 | G30: =SUM(G18:G29) -> 2912450 | H30: =SUM(H18:H29) -> 1879629 | I30: 1032821 | J30: =IF(I30=0,"",I30/H30) -> 0.5494813072 | K30: 0
A31: % increase | B31: 4 | D31: =IF(D30=0,"",(D30/C30)-1) ->  | E31: =IF(E30=0,"",(E30/C30)-1) ->  | K31: =IF(K30=0,"",(K30/C30)-1) -> 
A33: Other Municipal Staff
A34: Basic Salaries and Wages | D34: =70986364.0909675 -> 70986364.09 | F34: 5397579 | G34: 35071508 | H34: 40692024 | I34: =G34-H34 -> -5620516 | J34: =IF(I34=0,"",I34/H34) -> -0.1381232843
A35: Pension and UIF Contributions | D35: 14027477.19 | F35: 1044996 | G35: 4628044 | H35: 7272192 | I35: -2644148 | J35: -0.3635971107
A36: Medical Aid Contributions | D36: 5492107.42 | F36: 416604 | G36: 1821500 | H36: 2746086 | I36: -924586 | J36: -0.3366922959
A37: Overtime | D37: 4202820.93 | F37: 283833 | G37: 2494841.69 | H37: 134160 | I37: 2360681.69 | J37: 17.59601737
A38: Performance Bonus | D38: 6061418.77 | F38: 246856 | G38: 2631077 | H38: 3030708 | I38: -399631 | J38: -0.1318606081
A39: Motor Vehicle Allowance | D39: 7022804.88 | F39: 502265 | G39: 3676980 | H39: 3887118 | I39: =G39-H39 -> -210138 | J39: =IF(I39=0,"",I39/H39) -> -0.05406010314
A40: Cellphone Allowance | F40: 0 | G40: 0 | H40: 0 | I40: =G40-H40 -> 0 | J40: =IF(I40=0,"",I40/H40) -> 
A41: Housing Allowances | D41: 489919.94 | F41: 38406 | G41: 608372 | H41: 374472 | I41: =G41-H41 -> 233900 | J41: =IF(I41=0,"",I41/H41) -> 0.6246127881
A42: Other benefits and allowances | D42: =446515.48+31818.78+612895.48+300000+210000 -> 1601229.74 | F42: 58815 | G42: 2311238 | H42: 2934918 | I42: -623680 | J42: -0.2125033817
A43: Payments in lieu of leave | D43: 1963261.64 | F43: 42663 | G43: 3285877 | H43: 981642 | I43: 2304235 | J43: 2.347327233
A44: Long service awards | F44: 0 | G44: 0 | H44: 0 | I44: 0
A45: Post-retirement benefit obligations | B45: 2 | F45: 0 | G45: 0 | H45: 0 | I45: 0
A46: Sub Total - Other Municipal Staff | C46: =SUM(C34:C45) -> 0 | D46: 111847404.6 | E46: 0 | F46: =SUM(F34:F45) -> 8032017 | G46: =SUM(G34:G45) -> 56529437.69 | H46: =SUM(H34:H45) -> 62053320 | I46: -5523882.31 | J46: =IF(I46=0,"",I46/H46) -> -0.08901832021 | K46: 0
A47: % increase | B47: 4 | D47: =IF(D46=0,"",(D46/C46)-1) ->  | E47: =IF(E46=0,"",(E46/C46)-1) ->  | K47: =IF(K46=0,"",(K46/C46)-1) -> 
A49: Total Parent Municipality | C49: =C14+C30+C46 -> 0 | D49: =D14+D30+D46 -> 144551242.7 | E49: 0 | F49: 11202760.74 | G49: 72387760.69 | H49: 76510515 | I49: =G49-H49 -> -4122754.31 | J49: =IF(I49=0,"",I49/H49) -> -0.05388480668 | K49: 0
D50: =IF(D49=0,"",(D49/C49)-1) ->  | E50: =IF(E49=0,"",(E49/C49)-1) ->  | K50: =IF(K49=0,"",(K49/C49)-1) -> 
A51: Unpaid salary, allowances & benefits in arrears:
A53: Board Members of Entities
A54: Basic Salaries and Wages | I54: =G54-H54 -> 0 | J54: =IF(I54=0,"",I54/H54) -> 
A55: Pension and UIF Contributions | I55: 0
A56: Medical Aid Contributions | I56: 0
A57: Overtime | I57: =G57-H57 -> 0 | J57: =IF(I57=0,"",I57/H57) -> 
A58: Performance Bonus | I58: =G58-H58 -> 0 | J58: =IF(I58=0,"",I58/H58) -> 
A59: Motor Vehicle Allowance | I59: =G59-H59 -> 0 | J59: =IF(I59=0,"",I59/H59) -> 
A60: Cellphone Allowance | I60: =G60-H60 -> 0 | J60: =IF(I60=0,"",I60/H60) -> 
A61: Housing Allowances | I61: =G61-H61 -> 0 | J61: =IF(I61=0,"",I61/H61) -> 
A62: Other benefits and allowances | I62: 0
A63: Board Fees | I63: =G63-H63 -> 0 | J63: =IF(I63=0,"",I63/H63) -> 
A64: Payments in lieu of leave | I64: 0
A65: Long service awards | I65: 0
A66: Post-retirement benefit obligations | I66: 0
A67: Sub Total - Board Members of Entities | B67: 2 | C67: =SUM(C54:C66) -> 0 | D67: 0 | E67: 0 | F67: =SUM(F54:F66) -> 0 | G67: =SUM(G54:G66) -> 0 | H67: =SUM(H54:H66) -> 0 | I67: 0 | J67: =IF(I67=0,"",I67/H67) ->  | K67: 0
A68: % increase | B68: 4 | D68: =IF(D67=0,"",(D67/C67)-1) ->  | E68: =IF(E67=0,"",(E67/C67)-1) ->  | K68: =IF(K67=0,"",(K67/C67)-1) -> 
A70: Senior Managers of Entities
A71: Basic Salaries and Wages | I71: =G71-H71 -> 0 | J71: =IF(I71=0,"",I71/H71) -> 
A72: Pension and UIF Contributions | I72: 0
A73: Medical Aid Contributions | I73: 0
A74: Overtime | I74: 0
A75: Performance Bonus | I75: =G75-H75 -> 0 | J75: =IF(I75=0,"",I75/H75) -> 
A76: Motor Vehicle Allowance | I76: =G76-H76 -> 0 | J76: =IF(I76=0,"",I76/H76) -> 
A77: Cellphone Allowance | I77: =G77-H77 -> 0 | J77: =IF(I77=0,"",I77/H77) -> 
A78: Housing Allowances | I78: =G78-H78 -> 0 | J78: =IF(I78=0,"",I78/H78) -> 
A79: Other benefits and allowances | I79: 0
A80: Payments in lieu of leave | I80: 0
A81: Long service awards | I81: 0
A82: Post-retirement benefit obligations | B82: 2 | I82: 0
A83: Sub Total - Senior Managers of Entities | C83: =SUM(C71:C82) -> 0 | D83: 0 | E83: 0 | F83: =SUM(F71:F82) -> 0 | G83: =SUM(G71:G82) -> 0 | H83: =SUM(H71:H82) -> 0 | I83: 0 | J83: =IF(I83=0,"",I83/H83) ->  | K83: 0
A84: % increase | B84: 4 | D84: =IF(D83=0,"",(D83/C83)-1) ->  | E84: =IF(E83=0,"",(E83/C83)-1) ->  | K84: =IF(K83=0,"",(K83/C83)-1) -> 
A86: Other Staff of Entities
A87: Basic Salaries and Wages | I87: =G87-H87 -> 0 | J87: =IF(I87=0,"",I87/H87) -> 
A88: Pension and UIF Contributions | I88: 0
A89: Medical Aid Contributions | I89: =G89-H89 -> 0 | J89: =IF(I89=0,"",I89/H89) -> 
A90: Overtime | I90: =G90-H90 -> 0 | J90: =IF(I90=0,"",I90/H90) -> 
A91: Performance Bonus | I91: =G91-H91 -> 0 | J91: =IF(I91=0,"",I91/H91) -> 
A92: Motor Vehicle Allowance | I92: =G92-H92 -> 0 | J92: =IF(I92=0,"",I92/H92) -> 
A93: Cellphone Allowance | I93: 0
A94: Housing Allowances | I94: 0
A95: Other benefits and allowances | I95: 0
A96: Payments in lieu of leave | I96: 0
A97: Long service awards | I97: 0
A98: Post-retirement benefit obligations | I98: 0
A99: Sub Total - Other Staff of Entities | C99: =SUM(C87:C98) -> 0 | D99: 0 | E99: 0 | F99: 0 | G99: 0 | H99: 0 | I99: 0 | J99: =IF(I99=0,"",I99/H99) ->  | K99: =SUM(K87:K98) -> 0
A100: % increase | B100: 4 | D100: =IF(D99=0,"",(D99/C99)-1) ->  | E100: =IF(E99=0,"",(E99/C99)-1) ->  | K100: =IF(K99=0,"",(K99/C99)-1) -> 
A102: Total Municipal Entities | C102: =C67+C83+C99 -> 0 | D102: 0 | E102: 0 | F102: 0 | G102: 0 | H102: 0 | I102: =G102-H102 -> 0 | J102: =IF(I102=0,"",I102/H102) ->  | K102: =K67+K83+K99 -> 0
A104: TOTAL SALARY, ALLOWANCES & BENEFITS | C104: =C49+C102 -> 0 | D104: 144551242.7 | E104: 0 | F104: 11202760.74 | G104: 72387760.69 | H104: 76510515 | I104: =G104-H104 -> -4122754.31 | J104: =IF(I104=0,"",I104/H104) -> -0.05388480668 | K104: =K49+K102 -> 0
A105: % increase | B105: 4 | D105: =IF(D104=0,"",(D104/C104)-1) ->  | E105: =IF(E104=0,"",(E104/C104)-1) ->  | K105: =IF(K104=0,"",(K104/C104)-1) -> 
A106: TOTAL MANAGERS AND STAFF | C106: =C30+C46+C83+C99 -> 0 | D106: 119396105.7 | E106: 0 | F106: 8594507 | G106: 59441887.69 | H106: 63932949 | I106: -4491061.31 | J106: =IF(I106=0,"",I106/H106) -> -0.07024642818 | K106: =K30+K46+K83+K99 -> 0
A107: =head27a -> References
A108: 1. Include 'Loans and advances' where applicable if any reportable amounts until phased compliance with s164 of MFMA achieved
A109: 2. If benefits in kind are provided (e.g. provision of living quarters) the full market value must be shown as the cost to the municipality
A110: 3. s57 of the Systems Act
A111: 4. B/A, C/A, D/A
A112: Column Definitions:
A113: A. Audited actual 2005/06 (audited financial statements). If audited amounts unavailable, unaudited amounts must be provided with a note stating these are unaudited
A114: B. The original budget approved by council for the 2006/07 budget year.
A115: C. The budget for 2006/07 budget year as adjusted by council resolution in terms of section 28 of the MFMA.
A116: D. An estimate of final actual amounts (pre audit - 2006/07 budget year) at the time of preparing the budget for the 2007/08 budget year. This may differ from C.

Sheet SC9
A1: =muni& " - "&S71O& " - "&Head57 -> LIM332 Greater Letaba - Supporting Table SC9 Monthly Budget Statement - actuals and revised targets for cash receipts - M06 December
A2: =desc -> Description | B2: =head27 -> Ref | C2: =Head2 -> Budget Year 2020/21 | O2: ='Template names'!B5 -> 2020/21 Medium Term Revenue & Expenditure Framework
C3: July | D3: August | E3: Sept | F3: October | G3: Nov | H3: Dec | I3: January | J3: Feb | K3: March | L3: April | M3: May | N3: June | O3: =Head9 -> Budget Year 2020/21 | P3: =Head10 -> Budget Year +1 2021/22 | Q3: =Head11 -> Budget Year +2 2022/23
A4: R thousands | B4: 1 | C4: Outcome | D4: Outcome | E4: Outcome | F4: Outcome | G4: Outcome | H4: Outcome | I4: Budget | J4: Budget | K4: Budget | L4: Budget | M4: Budget | N4: Budget
A5: Cash Receipts By Source
A6: Property rates | C6: 256204 | D6: 143708 | E6: 239730 | F6: 6082109 | G6: 1206659 | H6: 1048691 | N6: =O6-SUM(C6:M6) -> 4480899 | O6: 13458000 | P6: 11634753.61 | Q6: 12169952.27
A7: Service charges - electricity revenue | C7: 283761 | D7: 775221 | E7: 504413 | F7: 820672 | G7: 968000 | H7: 617190 | N7: 7714062.024 | O7: 11683319.02 | P7: 12483319.03 | Q7: 13057551.71
A8: Service charges - water revenue | C8: 0 | D8: 0 | E8: 0 | F8: 0 | G8: 0 | H8: 0 | N8: 0 | O8: 0 | P8: 0 | Q8: 0
A9: Service charges - sanitation revenue | C9: 0 | D9: 0 | E9: 0 | F9: 0 | G9: 0 | H9: 0 | N9: 0 | O9: 0 | P9: 0 | Q9: 0
A10: Service charges - refuse | C10: 56961 | D10: 152164 | E10: 102066 | F10: 142058 | G10: 112540 | H10: 108656 | N10: 3937555 | O10: 4612000 | P10: 4375812.882 | Q10: 4577100.276
A12: Rental of facilities and equipment | C12: 0 | D12: 0 | E12: 869 | F12: 1257 | G12: 13983 | H12: 22400 | N12: 55541 | O12: 94050 | P12: 98376.3 | Q12: 102901.572
A13: Interest earned - external investments | C13: 203014 | D13: 233522 | E13: 140080 | F13: 121815 | G13: 159531 | H13: 110400 | N13: -944362 | O13: 24000 | P13: 25104 | Q13: 26258.784
A14: Interest earned - outstanding debtors | C14: 0 | D14: 0 | E14: 1333759 | F14: 0 | G14: 0 | H14: 0 | N14: 5078877.86 | O14: 6412636.86 | P14: 6707618.154 | Q14: 7016168.586
A15: Dividends received | C15: 0 | D15: 0 | E15: 0 | F15: 0 | N15: 0 | O15: 0 | P15: 0 | Q15: 0
A16: Fines, penalties and forfeits | C16: 0 | D16: 1320 | E16: 1100 | F16: 3400 | G16: 0 | H16: 1600 | N16: 61608.52 | O16: 69028.52 | P16: 72203.832 | Q16: 75525.208
A17: Licences and permits | C17: 1620418 | D17: 1368280 | E17: 1021429 | F17: 3526390 | G17: 0 | H17: 0 | N17: 1820996.3 | O17: 9357513.3 | P17: 9787958.916 | Q17: 10238205.02
A18: Agency services | C18: 0 | D18: 0 | E18: 900113 | F18: 0 | G18: 0 | H18: 0 | N18: 12831560.92 | O18: =1731673.92+12000000 -> 13731673.92 | P18: 1811330.916 | Q18: 1894652.022
A19: Transfers and Subsidies - Operational | C19: 134071000 | D19: =2000000+367000 -> 2367000 | E19: 0 | F19: 600000 | G19: 1000000 | H19: 149925000 | N19: 17440000 | O19: 305403000 | P19: 326817000 | Q19: 345415000
A20: Other revenue | C20: =12053+42972 -> 55025 | D20: =104211+6943+14729+663242 -> 789125 | E20: =141936+152447+20413+966956 -> 1281752 | F20: =18362+24574+15720+527246 -> 585902 | G20: 0 | H20: 0 | N20: 20783215.15 | O20: 23495019.15 | P20: 30788103.42 | Q20: 35683156.18
A21: Cash Receipts by Source | C21: =SUM(C6:C10)+SUM(C12:C20) -> 136546383 | D21: =SUM(D6:D10)+SUM(D12:D20) -> 5830340 | E21: 5525311 | F21: 11883603 | G21: 3460713 | H21: 151833937 | I21: 0 | J21: 0 | K21: 0 | L21: 0 | M21: 0 | N21: 73259953.77 | O21: 388340240.8 | P21: 404601581.1 | Q21: 430256471.6
N22: =O22-SUM(C22:M22) -> 0
A23: Other Cash Flows by Source | N23: 0
A24: ='C4-FinPerf RE'!A39 -> Transfers and subsidies - capital (monetary allocations) (National / Provincial and District) | C24: 13870000 | D24: 0 | E24: 0 | F24: 0 | G24: 3000000 | H24: 26860000 | N24: 20499000 | O24: =57229000+7000000 -> 64229000 | P24: =62124000+9000000 -> 71124000 | Q24: =65707000+7000000 -> 72707000
A25: ='C4-FinPerf RE'!A40 -> Transfers and subsidies - capital (monetary allocations) (National / Provincial Departmental Agencies, Households, Non-profit Institutions, Private Enterprises, Public Corporatons, Higher Educational Institutions) | N25: 607004 | O25: 607004 | P25: 607004 | Q25: 607004
A26: Proceeds on Disposal of Fixed and Intangible Assets | N26: 0
A27: Short term loans | N27: 0
A28: Borrowing long term/refinancing | N28: 0
A29: Increase (decrease) in consumer deposits | N29: 0
A31: Decrease (increase) in non-current receivables | N31: 0
A32: Decrease (increase) in non-current investments | N32: 0
A33: Total Cash Receipts by Source | C33: =SUM(C21:C29)+SUM(C31:C32) -> 150416383 | D33: =SUM(D21:D29)+SUM(D31:D32) -> 5830340 | E33: 5525311 | F33: 11883603 | G33: 6460713 | H33: 178693937 | I33: 0 | J33: 0 | K33: 0 | L33: 0 | M33: 0 | N33: 94365957.77 | O33: 453176244.8 | P33: 476332585.1 | Q33: 503570475.6
N34: =O34-SUM(C34:M34) -> 0
A35: Cash Payments by Type | N35: 0
A36: Employee related costs | C36: =9889931-123211-630719 -> 9136001 | D36: 8804390 | E36: =9702803-80382-534173 -> 9088248 | F36: =9514316-80533-541487 -> 8892296 | G36: 11104448 | H36: 12416504 | N36: 56744218.69 | O36: 116186105.7 | P36: 126647761.1 | Q36: 134681190.1
A37: Remuneration of councillors | C37: =201074+228815+56123+75138+60791+939688+325348 -> 1886977 | D37: 1912502 | E37: =200496+228815+56123+75138+60791+965791+325348 -> 1912502 | F37: 1912502 | G37: 2608263 | H37: 2713127 | N37: 10209264 | O37: 23155137 | P37: 26312273 | Q37: 27522637
A38: Interest paid | C38: 0 | D38: 0 | E38: 0 | F38: 0 | N38: 0
A39: Bulk purchases - Electricity | C39: 1944139 | D39: 2006120 | E39: 1215150 | F39: 1228379 | G39: 1275215 | H39: 2857696 | N39: 8862807.36 | O39: 19389506.36 | P39: 20281423.65 | Q39: 21214369.14
A40: Bulk purchases - Water & Sewer | F40: 0 | N40: 0
A41: Other materials | F41: 0 | N41: 0
A42: Contracted services | C42: 1868556 | D42: 1388383 | E42: 2077625 | F42: 1159071 | G42: 1842020 | H42: 4986659 | N42: 19395866.98 | O42: 32718180.98 | P42: 34223217.31 | Q42: 35797485.31
A43: Grants and subsidies paid - other municipalities | N43: 0
A44: Grants and subsidies paid - other | F44: 0 | N44: 0
A45: General expenses | C45: =23411607-14835672 -> 8575935 | D45: 7912349 | E45: =22152120-14293525 -> 7858595 | F45: =23527965-13192248 -> 10335717 | G45: 4765041 | H45: 4341914 | N45: 98916355.13 | O45: 142705906.1 | P45: =173853002.544699*0.85 -> 147775052.2 | Q45: =188929943.475755*0.8 -> 151143954.8
A46: Cash Payments by Type | B46: =SUM(B36:B45) -> 0 | C46: =SUM(C36:C45) -> 23411608 | D46: =SUM(D36:D45) -> 22023744 | E46: 22152120 | F46: 23527965 | G46: 21594987 | H46: 27315900 | I46: 0 | J46: 0 | K46: 0 | L46: 0 | M46: 0 | N46: 194128512.2 | O46: 334154836.2 | P46: 355239727.2 | Q46: 370359636.3
N47: =O47-SUM(C47:M47) -> 0
A48: Other Cash Flows/Payments by Type
A49: Capital assets | C49: 9673670 | D49: 4829288 | E49: 9729563 | F49: 13694479 | G49: 8144527 | H49: 12299931 | N49: =O49-SUM(C49:M49) -> 53791542 | O49: =112163000 -> 112163000 | P49: 125086959 | Q49: 127697000
A50: Repayment of borrowing | N50: =O50-SUM(C50:M50) -> 0
A51: Other Cash Flows/Payments | N51: =O51-SUM(C51:M51) -> 0
A52: Total Cash Payments by Type | B52: =SUM(B46:B51) -> 0 | C52: 33085278 | D52: 26853032 | E52: 31881683 | F52: 37222444 | G52: 29739514 | H52: 39615831 | I52: 0 | J52: 0 | K52: 0 | L52: 0 | M52: 0 | N52: 247920054.2 | O52: 446317836.2 | P52: 480326686.2 | Q52: 498056636.3
N53: =O53-SUM(C53:M53) -> 0
A54: NET INCREASE/(DECREASE) IN CASH HELD | B54: =B33-B52 -> 0 | C54: 117331105 | D54: -21022692 | E54: -26356372 | F54: -25338841 | G54: -23278801 | H54: 139078106 | I54: 0 | J54: 0 | K54: 0 | L54: 0 | M54: 0 | N54: -153554096.4 | O54: 6858408.614 | P54: -3994101.135 | Q54: 5513839.321
A55: Cash/cash equivalents at the month/year beginning: | C55: 1034000 | D55: =C56 -> 118365105 | E55: =D56 -> 97342413 | F55: 70986041 | G55: 45647200 | H55: 22368399 | I55: 161446505 | J55: 161446505 | K55: 161446505 | L55: 161446505 | M55: 161446505 | N55: 161446505 | O55: =C55 -> 1034000 | P55: =O56 -> 7892408.614 | Q55: =P56 -> 3898307.479
A56: Cash/cash equivalents at the month/year end: | C56: =C54+C55 -> 118365105 | D56: =D54+D55 -> 97342413 | E56: =E54+E55 -> 70986041 | F56: 45647200 | G56: 22368399 | H56: 161446505 | I56: 161446505 | J56: 161446505 | K56: 161446505 | L56: 161446505 | M56: 161446505 | N56: 7892408.614 | O56: =O54+O55 -> 7892408.614 | P56: =P54+P55 -> 3898307.479 | Q56: =Q54+Q55 -> 9412146.8
A57: =head27a -> References
A58: 1. Replace 'budget' heading with adjusted budget, or 'outcome' only for month/s complete
A59: 2. Total of monthly amounts must always agree to the approved or adjusted budget
A60: 3. Amend 'cash-at-beginning' when prior year actual known (as part of the adjustments budget)
E65: =E46+E64 -> 22152120 | F65: 23527965 | G65: 21594987 | H65: 27315900 | I65: 0 | J65: 0 | K65: 0 | L65: 0 | N65: =N46+N64 -> 194128512.2 | O65: 334154836.2 | P65: 355239727.2
E66: =E54-E64 -> -26356372 | F66: -25338841 | G66: -23278801 | H66: 139078106 | I66: 0 | J66: 0 | K66: 0 | L66: 0 | M66: =M54-M64 -> 0 | N66: =N54-N64 -> -153554096.4 | O66: 6858408.614 | P66: -3994101.135

Sheet SC10
A1: =muni& " - "&S71P& " - "&Head57 -> LIM332 Greater Letaba - NOT REQUIRED - municipality does not have entities or this is the parent municipality's budget - M06 December
A2: =desc -> Description | B2: =head27 -> Ref | C2: =Head1 -> 2019/20 | D2: =Head2 -> Budget Year 2020/21
C3: =Head5 -> Audited Outcome | D3: =Head6 -> Original Budget | E3: =Head7 -> Adjusted Budget | F3: =Head38 -> Monthly actual | G3: =Head39 -> YearTD actual | H3: =Head40 -> YearTD budget | I3: =Head41 -> YTD variance | J3: =Head41 -> YTD variance | K3: =Head8 -> Full Year Forecast
A4: R thousands | B4: 1 | J4: %
A5: ='C4-FinPerf RE'!A5 -> Revenue By Source
A6: ='C4-FinPerf RE'!A6 -> Property rates | I6: =G6-H6 -> 0 | J6: =IF(I6=0,"",I6/H6) -> 
A7: ='C4-FinPerf RE'!A7 -> Service charges - electricity revenue | I7: 0 | J7: =IF(I7=0,"",I7/H7) -> 
A8: ='C4-FinPerf RE'!A8 -> Service charges - water revenue | I8: 0
A9: ='C4-FinPerf RE'!A9 -> Service charges - sanitation revenue | I9: 0
A10: ='C4-FinPerf RE'!A10 -> Service charges - refuse revenue | I10: 0
A12: ='C4-FinPerf RE'!A12 -> Rental of facilities and equipment | I12: 0
A13: ='C4-FinPerf RE'!A13 -> Interest earned - external investments | I13: 0
A14: ='C4-FinPerf RE'!A14 -> Interest earned - outstanding debtors | I14: 0
A15: ='C4-FinPerf RE'!A15 -> Dividends received | I15: 0
A16: ='C4-FinPerf RE'!A16 -> Fines, penalties and forfeits | I16: 0
A17: ='C4-FinPerf RE'!A17 -> Licences and permits | I17: 0
A18: ='C4-FinPerf RE'!A18 -> Agency services | I18: 0
A19: ='C4-FinPerf RE'!A19 -> Transfers and subsidies | I19: 0
A20: ='C4-FinPerf RE'!A20 -> Other revenue | I20: 0
A21: ='C4-FinPerf RE'!A21 -> Gains | I21: 0
A22: Total Revenue (excluding capital transfers and contributions) | C22: =SUM(C6:C10)+SUM(C12:C21) -> 0 | D22: 0 | E22: 0 | F22: 0 | G22: 0 | H22: 0 | I22: =G22-H22 -> 0 | K22: =SUM(K6:K10)+SUM(K12:K21) -> 0
A24: Expenditure By Type
A25: ='C4-FinPerf RE'!A25 -> Employee related costs | I25: =G25-H25 -> 0 | J25: =IF(I25=0,"",I25/H25) -> 
A26: ='C4-FinPerf RE'!A26 -> Remuneration of councillors | I26: 0
A27: ='C4-FinPerf RE'!A27 -> Debt impairment | I27: 0
A28: ='C4-FinPerf RE'!A28 -> Depreciation & asset impairment | I28: 0
A29: ='C4-FinPerf RE'!A29 -> Finance charges | I29: 0
A30: ='C4-FinPerf RE'!A30 -> Bulk purchases | I30: 0
A31: ='C4-FinPerf RE'!A31 -> Other materials | I31: 0
A32: ='C4-FinPerf RE'!A32 -> Contracted services | I32: 0
A33: ='C4-FinPerf RE'!A33 -> Transfers and subsidies | I33: 0
A34: ='C4-FinPerf RE'!A34 -> Other expenditure | I34: 0
A35: ='C4-FinPerf RE'!A35 -> Losses | I35: 0
A36: Total Expenditure | C36: =SUM(C25:C35) -> 0 | D36: 0 | E36: 0 | F36: 0 | G36: 0 | H36: 0 | I36: 0 | K36: =SUM(K25:K35) -> 0
I37: 0
A38: ='C4-FinPerf RE'!A38 -> Surplus/(Deficit) | C38: =C22-C36 -> 0 | D38: 0 | E38: 0 | F38: 0 | G38: 0 | H38: 0 | I38: 0 | K38: =K22-K36 -> 0
A39: ='C4-FinPerf RE'!A39 -> Transfers and subsidies - capital (monetary allocations) (National / Provincial and District) | I39: 0
A40: ='C4-FinPerf RE'!A40 -> Transfers and subsidies - capital (monetary allocations) (National / Provincial Departmental Agencies, Households, Non-profit Institutions, Private Enterprises, Public Corporatons, Higher Educational Institutions) | I40: 0
A41: ='C4-FinPerf RE'!A41 -> Transfers and subsidies - capital (in-kind - all) | I41: 0
A42: ='C4-FinPerf RE'!A42 -> Surplus/(Deficit) after capital transfers & contributions | C42: =C38+SUM(C39:C41) -> 0 | D42: =D38+SUM(D39:D41) -> 0 | E42: 0 | F42: 0 | G42: 0 | H42: 0 | I42: 0 | K42: 0
A43: ='C4-FinPerf RE'!A43 -> Taxation | I43: 0
A44: ='C4-FinPerf RE'!A44 -> Surplus/(Deficit) after taxation | C44: =C42-C43 -> 0 | D44: 0 | E44: 0 | F44: 0 | G44: 0 | H44: 0 | I44: 0 | K44: =K42-K43 -> 0
A45: =head27a -> References
A46: 1. Votes (consolidated) are revenue sources and expenditure type

Sheet SC11
A1: =muni& " - "&S71Q& " - "&Head57 -> LIM332 Greater Letaba - NOT REQUIRED - municipality does not have entities or this is the parent municipality's budget - M06 December
A2: =desc -> Description | B2: =head27 -> Ref | C2: =Head1 -> 2019/20 | D2: =Head2 -> Budget Year 2020/21
C3: =Head5 -> Audited Outcome | D3: =Head6 -> Original Budget | E3: =Head7 -> Adjusted Budget | F3: =Head38 -> Monthly actual | G3: =Head39 -> YearTD actual | H3: =Head40 -> YearTD budget | I3: =Head41 -> YTD variance | J3: =Head41 -> YTD variance | K3: =Head8 -> Full Year Forecast
A4: R thousands | J4: %
A5: Revenue By Municipal Entity
A6: Insert name of municipal entity | I6: =G6-H6 -> 0 | J6: =IF(I6=0,"",I6/H6) -> 
I7: 0 | J7: =IF(I7=0,"",I7/H7) -> 
I8: 0
I9: 0
I10: 0
I11: 0
I12: 0
I13: 0
I14: 0
I15: 0
A16: Total Operating Revenue | B16: 1 | C16: =SUM(C6:C15) -> 0 | D16: 0 | E16: 0 | F16: 0 | G16: 0 | H16: 0 | I16: 0 | K16: =SUM(K6:K15) -> 0
A18: Expenditure By Municipal Entity
A19: =A6 -> Insert name of municipal entity | I19: 0 | J19: =IF(I19=0,"",I19/H19) -> 
A20: =IF(A7="","",A7) ->  | I20: 0
A21: =IF(A8="","",A8) ->  | I21: 0
I22: 0
I23: 0
I24: 0
I25: 0
I26: 0
I27: 0
I28: 0
A29: Total Operating Expenditure | B29: 2 | C29: =SUM(C19:C28) -> 0 | D29: 0 | E29: 0 | F29: 0 | G29: 0 | H29: 0 | I29: 0 | K29: =SUM(K19:K28) -> 0
A31: =Head42 -> Surplus/ (Deficit) for the yr/period | C31: =C16-C29 -> 0 | D31: =D16-D29 -> 0 | E31: 0 | F31: 0 | G31: 0 | H31: 0 | I31: =I16+I29 -> 0 | K31: 0
A32: Capital Expenditure By Municipal Entity
A33: =$A$6 -> Insert name of municipal entity | I33: 0
A34: =IF(A7="","",A7) ->  | I34: 0
A35: =IF(A8="","",A8) ->  | I35: 0
I36: 0
I37: 0
I38: 0
I39: 0
I40: 0
I41: 0
A43: Total Capital Expenditure | B43: 3 | C43: =SUM(C32:C42) -> 0 | D43: =SUM(D32:D42) -> 0 | E43: 0 | F43: 0 | G43: 0 | H43: =SUM(H32:H42) -> 0 | I43: =G43-H43 -> 0 | K43: 0
A44: =head27a -> References
A45: 1. Must reconcile to the sum of all municipal entity monthly revenue reports
A46: 2. Must reconcile to the sum of all municipal entity monthly expenditure reports
A47: 3. YTD = Year to date; FAV - favourable variance or unfavourable variance
A48: 4. Material variances to be explained
A49: 5. Insert additional 'Adjustment' Budget column for each Adjustment made by an entity

Sheet SC12
A1: =muni& " - "&S71R& " - "&Head57 -> LIM332 Greater Letaba - Supporting Table SC12 Monthly Budget Statement - capital expenditure trend - M06 December
A2: Month | B2: =Head1 -> 2019/20 | C2: =Head2 -> Budget Year 2020/21
B3: =Head5 -> Audited Outcome | C3: =Head6 -> Original Budget | D3: =Head7 -> Adjusted Budget | E3: =Head38 -> Monthly actual | F3: =Head39 -> YearTD actual | G3: =Head40 -> YearTD budget | H3: =Head41 -> YTD variance | I3: =Head41 -> YTD variance | J3: % spend of Original Budget
A4: R thousands | I4: %
A5: Monthly expenditure performance trend
A6: July | C6: 11004000 | E6: =8926707+746963 -> 9673670 | F6: =IF(E6>0,E6,"") -> 9673670 | G6: =IF(D6>0,D6,C6) -> 11004000 | H6: =IF(F6="",0,G6-F6) -> 1330330 | I6: =IF(F6="","",IF(H6=0,"",H6/G6)) -> 0.120895129 | J6: =IF(F6="","",F6/$C$18) -> 0.0808348653
A7: August | C7: 8120000 | E7: =5091499+154394-417000 -> 4828893 | F7: =IF(E7>0,E7+F6,"") -> 14502563 | G7: =IF(D7>0,D7+D6,C7+C6) -> 19124000 | H7: 4621437 | I7: 0.2416564003 | J7: 0.1211859332
A8: September | C8: 7578000 | E8: 9729563 | F8: =IF(E8>0,E8+F7,"") -> 24232126 | G8: =IF(D8>0,D8+G7,C8+G7) -> 26702000 | H8: 2469874 | I8: 0.09249771553 | J8: 0.2024878501
A9: October | C9: 9895000 | E9: 13694479 | F9: 37926605 | G9: =IF(D9>0,D9+G8,C9+G8) -> 36597000 | H9: -1329605 | I9: -0.03633098341 | J9: 0.3169212932
A10: November | C10: 10320000 | E10: 8144527 | F10: 46071132 | G10: 46917000 | H10: 845868 | I10: 0.01802902999 | J10: 0.3849783742
A11: December | C11: 11510000 | E11: 12299931 | F11: 58371063 | G11: 58427000 | H11: 55937 | I11: 0.0009573827169 | J11: 0.4877587322
A12: January | C12: 13215000 | G12: 71642000 | H12: 0
A13: February | C13: 9122000 | G13: 80764000 | H13: 0
A14: March | C14: 4880000 | G14: 85644000 | H14: 0
A15: April | C15: 6000000 | G15: 91644000 | H15: 0
A16: May | C16: 5505000 | G16: 97149000 | H16: 0
A17: June | C17: 22523000 | G17: 119672000 | H17: =IF(F17="",0,G17-F17) -> 0 | I17: =IF(F17="","",IF(H17=0,"",H17/G17)) ->  | J17: =IF(F17="","",F17/$C$18) -> 
A18: Total Capital expenditure | B18: =SUM(B6:B17) -> 0 | C18: =SUM(C6:C17) -> 119672000 | D18: =SUM(D6:D17) -> 0 | E18: =SUM(E6:E17) -> 58371063

Sheet SC13a
A1: =muni& " - "&S71Sa& " - "&Head57 -> LIM332 Greater Letaba - Supporting Table SC13a Monthly Budget Statement - capital expenditure on new assets by asset class - M06 December
A2: =desc -> Description | B2: =head27 -> Ref | C2: =Head1 -> 2019/20 | D2: =Head2 -> Budget Year 2020/21
C3: =Head5 -> Audited Outcome | D3: =Head6 -> Original Budget | E3: =Head7 -> Adjusted Budget | F3: =Head38 -> Monthly actual | G3: =Head39 -> YearTD actual | H3: =Head40 -> YearTD budget | I3: =Head41 -> YTD variance | J3: =Head41 -> YTD variance | K3: =Head8 -> Full Year Forecast
A4: R thousands | B4: 1 | J4: %
A5: Capital expenditure on new assets by Asset Class/Sub-class
A7: Infrastructure | C7: =C8+C13+C17+C27+C38+C45+C53+C63+C69 -> 0 | D7: 29206688.82 | E7: 0 | F7: 326589 | G7: 23639138 | H7: 0 | I7: =H7-G7 -> -23639138 | J7: =IF(I7=0,"",I7/H7) ->  | K7: =K8+K13+K17+K27+K38+K45+K53+K63+K69 -> 0
A8: Roads Infrastructure | C8: =SUM(C9:C12) -> 0 | D8: 17596688.82 | E8: 0 | F8: 0 | G8: 20444032 | H8: 0 | I8: -20444032 | K8: =SUM(K9:K12) -> 0
A9: Roads | D9: =53100550-35503861.18 -> 17596688.82 | F9: 0 | G9: 20444032 | I9: -20444032
A10: Road Structures | I10: 0
A11: Road Furniture | I11: 0
A12: Capital Spares | I12: 0
A13: Storm water Infrastructure | C13: =SUM(C14:C16) -> 0 | D13: 2000000 | E13: 0 | F13: 0 | G13: 802843 | H13: 0 | I13: -802843 | K13: =SUM(K14:K16) -> 0
A14: Drainage Collection | I14: 0
A15: Storm water Conveyance | D15: 2000000 | F15: 0 | G15: 802843 | I15: -802843
A16: Attenuation | I16: 0
A17: Electrical Infrastructure | C17: =SUM(C18:C26) -> 0 | D17: 8110000 | E17: 0 | F17: 326589 | G17: 2392263 | H17: 0 | I17: -2392263 | K17: =SUM(K18:K26) -> 0
A18: Power Plants | I18: 0
A19: HV Substations | I19: 0
A20: HV Switching Station | I20: 0
A21: HV Transmission Conductors | I21: 0
A22: MV Substations | I22: 0
A23: MV Switching Stations | I23: 0
A24: MV Networks | I24: 0
A25: LV Networks | D25: =600000+400000 -> 1000000 | F25: 195443 | G25: 195443 | I25: -195443
A26: Capital Spares | D26: =110000+7000000 -> 7110000 | F26: =490173+60870-419897 -> 131146 | G26: =487619+1158158+490173+60870 -> 2196820 | I26: -2196820
A27: Water Supply Infrastructure | C27: =SUM(C28:C37) -> 0 | D27: 0 | E27: 0 | F27: 0 | G27: 0 | H27: 0 | I27: 0 | K27: =SUM(K28:K37) -> 0
A28: Dams and Weirs | I28: 0
A29: Boreholes | I29: 0
A30: Reservoirs | I30: 0
A31: Pump Stations | I31: 0
A32: Water Treatment Works | I32: 0
A33: Bulk Mains | I33: 0
A34: Distribution | I34: 0
A35: Distribution Points | I35: 0
A36: PRV Stations | I36: 0
A37: Capital Spares | I37: 0
A38: Sanitation Infrastructure | C38: =SUM(C39:C44) -> 0 | D38: 0 | E38: 0 | F38: 0 | G38: 0 | H38: 0 | I38: =H38-G38 -> 0 | J38: =IF(I38=0,"",I38/H38) ->  | K38: =SUM(K39:K44) -> 0
A39: Pump Station | I39: 0
A40: Reticulation | I40: =H40-G40 -> 0 | J40: =IF(I40=0,"",I40/H40) -> 
A41: Waste Water Treatment Works | I41: =H41-G41 -> 0 | J41: =IF(I41=0,"",I41/H41) -> 
A42: Outfall Sewers | I42: =H42-G42 -> 0 | J42: =IF(I42=0,"",I42/H42) -> 
A43: Toilet Facilities | I43: 0
A44: Capital Spares | I44: 0
A45: Solid Waste Infrastructure | C45: =SUM(C46:C52) -> 0 | D45: 1500000 | E45: 0 | F45: 0 | G45: 0 | H45: 0 | I45: =H45-G45 -> 0 | J45: =IF(I45=0,"",I45/H45) ->  | K45: =SUM(K46:K52) -> 0
A46: Landfill Sites | I46: 0
A47: Waste Transfer Stations | I47: 0
A48: Waste Processing Facilities | I48: =H48-G48 -> 0 | J48: =IF(I48=0,"",I48/H48) -> 
A49: Waste Drop-off Points | I49: 0
A50: Waste Separation Facilities | I50: 0
A51: Electricity Generation Facilities | I51: 0
A52: Capital Spares | D52: =1000000+500000 -> 1500000 | I52: 0
A53: Rail Infrastructure | C53: =SUM(C54:C62) -> 0 | D53: 0 | E53: 0 | F53: 0 | G53: 0 | H53: 0 | I53: 0 | K53: =SUM(K54:K62) -> 0
A54: Rail Lines | I54: 0
A55: Rail Structures | I55: 0
A56: Rail Furniture | I56: 0
A57: Drainage Collection | I57: 0
A58: Storm water Conveyance | I58: 0
A59: Attenuation | I59: 0
A60: MV Substations | I60: 0
A61: LV Networks | I61: 0
A62: Capital Spares | I62: 0
A63: Coastal Infrastructure | C63: =SUM(C64:C68) -> 0 | D63: 0 | E63: 0 | F63: 0 | G63: 0 | H63: 0 | I63: 0 | K63: =SUM(K64:K68) -> 0
A64: Sand Pumps | I64: 0
A65: Piers | I65: 0
A66: Revetments | I66: 0
A67: Promenades | I67: 0
A68: Capital Spares | I68: 0
A69: Information and Communication Infrastructure | C69: =SUM(C70:C73) -> 0 | D69: 0 | E69: 0 | F69: 0 | G69: 0 | H69: 0 | I69: =H69-G69 -> 0 | J69: =IF(I69=0,"",I69/H69) ->  | K69: =SUM(K70:K73) -> 0
A70: Data Centres | I70: =H70-G70 -> 0
A71: Core Layers | I71: =H71-G71 -> 0
A72: Distribution Layers | I72: =H72-G72 -> 0
A73: Capital Spares | I73: =H73-G73 -> 0
A75: Community Assets | C75: =+C76+C99 -> 0 | D75: 400000 | E75: 0 | F75: 0 | G75: 0 | H75: 0 | I75: =H75-G75 -> 0 | K75: =+K76+K99 -> 0
A76: Community Facilities | C76: =SUM(C77:C98) -> 0 | D76: 400000 | E76: 0 | F76: 0 | G76: 0 | H76: 0 | I76: =H76-G76 -> 0 | J76: =IF(I76=0,"",I76/H76) ->  | K76: =SUM(K77:K98) -> 0
A77: Halls | I77: 0
A78: Centres | I78: 0
A79: Crèches | I79: 0
A80: Clinics/Care Centres | I80: 0
A81: Fire/Ambulance Stations | I81: 0
A82: Testing Stations | I82: 0
A83: Museums | I83: 0
A84: Galleries | I84: 0
A85: Theatres | I85: 0
A86: Libraries | I86: 0
A87: Cemeteries/Crematoria | D87: 400000 | I87: 0
A88: Police | I88: =H88-G88 -> 0 | J88: =IF(I88=0,"",I88/H88) -> 
A89: Purls | I89: 0
A90: Public Open Space | I90: 0
A91: Nature Reserves | I91: 0
A92: Public Ablution Facilities | I92: 0
A93: Markets | I93: 0
A94: Stalls | I94: 0
A95: Abattoirs | I95: 0
A96: Airports | I96: 0
A97: Taxi Ranks/Bus Terminals | I97: 0
A98: Capital Spares | I98: 0
A99: Sport and Recreation Facilities | C99: =SUM(C100:C102) -> 0 | D99: 0 | E99: 0 | F99: 0 | G99: 0 | H99: 0 | I99: 0 | K99: =SUM(K100:K102) -> 0
A100: Indoor Facilities | I100: 0
A101: Outdoor Facilities | I101: 0
A102: Capital Spares | I102: 0
A103: Heritage assets | C103: =SUM(C104:C108) -> 0 | D103: 0 | E103: 0 | F103: 0 | G103: 0 | H103: 0 | I103: 0 | K103: =SUM(K104:K108) -> 0
A104: Monuments | I104: 0
A105: Historic Buildings | I105: 0
A106: Works of Art | I106: 0
A107: Conservation Areas | I107: 0
A108: Other Heritage | I108: 0
I109: 0
A110: Investment properties | C110: =+C111+C114 -> 0 | D110: 0 | E110: 0 | F110: 0 | G110: 0 | H110: 0 | I110: 0 | K110: =+K111+K114 -> 0
A111: Revenue Generating | C111: =SUM(C112:C113) -> 0 | D111: 0 | E111: 0 | F111: 0 | G111: 0 | H111: 0 | I111: 0 | K111: =SUM(K112:K113) -> 0
A112: Improved Property | I112: 0
A113: Unimproved Property | I113: 0
A114: Non-revenue Generating | C114: =SUM(C115:C116) -> 0 | D114: 0 | E114: 0 | F114: 0 | G114: 0 | H114: 0 | I114: 0 | K114: =SUM(K115:K116) -> 0
A115: Improved Property | I115: 0
A116: Unimproved Property | I116: 0
A117: Other assets | C117: =+C118+C130 -> 0 | D117: 1800826.18 | E117: 0 | F117: 0 | G117: 1496805 | H117: 0 | I117: -1496805 | K117: =+K118+K130 -> 0
A118: Operational Buildings | C118: =SUM(C119:C129) -> 0 | D118: 1800826.18 | E118: 0 | F118: 0 | G118: 1496805 | H118: 0 | I118: -1496805 | K118: =SUM(K119:K129) -> 0
A119: Municipal Offices | D119: =110000+1600000 -> 1710000 | F119: 0 | G119: =243144+21116+1232545 -> 1496805 | I119: -1496805
A120: Pay/Enquiry Points | I120: 0 | J120: =IF(I120=0,"",I120/H120) -> 
A121: Building Plan Offices | I121: 0
A122: Workshops | I122: 0
A123: Yards | I123: 0
A124: Stores | I124: 0
A125: Laboratories | I125: 0
A126: Training Centres | I126: 0
A127: Manufacturing Plant | I127: 0
A128: Depots | I128: 0
A129: Capital Spares | D129: =1520000-400000-300000+10000+500000+400000+2861450.18-4500624 -> 90826.18 | I129: 0
A130: Housing | C130: =SUM(C131:C133) -> 0 | D130: 0 | E130: 0 | F130: 0 | G130: 0 | H130: 0 | I130: 0 | K130: =SUM(K131:K133) -> 0
A131: Staff Housing | I131: 0
A132: Social Housing | I132: 0
A133: Capital Spares | I133: 0
A135: Biological or Cultivated Assets | C135: =SUM(C136:C136) -> 0 | D135: 0 | E135: 0 | F135: 0 | G135: 0 | H135: 0 | I135: =H135-G135 -> 0 | K135: =SUM(K136) -> 0
A136: Biological or Cultivated Assets | I136: =H136-G136 -> 0
A138: Intangible Assets | C138: =SUM(C139:C140) -> 0 | D138: 0 | E138: 0 | F138: 0 | G138: 0 | H138: 0 | I138: =H138-G138 -> 0 | K138: =SUM(K139:K140) -> 0
A139: Servitudes | I139: 0
A140: Licences and Rights | C140: =SUM(C141:C146) -> 0 | D140: 0 | E140: 0 | F140: 0 | G140: 0 | H140: 0 | I140: 0 | K140: =SUM(K141:K146) -> 0
A141: Water Rights | I141: 0
A142: Effluent Licenses | I142: 0
A143: Solid Waste Licenses | I143: 0
A144: Computer Software and Applications | I144: 0
A145: Load Settlement Software Applications | I145: 0
A146: Unspecified | I146: 0
A148: Computer Equipment | C148: =SUM(C149:C149) -> 0 | D148: 1700000 | E148: 0 | F148: 16999 | G148: 16999 | H148: 0 | I148: =H148-G148 -> -16999 | J148: =IF(I148=0,"",I148/H148) ->  | K148: =SUM(K149) -> 0
A149: Computer Equipment | D149: =400000+300000+1000000 -> 1700000 | F149: 16999 | G149: 16999 | I149: =H149-G149 -> -16999 | J149: =IF(I149=0,"",I149/H149) -> 
A151: Furniture and Office Equipment | C151: =SUM(C152:C152) -> 0 | D151: 610000 | E151: 0 | F151: 0 | G151: 0 | H151: 0 | I151: =H151-G151 -> 0 | J151: =IF(I151=0,"",I151/H151) ->  | K151: =SUM(K152) -> 0
A152: Furniture and Office Equipment | D152: =200000+10000+400000 -> 610000 | I152: =H152-G152 -> 0 | J152: =IF(I152=0,"",I152/H152) -> 
J153: =IF(I153=0,"",I153/H153) -> 
A154: Machinery and Equipment | C154: =SUM(C155:C155) -> 0 | D154: 10300000 | E154: 0 | F154: 0 | G154: 0 | H154: 0 | I154: =H154-G154 -> 0 | J154: =IF(I154=0,"",I154/H154) ->  | K154: =SUM(K155) -> 0
A155: Machinery and Equipment | D155: =1200000+500000+1800000+2400000+1400000+3000000 -> 10300000 | I155: =H155-G155 -> 0 | J155: =IF(I155=0,"",I155/H155) -> 
A157: Transport Assets | C157: =SUM(C158:C158) -> 0 | D157: 1200000 | E157: 0 | F157: 0 | G157: 0 | H157: 0 | I157: =H157-G157 -> 0 | J157: =IF(I157=0,"",I157/H157) ->  | K157: =SUM(K158) -> 0
A158: Transport Assets | D158: =400000+400000+400000 -> 1200000 | I158: =H158-G158 -> 0 | J158: =IF(I158=0,"",I158/H158) -> 
A160: Land | C160: =SUM(C161:C161) -> 0 | D160: 0 | E160: 0 | F160: 0 | G160: 0 | H160: 0 | I160: =H160-G160 -> 0 | J160: =IF(I160=0,"",I160/H160) ->  | K160: =SUM(K161) -> 0
A161: Land | I161: =H161-G161 -> 0 | J161: =IF(I161=0,"",I161/H161) -> 
A163: Zoo's, Marine and Non-biological Animals | C163: =SUM(C164:C164) -> 0 | D163: 0 | E163: 0 | F163: 0 | G163: 0 | H163: 0 | I163: =H163-G163 -> 0 | J163: =IF(I163=0,"",I163/H163) ->  | K163: =SUM(K164) -> 0
A164: Zoo's, Marine and Non-biological Animals | I164: =H164-G164 -> 0 | J164: =IF(I164=0,"",I164/H164) -> 
J165: =IF(I165=0,"",I165/H165) -> 
A166: Total Capital Expenditure on new assets | B166: 1 | C166: =C7+C75+C103+C110+C117+C135+C138+C148+C151+C154+C157+C160+C163 -> 0 | D166: 45217515 | E166: 0 | F166: 343588 | G166: 25152942 | H166: 0 | I166: =H166-G166 -> -25152942 | J166: =IF(I166=0,"",I166/H166) ->  | K166: =K7+K75+K103+K110+K117+K135+K138+K148+K151+K154+K157+K160+K163 -> 0
A168: =head27a -> References
A169: 1. Total Capital Expenditure on new assets (SC13a) plus Total Capital Expenditure on renewal of existing assets (SC13b) plus Total Capital Expenditure on upgrading of existing assets (SC13e) must reconcile to total capital expenditure in Table C5
A171: check balance | C171: =C166+SC13b!C166+SC13e!C166-'C5-Capex'!C40 -> 0 | D171: =D166+SC13b!D166+SC13e!D166-'C5-Capex'!D40 -> 0 | E171: =E166+SC13b!E166+SC13e!E166-'C5-Capex'!E40 -> 0 | F171: =F166+SC13b!F166+SC13e!F166-'C5-Capex'!F40 -> 0 | G171: =G166+SC13b!G166+SC13e!G166-'C5-Capex'!G40 -> 0 | H171: =H166+SC13b!H166+SC13e!H166-'C5-Capex'!H40 -> -59636014 | K171: =K166+SC13b!K166+SC13e!K166-'C5-Capex'!K40 -> 0

Sheet SC13b
A1: =muni& " - "&S71Sb& " - "&Head57 -> LIM332 Greater Letaba - Supporting Table SC13b Monthly Budget Statement - capital expenditure on renewal of existing assets by asset class - M06 December
A2: =desc -> Description | B2: =head27 -> Ref | C2: =Head1 -> 2019/20 | D2: =Head2 -> Budget Year 2020/21
C3: =Head5 -> Audited Outcome | D3: =Head6 -> Original Budget | E3: =Head7 -> Adjusted Budget | F3: =Head38 -> Monthly actual | G3: =Head39 -> YearTD actual | H3: =Head40 -> YearTD budget | I3: =Head41 -> YTD variance | J3: =Head41 -> YTD variance | K3: =Head8 -> Full Year Forecast
A4: R thousands | B4: 1 | J4: %
A5: Capital expenditure on renewal of existing assets by Asset Class/Sub-class
A7: Infrastructure | C7: =C8+C13+C17+C27+C38+C45+C53+C63+C69 -> 0 | D7: 35503861.18 | E7: 0 | F7: 8817267 | G7: 24872536 | H7: 0 | I7: =H7-G7 -> -24872536 | J7: =IF(I7=0,"",I7/H7) ->  | K7: =K8+K13+K17+K27+K38+K45+K53+K63+K69 -> 0
A8: Roads Infrastructure | C8: =SUM(C9:C12) -> 0 | D8: 35503861.18 | E8: 0 | F8: 8817267 | G8: 24872536 | H8: 0 | I8: -24872536 | K8: =SUM(K9:K12) -> 0
A9: Roads | D9: =3163000+6633937+3840000+7500000+9200000+3261918.6+1905005.58 -> 35503861.18 | F9: =206136+954635+3947093+509390+200269+2172905+554448+272391 -> 8817267 | G9: =2967140+1930903+7609238+337179+607498+761795+808712+1032800+206136+954635+3947093+509390+200269+2172909+554448+272391 -> 24872536 | I9: -24872536
A10: Road Structures | I10: 0
A11: Road Furniture | I11: 0
A12: Capital Spares | I12: 0
A13: Storm water Infrastructure | C13: =SUM(C14:C16) -> 0 | D13: 0 | E13: 0 | F13: 0 | G13: 0 | H13: 0 | I13: 0 | K13: =SUM(K14:K16) -> 0
A14: Drainage Collection | I14: 0
A15: Storm water Conveyance | I15: 0
A16: Attenuation | I16: 0
A17: Electrical Infrastructure | C17: =SUM(C18:C26) -> 0 | D17: 0 | E17: 0 | F17: 0 | G17: 0 | H17: 0 | I17: 0 | K17: =SUM(K18:K26) -> 0
A18: Power Plants | I18: 0
A19: HV Substations | I19: 0
A20: HV Switching Station | I20: 0
A21: HV Transmission Conductors | I21: 0
A22: MV Substations | I22: 0
A23: MV Switching Stations | I23: 0
A24: MV Networks | I24: 0
A25: LV Networks | I25: 0
A26: Capital Spares | I26: 0
A27: Water Supply Infrastructure | C27: =SUM(C28:C37) -> 0 | D27: 0 | E27: 0 | F27: 0 | G27: 0 | H27: 0 | I27: 0 | K27: =SUM(K28:K37) -> 0
A28: Dams and Weirs | I28: 0
A29: Boreholes | I29: 0
A30: Reservoirs | I30: 0
A31: Pump Stations | I31: 0
A32: Water Treatment Works | I32: 0
A33: Bulk Mains | I33: 0
A34: Distribution | I34: 0
A35: Distribution Points | I35: 0
A36: PRV Stations | I36: 0
A37: Capital Spares | I37: 0
A38: Sanitation Infrastructure | C38: =SUM(C39:C44) -> 0 | D38: 0 | E38: 0 | F38: 0 | G38: 0 | H38: 0 | I38: 0 | K38: =SUM(K39:K44) -> 0
A39: Pump Station | I39: 0
A40: Reticulation | I40: 0
A41: Waste Water Treatment Works | I41: 0
A42: Outfall Sewers | I42: 0
A43: Toilet Facilities | I43: 0
A44: Capital Spares | I44: 0
A45: Solid Waste Infrastructure | C45: =SUM(C46:C52) -> 0 | D45: 0 | E45: 0 | F45: 0 | G45: 0 | H45: 0 | I45: 0 | K45: =SUM(K46:K52) -> 0
A46: Landfill Sites | I46: 0
A47: Waste Transfer Stations | I47: 0
A48: Waste Processing Facilities | I48: 0
A49: Waste Drop-off Points | I49: 0
A50: Waste Separation Facilities | I50: 0
A51: Electricity Generation Facilities | I51: 0
A52: Capital Spares | I52: 0
A53: Rail Infrastructure | C53: =SUM(C54:C62) -> 0 | D53: 0 | E53: 0 | F53: 0 | G53: 0 | H53: 0 | I53: 0 | K53: =SUM(K54:K62) -> 0
A54: Rail Lines | I54: 0
A55: Rail Structures | I55: 0
A56: Rail Furniture | I56: 0
A57: Drainage Collection | I57: 0
A58: Storm water Conveyance | I58: 0
A59: Attenuation | I59: 0
A60: MV Substations | I60: 0
A61: LV Networks | I61: 0
A62: Capital Spares | I62: 0
A63: Coastal Infrastructure | C63: =SUM(C64:C68) -> 0 | D63: 0 | E63: 0 | F63: 0 | G63: 0 | H63: 0 | I63: 0 | K63: =SUM(K64:K68) -> 0
A64: Sand Pumps | I64: 0
A65: Piers | I65: 0
A66: Revetments | I66: 0
A67: Promenades | I67: 0
A68: Capital Spares | I68: 0
A69: Information and Communication Infrastructure | C69: =SUM(C70:C73) -> 0 | D69: 0 | E69: 0 | F69: 0 | G69: 0 | H69: 0 | I69: 0 | K69: =SUM(K70:K73) -> 0
A70: Data Centres | I70: 0
A71: Core Layers | I71: 0
A72: Distribution Layers | I72: 0
A73: Capital Spares | I73: 0
A75: Community Assets | C75: =+C76+C99 -> 0 | D75: 38950625.82 | E75: 0 | F75: 2881182 | G75: 8345429 | H75: 0 | I75: -8345429 | K75: =+K76+K99 -> 0
A76: Community Facilities | C76: =SUM(C77:C98) -> 0 | D76: 5450000 | E76: 0 | F76: 434892 | G76: 789414 | H76: 0 | I76: -789414 | K76: =SUM(K77:K98) -> 0
A77: Halls | D77: 5450000 | F77: 434892 | G77: =244915+109607+434892 -> 789414 | I77: -789414
A78: Centres | I78: 0
A79: Crèches | I79: 0
A80: Clinics/Care Centres | I80: 0
A81: Fire/Ambulance Stations | I81: 0
A82: Testing Stations | I82: 0
A83: Museums | I83: 0
A84: Galleries | I84: 0
A85: Theatres | I85: 0
A86: Libraries | I86: 0
A87: Cemeteries/Crematoria | I87: 0
A88: Police | I88: 0
A89: Purls | I89: 0
A90: Public Open Space | I90: 0
A91: Nature Reserves | I91: 0
A92: Public Ablution Facilities | I92: 0
A93: Markets | I93: 0
A94: Stalls | I94: 0
A95: Abattoirs | I95: 0
A96: Airports | I96: 0
A97: Taxi Ranks/Bus Terminals | I97: 0
A98: Capital Spares | I98: 0
A99: Sport and Recreation Facilities | C99: =SUM(C100:C102) -> 0 | D99: 33500625.82 | E99: 0 | F99: 2446290 | G99: 7556015 | H99: 0 | I99: -7556015 | K99: =SUM(K100:K102) -> 0
A100: Indoor Facilities | I100: 0
A101: Outdoor Facilities | D101: 33500625.82 | F101: 2446290 | G101: =3034588+1916133+159004+2446290 -> 7556015 | I101: =H101-G101 -> -7556015 | J101: =IF(I101=0,"",I101/H101) -> 
A102: Capital Spares | I102: 0
A103: Heritage assets | C103: =SUM(C104:C108) -> 0 | D103: 0 | E103: 0 | F103: 0 | G103: 0 | H103: 0 | I103: 0 | K103: =SUM(K104:K108) -> 0
A104: Monuments | I104: 0
A105: Historic Buildings | I105: 0
A106: Works of Art | I106: 0
A107: Conservation Areas | I107: 0
A108: Other Heritage | I108: 0
I109: 0
A110: Investment properties | C110: =+C111+C114 -> 0 | D110: 0 | E110: 0 | F110: 0 | G110: 0 | H110: 0 | I110: 0 | K110: =+K111+K114 -> 0
A111: Revenue Generating | C111: =SUM(C112:C113) -> 0 | D111: 0 | E111: 0 | F111: 0 | G111: 0 | H111: 0 | I111: 0 | K111: =SUM(K112:K113) -> 0
A112: Improved Property | I112: 0
A113: Unimproved Property | I113: 0
A114: Non-revenue Generating | C114: =SUM(C115:C116) -> 0 | D114: 0 | E114: 0 | F114: 0 | G114: 0 | H114: 0 | I114: 0 | K114: =SUM(K115:K116) -> 0
A115: Improved Property | I115: 0
A116: Unimproved Property | I116: =H116-G116 -> 0 | J116: =IF(I116=0,"",I116/H116) -> 
A117: Other assets | C117: =+C118+C130 -> 0 | D117: 0 | E117: 0 | F117: 0 | G117: 0 | H117: 0 | I117: 0 | K117: =+K118+K130 -> 0
A118: Operational Buildings | C118: =SUM(C119:C129) -> 0 | D118: 0 | E118: 0 | F118: 0 | G118: 0 | H118: 0 | I118: 0 | K118: =SUM(K119:K129) -> 0
A119: Municipal Offices | I119: 0
A120: Pay/Enquiry Points | I120: 0
A121: Building Plan Offices | I121: 0
A122: Workshops | I122: 0
A123: Yards | I123: 0
A124: Stores | I124: 0
A125: Laboratories | I125: 0
A126: Training Centres | I126: 0
A127: Manufacturing Plant | I127: 0
A128: Depots | I128: 0
A129: Capital Spares | I129: 0
A130: Housing | C130: =SUM(C131:C133) -> 0 | D130: 0 | E130: 0 | F130: 0 | G130: 0 | H130: 0 | I130: 0 | K130: =SUM(K131:K133) -> 0
A131: Staff Housing | I131: 0
A132: Social Housing | I132: 0
A133: Capital Spares | I133: 0
A135: Biological or Cultivated Assets | C135: =SUM(C136:C136) -> 0 | D135: 0 | E135: 0 | F135: 0 | G135: 0 | H135: 0 | I135: =H135-G135 -> 0 | K135: =SUM(K136) -> 0
A136: Biological or Cultivated Assets | I136: =H136-G136 -> 0
J137: =IF(I137=0,"",I137/H137) -> 
A138: Intangible Assets | C138: =SUM(C139:C140) -> 0 | D138: 0 | E138: 0 | F138: 0 | G138: 0 | H138: 0 | I138: =H138-G138 -> 0 | K138: =SUM(K139:K140) -> 0
A139: Servitudes | I139: 0
A140: Licences and Rights | C140: =SUM(C141:C146) -> 0 | D140: 0 | E140: 0 | F140: 0 | G140: 0 | H140: 0 | I140: 0 | K140: =SUM(K141:K146) -> 0
A141: Water Rights | I141: 0
A142: Effluent Licenses | I142: 0
A143: Solid Waste Licenses | I143: 0
A144: Computer Software and Applications | I144: 0
A145: Load Settlement Software Applications | I145: 0
A146: Unspecified | I146: 0
A148: Computer Equipment | C148: =SUM(C149:C149) -> 0 | D148: 0 | E148: 0 | F148: 0 | G148: 0 | H148: 0 | I148: =H148-G148 -> 0 | J148: =IF(I148=0,"",I148/H148) ->  | K148: =SUM(K149) -> 0
A149: Computer Equipment | I149: =H149-G149 -> 0 | J149: =IF(I149=0,"",I149/H149) -> 
A151: Furniture and Office Equipment | C151: =SUM(C152:C152) -> 0 | D151: 0 | E151: 0 | F151: 0 | G151: 0 | H151: 0 | I151: =H151-G151 -> 0 | J151: =IF(I151=0,"",I151/H151) ->  | K151: =SUM(K152) -> 0
A152: Furniture and Office Equipment | I152: =H152-G152 -> 0 | J152: =IF(I152=0,"",I152/H152) -> 
J153: =IF(I153=0,"",I153/H153) -> 
A154: Machinery and Equipment | C154: =SUM(C155:C155) -> 0 | D154: 0 | E154: 0 | F154: 0 | G154: 0 | H154: 0 | I154: =H154-G154 -> 0 | J154: =IF(I154=0,"",I154/H154) ->  | K154: =SUM(K155) -> 0
A155: Machinery and Equipment | I155: =H155-G155 -> 0 | J155: =IF(I155=0,"",I155/H155) -> 
A157: Transport Assets | C157: =SUM(C158:C158) -> 0 | D157: 0 | E157: 0 | F157: 0 | G157: 0 | H157: 0 | I157: =H157-G157 -> 0 | J157: =IF(I157=0,"",I157/H157) ->  | K157: =SUM(K158) -> 0
A158: Transport Assets | I158: =H158-G158 -> 0 | J158: =IF(I158=0,"",I158/H158) -> 
A160: Land | C160: =SUM(C161:C161) -> 0 | D160: 0 | E160: 0 | F160: 0 | G160: 0 | H160: 0 | I160: =H160-G160 -> 0 | J160: =IF(I160=0,"",I160/H160) ->  | K160: =SUM(K161) -> 0
A161: Land | I161: =H161-G161 -> 0 | J161: =IF(I161=0,"",I161/H161) -> 
J162: .
A163: Zoo's, Marine and Non-biological Animals | C163: =SUM(C164:C164) -> 0 | D163: 0 | E163: 0 | F163: 0 | G163: 0 | H163: 0 | I163: =H163-G163 -> 0 | J163: =IF(I163=0,"",I163/H163) ->  | K163: =SUM(K164) -> 0
A164: Zoo's, Marine and Non-biological Animals | I164: =H164-G164 -> 0 | J164: =IF(I164=0,"",I164/H164) -> 
J165: =IF(I165=0,"",I165/H165) -> 
A166: Total Capital Expenditure on renewal of existing assets | B166: 1 | C166: =C7+C75+C103+C110+C117+C135+C138+C148+C151+C154+C157+C160+C163 -> 0 | D166: 74454487 | E166: 0 | F166: 11698449 | G166: 33217965 | H166: 0 | I166: =H166-G166 -> -33217965 | J166: =IF(I166=0,"",I166/H166) ->  | K166: =K7+K75+K103+K110+K117+K135+K138+K148+K151+K154+K157+K160+K163 -> 0
A168: =head27a -> References
A169: 1. Total Capital Expenditure on new assets (SC13a) plus Total Capital Expenditure on renewal of existing assets (SC13b) plus Total Capital Expenditure on upgrading of existing assets (SC13e) must reconcile to total capital expenditure in Table C5
A171: check balance | C171: =C166+SC13a!C166+SC13e!C166-'C5-Capex'!C40 -> 0 | D171: =D166+SC13a!D166+SC13e!D166-'C5-Capex'!D40 -> 0 | E171: =E166+SC13a!E166+SC13e!E166-'C5-Capex'!E40 -> 0 | F171: =F166+SC13a!F166+SC13e!F166-'C5-Capex'!F40 -> 0 | G171: =G166+SC13a!G166+SC13e!G166-'C5-Capex'!G40 -> 0 | H171: =H166+SC13a!H166+SC13e!H166-'C5-Capex'!H40 -> -59636014 | K171: =K166+SC13a!K166+SC13e!K166-'C5-Capex'!K40 -> 0

Sheet SC13c
A1: =muni& " - "&S71Sc& " - "&Head57 -> LIM332 Greater Letaba - Supporting Table SC13c Monthly Budget Statement - expenditure on repairs and maintenance by asset class - M06 December
A2: =desc -> Description | B2: =head27 -> Ref | C2: =Head1 -> 2019/20 | D2: =Head2 -> Budget Year 2020/21
C3: =Head5 -> Audited Outcome | D3: =Head6 -> Original Budget | E3: =Head7 -> Adjusted Budget | F3: =Head38 -> Monthly actual | G3: =Head39 -> YearTD actual | H3: =Head40 -> YearTD budget | I3: =Head41 -> YTD variance | J3: =Head41 -> YTD variance | K3: =Head8 -> Full Year Forecast
A4: R thousands | B4: 1 | J4: %
A5: Repairs and maintenance expenditure by Asset Class/Sub-class
A7: Infrastructure | C7: =C8+C13+C17+C27+C38+C45+C53+C63+C69 -> 0 | D7: 8975129.682 | E7: 0 | F7: 351000 | G7: 4099126 | H7: 0 | I7: =H7-G7 -> -4099126 | J7: =IF(I7=0,"",I7/H7) ->  | K7: =K8+K13+K17+K27+K38+K45+K53+K63+K69 -> 0
A8: Roads Infrastructure | C8: =SUM(C9:C12) -> 0 | D8: 5662225.313 | E8: 0 | F8: 351000 | G8: 4099126 | H8: 0 | I8: -4099126 | K8: =SUM(K9:K12) -> 0
A9: Roads | D9: 5662225.313 | F9: 351000 | G9: =3487267-274141+886000 -> 4099126 | H9: 0 | I9: -4099126
A10: Road Structures | I10: 0
A11: Road Furniture | I11: 0
A12: Capital Spares | I12: 0
A13: Storm water Infrastructure | C13: =SUM(C14:C16) -> 0 | D13: 0 | E13: 0 | F13: 0 | G13: 0 | H13: 0 | I13: 0 | K13: =SUM(K14:K16) -> 0
A14: Drainage Collection | I14: 0
A15: Storm water Conveyance | I15: 0
A16: Attenuation | I16: 0
A17: Electrical Infrastructure | C17: =SUM(C18:C26) -> 0 | D17: 3312904.37 | E17: 0 | F17: 0 | G17: 0 | H17: 0 | I17: 0 | K17: =SUM(K18:K26) -> 0
A18: Power Plants | I18: 0
A19: HV Substations | I19: 0
A20: HV Switching Station | I20: 0
A21: HV Transmission Conductors | I21: 0
A22: MV Substations | I22: 0
A23: MV Switching Stations | I23: 0
A24: MV Networks | D24: 405716 | I24: 0
A25: LV Networks | D25: 1231008.37 | H25: 0 | I25: 0
A26: Capital Spares | D26: 1676180 | H26: 0 | I26: 0
A27: Water Supply Infrastructure | C27: =SUM(C28:C37) -> 0 | D27: 0 | E27: 0 | F27: 0 | G27: 0 | H27: 0 | I27: 0 | K27: =SUM(K28:K37) -> 0
A28: Dams and Weirs | I28: 0
A29: Boreholes | I29: 0
A30: Reservoirs | I30: 0
A31: Pump Stations | I31: 0
A32: Water Treatment Works | I32: 0
A33: Bulk Mains | I33: 0
A34: Distribution | I34: 0
A35: Distribution Points | I35: 0
A36: PRV Stations | I36: 0
A37: Capital Spares | I37: 0
A38: Sanitation Infrastructure | C38: =SUM(C39:C44) -> 0 | D38: 0 | E38: 0 | F38: 0 | G38: 0 | H38: 0 | I38: 0 | K38: =SUM(K39:K44) -> 0
A39: Pump Station | I39: 0
A40: Reticulation | I40: 0
A41: Waste Water Treatment Works | I41: 0
A42: Outfall Sewers | I42: 0
A43: Toilet Facilities | I43: 0
A44: Capital Spares | I44: 0
A45: Solid Waste Infrastructure | C45: =SUM(C46:C52) -> 0 | D45: 0 | E45: 0 | F45: 0 | G45: 0 | H45: 0 | I45: 0 | K45: =SUM(K46:K52) -> 0
A46: Landfill Sites | I46: 0
A47: Waste Transfer Stations | I47: 0
A48: Waste Processing Facilities | I48: 0
A49: Waste Drop-off Points | I49: 0
A50: Waste Separation Facilities | I50: 0
A51: Electricity Generation Facilities | I51: 0
A52: Capital Spares | I52: 0
A53: Rail Infrastructure | C53: =SUM(C54:C62) -> 0 | D53: 0 | E53: 0 | F53: 0 | G53: 0 | H53: 0 | I53: 0 | K53: =SUM(K54:K62) -> 0
A54: Rail Lines | I54: 0
A55: Rail Structures | I55: 0
A56: Rail Furniture | I56: 0
A57: Drainage Collection | I57: 0
A58: Storm water Conveyance | I58: 0
A59: Attenuation | I59: 0
A60: MV Substations | I60: 0
A61: LV Networks | I61: 0
A62: Capital Spares | I62: 0
A63: Coastal Infrastructure | C63: =SUM(C64:C68) -> 0 | D63: 0 | E63: 0 | F63: 0 | G63: 0 | H63: 0 | I63: 0 | K63: =SUM(K64:K68) -> 0
A64: Sand Pumps | I64: 0
A65: Piers | I65: 0
A66: Revetments | I66: 0
A67: Promenades | I67: 0
A68: Capital Spares | I68: 0
A69: Information and Communication Infrastructure | C69: =SUM(C70:C73) -> 0 | D69: 0 | E69: 0 | F69: 0 | G69: 0 | H69: 0 | I69: 0 | K69: =SUM(K70:K73) -> 0
A70: Data Centres | I70: 0
A71: Core Layers | I71: 0
A72: Distribution Layers | I72: 0
A73: Capital Spares | I73: 0
A75: Community Assets | C75: =+C76+C99 -> 0 | D75: 6969176 | E75: 0 | F75: 0 | G75: 22128 | H75: 0 | I75: -22128 | K75: =+K76+K99 -> 0
A76: Community Facilities | C76: =SUM(C77:C98) -> 0 | D76: 3400804 | E76: 0 | F76: 0 | G76: 22128 | H76: 0 | I76: -22128 | K76: =SUM(K77:K98) -> 0
A77: Halls | D77: 3400804 | F77: 0 | G77: 22128 | H77: 0 | I77: -22128
A78: Centres | I78: 0
A79: Crèches | I79: 0
A80: Clinics/Care Centres | I80: 0
A81: Fire/Ambulance Stations | I81: 0
A82: Testing Stations | I82: 0
A83: Museums | I83: 0
A84: Galleries | I84: 0
A85: Theatres | I85: 0
A86: Libraries | I86: 0
A87: Cemeteries/Crematoria | I87: 0
A88: Police | I88: 0
A89: Purls | I89: 0
A90: Public Open Space | I90: 0
A91: Nature Reserves | I91: 0
A92: Public Ablution Facilities | I92: 0
A93: Markets | I93: 0
A94: Stalls | I94: 0
A95: Abattoirs | I95: 0
A96: Airports | I96: 0
A97: Taxi Ranks/Bus Terminals | I97: 0
A98: Capital Spares | I98: 0
A99: Sport and Recreation Facilities | C99: =SUM(C100:C102) -> 0 | D99: 3568372 | E99: 0 | F99: 0 | G99: 0 | H99: 0 | I99: 0 | K99: =SUM(K100:K102) -> 0
A100: Indoor Facilities | I100: 0
A101: Outdoor Facilities | D101: 3568372 | H101: 0 | I101: =H101-G101 -> 0 | J101: =IF(I101=0,"",I101/H101) -> 
A102: Capital Spares | I102: 0
A103: Heritage assets | C103: =SUM(C104:C108) -> 0 | D103: 0 | E103: 0 | F103: 0 | G103: 0 | H103: 0 | I103: 0 | K103: =SUM(K104:K108) -> 0
A104: Monuments | I104: 0
A105: Historic Buildings | I105: 0
A106: Works of Art | I106: 0
A107: Conservation Areas | I107: 0
A108: Other Heritage | I108: 0
I109: 0
A110: Investment properties | C110: =+C111+C114 -> 0 | D110: 0 | E110: 0 | F110: 0 | G110: 0 | H110: 0 | I110: 0 | K110: =+K111+K114 -> 0
A111: Revenue Generating | C111: =SUM(C112:C113) -> 0 | D111: 0 | E111: 0 | F111: 0 | G111: 0 | H111: 0 | I111: 0 | K111: =SUM(K112:K113) -> 0
A112: Improved Property | I112: 0
A113: Unimproved Property | I113: 0
A114: Non-revenue Generating | C114: =SUM(C115:C116) -> 0 | D114: 0 | E114: 0 | F114: 0 | G114: 0 | H114: 0 | I114: 0 | K114: =SUM(K115:K116) -> 0
A115: Improved Property | I115: 0
A116: Unimproved Property | I116: =H116-G116 -> 0 | J116: =IF(I116=0,"",I116/H116) -> 
A117: Other assets | C117: =+C118+C130 -> 0 | D117: 5710431 | E117: 0 | F117: 14050 | G117: 45706 | H117: 0 | I117: -45706 | K117: =+K118+K130 -> 0
A118: Operational Buildings | C118: =SUM(C119:C129) -> 0 | D118: 5710431 | E118: 0 | F118: 14050 | G118: 45706 | H118: 0 | I118: -45706 | K118: =SUM(K119:K129) -> 0
A119: Municipal Offices | D119: =2243431+1467000+2000000 -> 5710431 | F119: 14050 | G119: =15579+16077+14050 -> 45706 | H119: 0 | I119: -45706
A120: Pay/Enquiry Points | I120: 0
A121: Building Plan Offices | I121: 0
A122: Workshops | I122: 0
A123: Yards | I123: 0
A124: Stores | I124: 0
A125: Laboratories | I125: 0
A126: Training Centres | I126: 0
A127: Manufacturing Plant | I127: 0
A128: Depots | I128: 0
A129: Capital Spares | I129: 0
A130: Housing | C130: =SUM(C131:C133) -> 0 | D130: 0 | E130: 0 | F130: 0 | G130: 0 | H130: 0 | I130: 0 | K130: =SUM(K131:K133) -> 0
A131: Staff Housing | I131: 0
A132: Social Housing | I132: 0
A133: Capital Spares | I133: 0
A135: Biological or Cultivated Assets | C135: =SUM(C136:C136) -> 0 | D135: 0 | E135: 0 | F135: 0 | G135: 0 | H135: 0 | I135: =H135-G135 -> 0 | K135: =SUM(K136) -> 0
A136: Biological or Cultivated Assets | I136: =H136-G136 -> 0
J137: =IF(I137=0,"",I137/H137) -> 
A138: Intangible Assets | C138: =SUM(C139:C140) -> 0 | D138: 0 | E138: 0 | F138: 0 | G138: 0 | H138: 0 | I138: =H138-G138 -> 0 | K138: =SUM(K139:K140) -> 0
A139: Servitudes | I139: 0
A140: Licences and Rights | C140: =SUM(C141:C146) -> 0 | D140: 0 | E140: 0 | F140: 0 | G140: 0 | H140: 0 | I140: 0 | K140: =SUM(K141:K146) -> 0
A141: Water Rights | I141: 0
A142: Effluent Licenses | I142: 0
A143: Solid Waste Licenses | I143: 0
A144: Computer Software and Applications | I144: 0
A145: Load Settlement Software Applications | I145: 0
A146: Unspecified | I146: 0
A148: Computer Equipment | C148: =SUM(C149:C149) -> 0 | D148: 2125640.202 | E148: 0 | F148: 235467 | G148: 723103 | H148: 0 | I148: =H148-G148 -> -723103 | J148: =IF(I148=0,"",I148/H148) ->  | K148: =SUM(K149) -> 0
A149: Computer Equipment | D149: 2125640.202 | F149: 235467 | G149: =487636+235467 -> 723103 | H149: 0 | I149: =H149-G149 -> -723103 | J149: =IF(I149=0,"",I149/H149) -> 
A151: Furniture and Office Equipment | C151: =SUM(C152:C152) -> 0 | D151: 0 | E151: 0 | F151: 0 | G151: 0 | H151: 0 | I151: =H151-G151 -> 0 | J151: =IF(I151=0,"",I151/H151) ->  | K151: =SUM(K152) -> 0
A152: Furniture and Office Equipment | D152: 0 | I152: =H152-G152 -> 0 | J152: =IF(I152=0,"",I152/H152) -> 
J153: =IF(I153=0,"",I153/H153) -> 
A154: Machinery and Equipment | C154: =SUM(C155:C155) -> 0 | D154: 2140005 | E154: 0 | F154: 197181 | G154: 404243 | H154: 0 | I154: =H154-G154 -> -404243 | J154: =IF(I154=0,"",I154/H154) ->  | K154: =SUM(K155) -> 0
A155: Machinery and Equipment | D155: 2140005 | F155: =197181 -> 197181 | G155: =207062+197181 -> 404243 | H155: 0 | I155: =H155-G155 -> -404243 | J155: =IF(I155=0,"",I155/H155) -> 
A157: Transport Assets | C157: =SUM(C158:C158) -> 0 | D157: 8871883.935 | E157: 0 | F157: 1210105 | G157: 1210105 | H157: 0 | I157: =H157-G157 -> -1210105 | J157: =IF(I157=0,"",I157/H157) ->  | K157: =SUM(K158) -> 0
A158: Transport Assets | D158: 8871883.935 | F158: 1210105 | G158: 1210105 | H158: 0 | I158: =H158-G158 -> -1210105 | J158: =IF(I158=0,"",I158/H158) -> 
A160: Land | C160: =SUM(C161:C161) -> 0 | D160: 0 | E160: 0 | F160: 0 | G160: 0 | H160: 0 | I160: =H160-G160 -> 0 | J160: =IF(I160=0,"",I160/H160) ->  | K160: =SUM(K161) -> 0
A161: Land | I161: =H161-G161 -> 0 | J161: =IF(I161=0,"",I161/H161) -> 
A163: Zoo's, Marine and Non-biological Animals | C163: =SUM(C164:C164) -> 0 | D163: 0 | E163: 0 | F163: 0 | G163: 0 | H163: 0 | I163: =H163-G163 -> 0 | J163: =IF(I163=0,"",I163/H163) ->  | K163: =SUM(K164) -> 0
A164: Zoo's, Marine and Non-biological Animals | I164: =H164-G164 -> 0 | J164: =IF(I164=0,"",I164/H164) -> 
J165: =IF(I165=0,"",I165/H165) -> 
A166: Total Repairs and Maintenance Expenditure | B166: 1 | C166: =C7+C75+C103+C110+C117+C135+C138+C148+C151+C154+C157+C160+C163 -> 0 | D166: 34792265.82 | E166: 0 | F166: 2007803 | G166: 6504411 | H166: 0 | I166: -6504411 | K166: =K7+K75+K103+K110+K117+K135+K138+K148+K151+K154+K157+K160+K163 -> 0

Sheet SC13d
A1: =muni& " - "&S71Sd& " - "&Head57 -> LIM332 Greater Letaba - Supporting Table SC13d Monthly Budget Statement - depreciation by asset class - M06 December
A2: =desc -> Description | B2: =head27 -> Ref | C2: =Head1 -> 2019/20 | D2: =Head2 -> Budget Year 2020/21
C3: =Head5 -> Audited Outcome | D3: =Head6 -> Original Budget | E3: =Head7 -> Adjusted Budget | F3: =Head38 -> Monthly actual | G3: =Head39 -> YearTD actual | H3: =Head40 -> YearTD budget | I3: =Head41 -> YTD variance | J3: =Head41 -> YTD variance | K3: =Head8 -> Full Year Forecast
A4: R thousands | B4: 1 | J4: %
A5: Depreciation by Asset Class/Sub-class
A7: Infrastructure | C7: =C8+C13+C17+C27+C38+C45+C53+C63+C69 -> 0 | D7: 8712161.12 | E7: 0 | F7: 0 | G7: 0 | H7: 0 | I7: =H7-G7 -> 0 | J7: =IF(I7=0,"",I7/H7) ->  | K7: =K8+K13+K17+K27+K38+K45+K53+K63+K69 -> 0
A8: Roads Infrastructure | C8: =SUM(C9:C12) -> 0 | D8: 8430409.02 | E8: 0 | F8: 0 | G8: 0 | H8: 0 | I8: 0 | K8: =SUM(K9:K12) -> 0
A9: Roads | D9: 8430409.02 | I9: 0
A10: Road Structures | I10: 0
A11: Road Furniture | I11: 0
A12: Capital Spares | I12: 0
A13: Storm water Infrastructure | C13: =SUM(C14:C16) -> 0 | D13: 0 | E13: 0 | F13: 0 | G13: 0 | H13: 0 | I13: 0 | K13: =SUM(K14:K16) -> 0
A14: Drainage Collection | I14: 0
A15: Storm water Conveyance | I15: 0
A16: Attenuation | I16: 0
A17: Electrical Infrastructure | C17: =SUM(C18:C26) -> 0 | D17: 281752.1 | E17: 0 | F17: 0 | G17: 0 | H17: 0 | I17: 0 | K17: =SUM(K18:K26) -> 0
A18: Power Plants | I18: 0
A19: HV Substations | I19: 0
A20: HV Switching Station | I20: 0
A21: HV Transmission Conductors | I21: 0
A22: MV Substations | I22: 0
A23: MV Switching Stations | I23: 0
A24: MV Networks | I24: 0
A25: LV Networks | D25: 80104.52 | I25: 0
A26: Capital Spares | D26: 201647.58 | I26: 0
A27: Water Supply Infrastructure | C27: =SUM(C28:C37) -> 0 | D27: 0 | E27: 0 | F27: 0 | G27: 0 | H27: 0 | I27: 0 | K27: =SUM(K28:K37) -> 0
A28: Dams and Weirs | I28: 0
A29: Boreholes | I29: 0
A30: Reservoirs | I30: 0
A31: Pump Stations | I31: 0
A32: Water Treatment Works | I32: 0
A33: Bulk Mains | I33: 0
A34: Distribution | I34: 0
A35: Distribution Points | I35: 0
A36: PRV Stations | I36: 0
A37: Capital Spares | I37: 0
A38: Sanitation Infrastructure | C38: =SUM(C39:C44) -> 0 | D38: 0 | E38: 0 | F38: 0 | G38: 0 | H38: 0 | I38: 0 | K38: =SUM(K39:K44) -> 0
A39: Pump Station | I39: 0
A40: Reticulation | I40: 0
A41: Waste Water Treatment Works | I41: 0
A42: Outfall Sewers | I42: 0
A43: Toilet Facilities | I43: 0
A44: Capital Spares | I44: 0
A45: Solid Waste Infrastructure | C45: =SUM(C46:C52) -> 0 | D45: 0 | E45: 0 | F45: 0 | G45: 0 | H45: 0 | I45: 0 | K45: =SUM(K46:K52) -> 0
A46: Landfill Sites | I46: 0
A47: Waste Transfer Stations | I47: 0
A48: Waste Processing Facilities | I48: 0
A49: Waste Drop-off Points | I49: 0
A50: Waste Separation Facilities | I50: 0
A51: Electricity Generation Facilities | I51: 0
A52: Capital Spares | I52: 0
A53: Rail Infrastructure | C53: =SUM(C54:C62) -> 0 | D53: 0 | E53: 0 | F53: 0 | G53: 0 | H53: 0 | I53: 0 | K53: =SUM(K54:K62) -> 0
A54: Rail Lines | I54: 0
A55: Rail Structures | I55: 0
A56: Rail Furniture | I56: 0
A57: Drainage Collection | I57: 0
A58: Storm water Conveyance | I58: 0
A59: Attenuation | I59: 0
A60: MV Substations | I60: 0
A61: LV Networks | I61: 0
A62: Capital Spares | I62: 0
A63: Coastal Infrastructure | C63: =SUM(C64:C68) -> 0 | D63: 0 | E63: 0 | F63: 0 | G63: 0 | H63: 0 | I63: 0 | K63: =SUM(K64:K68) -> 0
A64: Sand Pumps | I64: 0
A65: Piers | I65: 0
A66: Revetments | I66: 0
A67: Promenades | I67: 0
A68: Capital Spares | I68: 0
A69: Information and Communication Infrastructure | C69: =SUM(C70:C73) -> 0 | D69: 0 | E69: 0 | F69: 0 | G69: 0 | H69: 0 | I69: 0 | K69: =SUM(K70:K73) -> 0
A70: Data Centres | I70: 0
A71: Core Layers | I71: 0
A72: Distribution Layers | I72: 0
A73: Capital Spares | I73: 0
A75: Community Assets | C75: =+C76+C99 -> 0 | D75: 1500000 | E75: 0 | F75: 0 | G75: 0 | H75: 0 | I75: 0 | K75: =+K76+K99 -> 0
A76: Community Facilities | C76: =SUM(C77:C98) -> 0 | D76: 1500000 | E76: 0 | F76: 0 | G76: 0 | H76: 0 | I76: 0 | K76: =SUM(K77:K98) -> 0
A77: Halls | D77: 1500000 | I77: 0
A78: Centres | I78: 0
A79: Crèches | I79: 0
A80: Clinics/Care Centres | I80: 0
A81: Fire/Ambulance Stations | I81: 0
A82: Testing Stations | I82: 0
A83: Museums | I83: 0
A84: Galleries | I84: 0
A85: Theatres | I85: 0
A86: Libraries | I86: 0
A87: Cemeteries/Crematoria | I87: 0
A88: Police | I88: 0
A89: Purls | I89: 0
A90: Public Open Space | I90: 0
A91: Nature Reserves | I91: 0
A92: Public Ablution Facilities | I92: 0
A93: Markets | I93: 0
A94: Stalls | I94: 0
A95: Abattoirs | I95: 0
A96: Airports | I96: 0
A97: Taxi Ranks/Bus Terminals | I97: 0
A98: Capital Spares | I98: 0
A99: Sport and Recreation Facilities | C99: =SUM(C100:C102) -> 0 | D99: 0 | E99: 0 | F99: 0 | G99: 0 | H99: 0 | I99: 0 | K99: =SUM(K100:K102) -> 0
A100: Indoor Facilities | I100: 0
A101: Outdoor Facilities | I101: =H101-G101 -> 0 | J101: =IF(I101=0,"",I101/H101) -> 
A102: Capital Spares | I102: 0
A103: Heritage assets | C103: =SUM(C104:C108) -> 0 | D103: 0 | E103: 0 | F103: 0 | G103: 0 | H103: 0 | I103: 0 | K103: =SUM(K104:K108) -> 0
A104: Monuments | I104: 0
A105: Historic Buildings | I105: 0
A106: Works of Art | I106: 0
A107: Conservation Areas | I107: 0
A108: Other Heritage | I108: 0
I109: 0
A110: Investment properties | C110: =+C111+C114 -> 0 | D110: 0 | E110: 0 | F110: 0 | G110: 0 | H110: 0 | I110: 0 | K110: =+K111+K114 -> 0
A111: Revenue Generating | C111: =SUM(C112:C113) -> 0 | D111: 0 | E111: 0 | F111: 0 | G111: 0 | H111: 0 | I111: 0 | K111: =SUM(K112:K113) -> 0
A112: Improved Property | I112: 0
A113: Unimproved Property | I113: 0
A114: Non-revenue Generating | C114: =SUM(C115:C116) -> 0 | D114: 0 | E114: 0 | F114: 0 | G114: 0 | H114: 0 | I114: 0 | K114: =SUM(K115:K116) -> 0
A115: Improved Property | I115: 0
A116: Unimproved Property | I116: =H116-G116 -> 0 | J116: =IF(I116=0,"",I116/H116) -> 
A117: Other assets | C117: =+C118+C130 -> 0 | D117: 0 | E117: 0 | F117: 0 | G117: 0 | H117: 0 | I117: 0 | K117: =+K118+K130 -> 0
A118: Operational Buildings | C118: =SUM(C119:C129) -> 0 | D118: 0 | E118: 0 | F118: 0 | G118: 0 | H118: 0 | I118: 0 | K118: =SUM(K119:K129) -> 0
A119: Municipal Offices | I119: 0
A120: Pay/Enquiry Points | I120: 0
A121: Building Plan Offices | I121: 0
A122: Workshops | I122: 0
A123: Yards | I123: 0
A124: Stores | I124: 0
A125: Laboratories | I125: 0
A126: Training Centres | I126: 0
A127: Manufacturing Plant | I127: 0
A128: Depots | I128: 0
A129: Capital Spares | I129: 0
A130: Housing | C130: =SUM(C131:C133) -> 0 | D130: 0 | E130: 0 | F130: 0 | G130: 0 | H130: 0 | I130: 0 | K130: =SUM(K131:K133) -> 0
A131: Staff Housing | I131: 0
A132: Social Housing | I132: 0
A133: Capital Spares | I133: 0
A135: Biological or Cultivated Assets | C135: =SUM(C136:C136) -> 0 | D135: 0 | E135: 0 | F135: 0 | G135: 0 | H135: 0 | I135: =H135-G135 -> 0 | K135: =SUM(K136) -> 0
A136: Biological or Cultivated Assets | I136: =H136-G136 -> 0
J137: =IF(I137=0,"",I137/H137) -> 
A138: Intangible Assets | C138: =SUM(C139:C140) -> 0 | D138: 0 | E138: 0 | F138: 0 | G138: 0 | H138: 0 | I138: =H138-G138 -> 0 | K138: =SUM(K139:K140) -> 0
A139: Servitudes | I139: 0
A140: Licences and Rights | C140: =SUM(C141:C146) -> 0 | D140: 0 | E140: 0 | F140: 0 | G140: 0 | H140: 0 | I140: 0 | K140: =SUM(K141:K146) -> 0
A141: Water Rights | I141: 0
A142: Effluent Licenses | I142: 0
A143: Solid Waste Licenses | I143: 0
A144: Computer Software and Applications | I144: 0
A145: Load Settlement Software Applications | I145: 0
A146: Unspecified | I146: 0
A148: Computer Equipment | C148: =SUM(C149:C149) -> 0 | D148: 0 | E148: 0 | F148: 0 | G148: 0 | H148: 0 | I148: =H148-G148 -> 0 | J148: =IF(I148=0,"",I148/H148) ->  | K148: =SUM(K149) -> 0
A149: Computer Equipment | I149: =H149-G149 -> 0 | J149: =IF(I149=0,"",I149/H149) -> 
A151: Furniture and Office Equipment | C151: =SUM(C152:C152) -> 0 | D151: 1400359.75 | E151: 0 | F151: 0 | G151: 0 | H151: 0 | I151: =H151-G151 -> 0 | J151: =IF(I151=0,"",I151/H151) ->  | K151: =SUM(K152) -> 0
A152: Furniture and Office Equipment | D152: 1400359.75 | I152: =H152-G152 -> 0 | J152: =IF(I152=0,"",I152/H152) -> 
J153: =IF(I153=0,"",I153/H153) -> 
A154: Machinery and Equipment | C154: =SUM(C155:C155) -> 0 | D154: 1049323.1 | E154: 0 | F154: 0 | G154: 0 | H154: 0 | I154: =H154-G154 -> 0 | J154: =IF(I154=0,"",I154/H154) ->  | K154: =SUM(K155) -> 0
A155: Machinery and Equipment | D155: 1049323.1 | I155: =H155-G155 -> 0 | J155: =IF(I155=0,"",I155/H155) -> 
A157: Transport Assets | C157: =SUM(C158:C158) -> 0 | D157: 361242.03 | E157: 0 | F157: 0 | G157: 0 | H157: 0 | I157: =H157-G157 -> 0 | J157: =IF(I157=0,"",I157/H157) ->  | K157: =SUM(K158) -> 0
A158: Transport Assets | D158: 361242.03 | I158: =H158-G158 -> 0 | J158: =IF(I158=0,"",I158/H158) -> 
A160: Land | C160: =SUM(C161:C161) -> 0 | D160: 0 | E160: 0 | F160: 0 | G160: 0 | H160: 0 | I160: =H160-G160 -> 0 | J160: =IF(I160=0,"",I160/H160) ->  | K160: =SUM(K161) -> 0
A161: Land | I161: =H161-G161 -> 0 | J161: =IF(I161=0,"",I161/H161) -> 
A163: Zoo's, Marine and Non-biological Animals | C163: =SUM(C164:C164) -> 0 | D163: 0 | E163: 0 | F163: 0 | G163: 0 | H163: 0 | I163: =H163-G163 -> 0 | J163: =IF(I163=0,"",I163/H163) ->  | K163: =SUM(K164) -> 0
A164: Zoo's, Marine and Non-biological Animals | I164: =H164-G164 -> 0 | J164: =IF(I164=0,"",I164/H164) -> 
J165: =IF(I165=0,"",I165/H165) -> 
A166: Total Depreciation | B166: 1 | C166: =C7+C75+C103+C110+C117+C135+C138+C148+C151+C154+C157+C160+C163 -> 0 | D166: 13023086 | E166: 0 | F166: 0 | G166: 0 | H166: 0 | I166: 0 | K166: =K7+K75+K103+K110+K117+K135+K138+K148+K151+K154+K157+K160+K163 -> 0

Sheet SC13e
A1: =muni& " - "&S71Se& " - "&Head57 -> LIM332 Greater Letaba - Supporting Table SC13e Monthly Budget Statement - capital expenditure on upgrading of existing assets by asset class - M06 December
A2: =desc -> Description | B2: =head27 -> Ref | C2: =Head1 -> 2019/20 | D2: =Head2 -> Budget Year 2020/21
C3: =Head5 -> Audited Outcome | D3: =Head6 -> Original Budget | E3: =Head7 -> Adjusted Budget | F3: =Head38 -> Monthly actual | G3: =Head39 -> YearTD actual | H3: =Head40 -> YearTD budget | I3: =Head41 -> YTD variance | J3: =Head41 -> YTD variance | K3: =Head8 -> Full Year Forecast
A4: R thousands | B4: 1 | J4: %
A5: Capital expenditure on upgrading of existing assets by Asset Class/Sub-class
A7: Infrastructure | C7: =C8+C13+C17+C27+C38+C45+C53+C63+C69 -> 0 | D7: 0 | E7: 0 | F7: 0 | G7: 0 | H7: 0 | I7: =H7-G7 -> 0 | J7: =IF(I7=0,"",I7/H7) ->  | K7: =K8+K13+K17+K27+K38+K45+K53+K63+K69 -> 0
A8: Roads Infrastructure | C8: =SUM(C9:C12) -> 0 | D8: 0 | E8: 0 | F8: 0 | G8: 0 | H8: 0 | I8: 0 | K8: =SUM(K9:K12) -> 0
A9: Roads | I9: 0
A10: Road Structures | I10: 0
A11: Road Furniture | I11: 0
A12: Capital Spares | I12: 0
A13: Storm water Infrastructure | C13: =SUM(C14:C16) -> 0 | D13: 0 | E13: 0 | F13: 0 | G13: 0 | H13: 0 | I13: 0 | K13: =SUM(K14:K16) -> 0
A14: Drainage Collection | I14: 0
A15: Storm water Conveyance | I15: 0
A16: Attenuation | I16: 0
A17: Electrical Infrastructure | C17: =SUM(C18:C26) -> 0 | D17: 0 | E17: 0 | F17: 0 | G17: 0 | H17: 0 | I17: 0 | K17: =SUM(K18:K26) -> 0
A18: Power Plants | I18: 0
A19: HV Substations | I19: 0
A20: HV Switching Station | I20: 0
A21: HV Transmission Conductors | I21: 0
A22: MV Substations | I22: 0
A23: MV Switching Stations | I23: 0
A24: MV Networks | I24: 0
A25: LV Networks | I25: 0
A26: Capital Spares | I26: 0
A27: Water Supply Infrastructure | C27: =SUM(C28:C37) -> 0 | D27: 0 | E27: 0 | F27: 0 | G27: 0 | H27: 0 | I27: 0 | K27: =SUM(K28:K37) -> 0
A28: Dams and Weirs | I28: 0
A29: Boreholes | I29: 0
A30: Reservoirs | I30: 0
A31: Pump Stations | I31: 0
A32: Water Treatment Works | I32: 0
A33: Bulk Mains | I33: 0
A34: Distribution | I34: 0
A35: Distribution Points | I35: 0
A36: PRV Stations | I36: 0
A37: Capital Spares | I37: 0
A38: Sanitation Infrastructure | C38: =SUM(C39:C44) -> 0 | D38: 0 | E38: 0 | F38: 0 | G38: 0 | H38: 0 | I38: 0 | K38: =SUM(K39:K44) -> 0
A39: Pump Station | I39: 0
A40: Reticulation | I40: 0
A41: Waste Water Treatment Works | I41: 0
A42: Outfall Sewers | I42: 0
A43: Toilet Facilities | I43: 0
A44: Capital Spares | I44: 0
A45: Solid Waste Infrastructure | C45: =SUM(C46:C52) -> 0 | D45: 0 | E45: 0 | F45: 0 | G45: 0 | H45: 0 | I45: 0 | K45: =SUM(K46:K52) -> 0
A46: Landfill Sites | I46: 0
A47: Waste Transfer Stations | I47: 0
A48: Waste Processing Facilities | I48: 0
A49: Waste Drop-off Points | I49: 0
A50: Waste Separation Facilities | I50: 0
A51: Electricity Generation Facilities | I51: 0
A52: Capital Spares | I52: 0
A53: Rail Infrastructure | C53: =SUM(C54:C62) -> 0 | D53: 0 | E53: 0 | F53: 0 | G53: 0 | H53: 0 | I53: 0 | K53: =SUM(K54:K62) -> 0
A54: Rail Lines | I54: 0
A55: Rail Structures | I55: 0
A56: Rail Furniture | I56: 0
A57: Drainage Collection | I57: 0
A58: Storm water Conveyance | I58: 0
A59: Attenuation | I59: 0
A60: MV Substations | I60: 0
A61: LV Networks | I61: 0
A62: Capital Spares | I62: 0
A63: Coastal Infrastructure | C63: =SUM(C64:C68) -> 0 | D63: 0 | E63: 0 | F63: 0 | G63: 0 | H63: 0 | I63: 0 | K63: =SUM(K64:K68) -> 0
A64: Sand Pumps | I64: 0
A65: Piers | I65: 0
A66: Revetments | I66: 0
A67: Promenades | I67: 0
A68: Capital Spares | I68: 0
A69: Information and Communication Infrastructure | C69: =SUM(C70:C73) -> 0 | D69: 0 | E69: 0 | F69: 0 | G69: 0 | H69: 0 | I69: 0 | K69: =SUM(K70:K73) -> 0
A70: Data Centres | I70: 0
A71: Core Layers | I71: 0
A72: Distribution Layers | I72: 0
A73: Capital Spares | I73: 0
A75: Community Assets | C75: =+C76+C99 -> 0 | D75: 0 | E75: 0 | F75: 0 | G75: 0 | H75: 0 | I75: 0 | K75: =+K76+K99 -> 0
A76: Community Facilities | C76: =SUM(C77:C98) -> 0 | D76: 0 | E76: 0 | F76: 0 | G76: 0 | H76: 0 | I76: 0 | K76: =SUM(K77:K98) -> 0
A77: Halls | I77: 0
A78: Centres | I78: 0
A79: Crèches | I79: 0
A80: Clinics/Care Centres | I80: 0
A81: Fire/Ambulance Stations | I81: 0
A82: Testing Stations | I82: 0
A83: Museums | I83: 0
A84: Galleries | I84: 0
A85: Theatres | I85: 0
A86: Libraries | I86: 0
A87: Cemeteries/Crematoria | I87: 0
A88: Police | I88: 0
A89: Purls | I89: 0
A90: Public Open Space | I90: 0
A91: Nature Reserves | I91: 0
A92: Public Ablution Facilities | I92: 0
A93: Markets | I93: 0
A94: Stalls | I94: 0
A95: Abattoirs | I95: 0
A96: Airports | I96: 0
A97: Taxi Ranks/Bus Terminals | I97: 0
A98: Capital Spares | I98: 0
A99: Sport and Recreation Facilities | C99: =SUM(C100:C102) -> 0 | D99: 0 | E99: 0 | F99: 0 | G99: 0 | H99: 0 | I99: 0 | K99: =SUM(K100:K102) -> 0
A100: Indoor Facilities | I100: 0
A101: Outdoor Facilities | I101: =H101-G101 -> 0 | J101: =IF(I101=0,"",I101/H101) -> 
A102: Capital Spares | I102: 0
A103: Heritage assets | C103: =SUM(C104:C108) -> 0 | D103: 0 | E103: 0 | F103: 0 | G103: 0 | H103: 0 | I103: 0 | K103: =SUM(K104:K108) -> 0
A104: Monuments | I104: 0
A105: Historic Buildings | I105: 0
A106: Works of Art | I106: 0
A107: Conservation Areas | I107: 0
A108: Other Heritage | I108: 0
I109: 0
A110: Investment properties | C110: =+C111+C114 -> 0 | D110: 0 | E110: 0 | F110: 0 | G110: 0 | H110: 0 | I110: 0 | K110: =+K111+K114 -> 0
A111: Revenue Generating | C111: =SUM(C112:C113) -> 0 | D111: 0 | E111: 0 | F111: 0 | G111: 0 | H111: 0 | I111: 0 | K111: =SUM(K112:K113) -> 0
A112: Improved Property | I112: 0
A113: Unimproved Property | I113: 0
A114: Non-revenue Generating | C114: =SUM(C115:C116) -> 0 | D114: 0 | E114: 0 | F114: 0 | G114: 0 | H114: 0 | I114: 0 | K114: =SUM(K115:K116) -> 0
A115: Improved Property | I115: 0
A116: Unimproved Property | I116: =H116-G116 -> 0 | J116: =IF(I116=0,"",I116/H116) -> 
A117: Other assets | C117: =+C118+C130 -> 0 | D117: 0 | E117: 0 | F117: 0 | G117: 0 | H117: 0 | I117: 0 | K117: =+K118+K130 -> 0
A118: Operational Buildings | C118: =SUM(C119:C129) -> 0 | D118: 0 | E118: 0 | F118: 0 | G118: 0 | H118: 0 | I118: 0 | K118: =SUM(K119:K129) -> 0
A119: Municipal Offices | I119: 0
A120: Pay/Enquiry Points | I120: 0
A121: Building Plan Offices | I121: 0
A122: Workshops | I122: 0
A123: Yards | I123: 0
A124: Stores | I124: 0
A125: Laboratories | I125: 0
A126: Training Centres | I126: 0
A127: Manufacturing Plant | I127: 0
A128: Depots | I128: 0
A129: Capital Spares | I129: 0
A130: Housing | C130: =SUM(C131:C133) -> 0 | D130: 0 | E130: 0 | F130: 0 | G130: 0 | H130: 0 | I130: 0 | K130: =SUM(K131:K133) -> 0
A131: Staff Housing | I131: 0
A132: Social Housing | I132: 0
A133: Capital Spares | I133: 0
A135: Biological or Cultivated Assets | C135: =SUM(C136:C136) -> 0 | D135: 0 | E135: 0 | F135: 0 | G135: 0 | H135: 0 | I135: =H135-G135 -> 0 | K135: =SUM(K136) -> 0
A136: Biological or Cultivated Assets | I136: =H136-G136 -> 0
J137: =IF(I137=0,"",I137/H137) -> 
A138: Intangible Assets | C138: =SUM(C139:C140) -> 0 | D138: 0 | E138: 0 | F138: 0 | G138: 0 | H138: 0 | I138: =H138-G138 -> 0 | K138: =SUM(K139:K140) -> 0
A139: Servitudes | I139: 0
A140: Licences and Rights | C140: =SUM(C141:C146) -> 0 | D140: 0 | E140: 0 | F140: 0 | G140: 0 | H140: 0 | I140: 0 | K140: =SUM(K141:K146) -> 0
A141: Water Rights | I141: 0
A142: Effluent Licenses | I142: 0
A143: Solid Waste Licenses | I143: 0
A144: Computer Software and Applications | I144: 0
A145: Load Settlement Software Applications | I145: 0
A146: Unspecified | I146: 0
A148: Computer Equipment | C148: =SUM(C149:C149) -> 0 | D148: 0 | E148: 0 | F148: 0 | G148: 0 | H148: 0 | I148: =H148-G148 -> 0 | J148: =IF(I148=0,"",I148/H148) ->  | K148: =SUM(K149) -> 0
A149: Computer Equipment | I149: =H149-G149 -> 0 | J149: =IF(I149=0,"",I149/H149) -> 
A151: Furniture and Office Equipment | C151: =SUM(C152:C152) -> 0 | D151: 0 | E151: 0 | F151: 0 | G151: 0 | H151: 0 | I151: =H151-G151 -> 0 | J151: =IF(I151=0,"",I151/H151) ->  | K151: =SUM(K152) -> 0
A152: Furniture and Office Equipment | I152: =H152-G152 -> 0 | J152: =IF(I152=0,"",I152/H152) -> 
J153: =IF(I153=0,"",I153/H153) -> 
A154: Machinery and Equipment | C154: =SUM(C155:C155) -> 0 | D154: 0 | E154: 0 | F154: 0 | G154: 0 | H154: 0 | I154: =H154-G154 -> 0 | J154: =IF(I154=0,"",I154/H154) ->  | K154: =SUM(K155) -> 0
A155: Machinery and Equipment | I155: =H155-G155 -> 0 | J155: =IF(I155=0,"",I155/H155) -> 
A157: Transport Assets | C157: =SUM(C158:C158) -> 0 | D157: 0 | E157: 0 | F157: 0 | G157: 0 | H157: 0 | I157: =H157-G157 -> 0 | J157: =IF(I157=0,"",I157/H157) ->  | K157: =SUM(K158) -> 0
A158: Transport Assets | I158: =H158-G158 -> 0 | J158: =IF(I158=0,"",I158/H158) -> 
A160: Land | C160: =SUM(C161:C161) -> 0 | D160: 0 | E160: 0 | F160: 0 | G160: 0 | H160: 0 | I160: =H160-G160 -> 0 | J160: =IF(I160=0,"",I160/H160) ->  | K160: =SUM(K161) -> 0
A161: Land | I161: =H161-G161 -> 0 | J161: =IF(I161=0,"",I161/H161) -> 
J162: .
A163: Zoo's, Marine and Non-biological Animals | C163: =SUM(C164:C164) -> 0 | D163: 0 | E163: 0 | F163: 0 | G163: 0 | H163: 0 | I163: =H163-G163 -> 0 | J163: =IF(I163=0,"",I163/H163) ->  | K163: =SUM(K164) -> 0
A164: Zoo's, Marine and Non-biological Animals | I164: =H164-G164 -> 0 | J164: =IF(I164=0,"",I164/H164) -> 
J165: =IF(I165=0,"",I165/H165) -> 
A166: Total Capital Expenditure on upgrading of existing assets | B166: 1 | C166: =C7+C75+C103+C110+C117+C135+C138+C148+C151+C154+C157+C160+C163 -> 0 | D166: 0 | E166: 0 | F166: 0 | G166: 0 | H166: 0 | I166: =H166-G166 -> 0 | J166: =IF(I166=0,"",I166/H166) ->  | K166: =K7+K75+K103+K110+K117+K135+K138+K148+K151+K154+K157+K160+K163 -> 0
A168: =head27a -> References
A169: 1. Total Capital Expenditure on new assets (SC13a) plus Total Capital Expenditure on renewal of existing assets (SC13b) plus Total Capital Expenditure on upgrading of existing assets (SC13e) must reconcile to total capital expenditure in Table C5
A171: check balance | C171: =C166+SC13a!C166+SC13b!C166-'C5-Capex'!C40 -> 0 | D171: =D166+SC13a!D166+SC13b!D166-'C5-Capex'!D40 -> 0 | E171: =E166+SC13a!E166+SC13b!E166-'C5-Capex'!E40 -> 0 | F171: =F166+SC13a!F166+SC13b!F166-'C5-Capex'!F40 -> 0 | G171: =G166+SC13a!G166+SC13b!G166-'C5-Capex'!G40 -> 0 | H171: =H166+SC13a!H166+SC13b!H166-'C5-Capex'!H40 -> -59636014 | K171: =K166+SC13a!K166+SC13b!K166-'C5-Capex'!K40 -> 0

Sheet SC71charts
A1: ='Template names'!B102 -> Chart C1 2020/21 Capital Expenditure Monthly Trend: actual v target
A2: Month | B2: ='SC12'!B2 -> 2019/20 | C2: ='SC12'!C3 -> Original Budget | D2: ='SC12'!D3 -> Adjusted Budget | E2: ='SC12'!E3 -> Monthly actual
A3: =LEFT('SC12'!A6,3) -> Jul | B3: ='SC12'!B6 -> 0 | C3: ='SC12'!C6 -> 11004000 | D3: ='SC12'!D6 -> 0 | E3: ='SC12'!E6 -> 9673670
A4: =LEFT('SC12'!A7,3) -> Aug | B4: ='SC12'!B7 -> 0 | C4: ='SC12'!C7 -> 8120000 | D4: ='SC12'!D7 -> 0 | E4: ='SC12'!E7 -> 4828893
A5: =LEFT('SC12'!A8,3) -> Sep | B5: ='SC12'!B8 -> 0 | C5: ='SC12'!C8 -> 7578000 | D5: ='SC12'!D8 -> 0 | E5: ='SC12'!E8 -> 9729563
A6: =LEFT('SC12'!A9,3) -> Oct | B6: ='SC12'!B9 -> 0 | C6: ='SC12'!C9 -> 9895000 | D6: ='SC12'!D9 -> 0 | E6: ='SC12'!E9 -> 13694479
A7: =LEFT('SC12'!A10,3) -> Nov | B7: ='SC12'!B10 -> 0 | C7: ='SC12'!C10 -> 10320000 | D7: ='SC12'!D10 -> 0 | E7: ='SC12'!E10 -> 8144527
A8: =LEFT('SC12'!A11,3) -> Dec | B8: ='SC12'!B11 -> 0 | C8: ='SC12'!C11 -> 11510000 | D8: ='SC12'!D11 -> 0 | E8: ='SC12'!E11 -> 12299931
A9: =LEFT('SC12'!A12,3) -> Jan | B9: ='SC12'!B12 -> 0 | C9: ='SC12'!C12 -> 13215000 | D9: ='SC12'!D12 -> 0 | E9: ='SC12'!E12 -> 0
A10: =LEFT('SC12'!A13,3) -> Feb | B10: ='SC12'!B13 -> 0 | C10: ='SC12'!C13 -> 9122000 | D10: ='SC12'!D13 -> 0 | E10: ='SC12'!E13 -> 0
A11: =LEFT('SC12'!A14,3) -> Mar | B11: ='SC12'!B14 -> 0 | C11: ='SC12'!C14 -> 4880000 | D11: ='SC12'!D14 -> 0 | E11: ='SC12'!E14 -> 0
A12: =LEFT('SC12'!A15,3) -> Apr | B12: ='SC12'!B15 -> 0 | C12: ='SC12'!C15 -> 6000000 | D12: ='SC12'!D15 -> 0 | E12: ='SC12'!E15 -> 0
A13: =LEFT('SC12'!A16,3) -> May | B13: ='SC12'!B16 -> 0 | C13: ='SC12'!C16 -> 5505000 | D13: ='SC12'!D16 -> 0 | E13: ='SC12'!E16 -> 0
A14: =LEFT('SC12'!A17,3) -> Jun | B14: ='SC12'!B17 -> 0 | C14: ='SC12'!C17 -> 22523000 | D14: ='SC12'!D17 -> 0 | E14: ='SC12'!E17 -> 0
A26: ='Template names'!B103 -> Chart C2 2020/21 Capital Expenditure: YTD actual v YTD target
A27: Month | B27: ='SC12'!F3 -> YearTD actual | C27: ='SC12'!G3 -> YearTD budget
A28: =LEFT('SC12'!A6,3) -> Jul | B28: ='SC12'!F6 -> 9673670 | C28: ='SC12'!G6 -> 11004000
A29: =LEFT('SC12'!A7,3) -> Aug | B29: ='SC12'!F7 -> 14502563 | C29: ='SC12'!G7 -> 19124000
A30: =LEFT('SC12'!A8,3) -> Sep | B30: ='SC12'!F8 -> 24232126 | C30: ='SC12'!G8 -> 26702000
A31: =LEFT('SC12'!A9,3) -> Oct | B31: ='SC12'!F9 -> 37926605 | C31: ='SC12'!G9 -> 36597000
A32: =LEFT('SC12'!A10,3) -> Nov | B32: ='SC12'!F10 -> 46071132 | C32: ='SC12'!G10 -> 46917000
A33: =LEFT('SC12'!A11,3) -> Dec | B33: ='SC12'!F11 -> 58371063 | C33: ='SC12'!G11 -> 58427000
A34: =LEFT('SC12'!A12,3) -> Jan | B34: ='SC12'!F12 ->  | C34: ='SC12'!G12 -> 71642000
A35: =LEFT('SC12'!A13,3) -> Feb | B35: ='SC12'!F13 ->  | C35: ='SC12'!G13 -> 80764000
A36: =LEFT('SC12'!A14,3) -> Mar | B36: ='SC12'!F14 ->  | C36: ='SC12'!G14 -> 85644000
A37: =LEFT('SC12'!A15,3) -> Apr | B37: ='SC12'!F15 ->  | C37: ='SC12'!G15 -> 91644000
A38: =LEFT('SC12'!A16,3) -> May | B38: ='SC12'!F16 ->  | C38: ='SC12'!G16 -> 97149000
A39: =LEFT('SC12'!A17,3) -> Jun | B39: ='SC12'!F17 ->  | C39: ='SC12'!G17 -> 119672000
A51: ='Template names'!B104 -> Chart C3 Aged Consumer Debtors Analysis
B52: ='SC3'!C3 -> 0-30 Days | C52: ='SC3'!D3 -> 31-60 Days | D52: ='SC3'!E3 -> 61-90 Days | E52: ='SC3'!F3 -> 91-120 Days | F52: ='SC3'!G3 -> 121-150 Dys | G52: ='SC3'!H3 -> 151-180 Dys | H52: ='SC3'!I3 -> 181 Dys-1 Yr | I52: ='SC3'!J3 -> Over 1Yr
A53: =Head2 -> Budget Year 2020/21 | B53: ='SC3'!C14 -> 4167907 | C53: ='SC3'!D14 -> 4638588 | D53: ='SC3'!E14 -> 2149030 | E53: ='SC3'!F14 -> 2123749 | F53: ='SC3'!G14 -> 1386963 | G53: ='SC3'!H14 -> 178998012 | H53: ='SC3'!I14 -> 0 | I53: ='SC3'!J14 -> 0
A54: =Head1 -> 2019/20 | B54: ='SC3'!C15 -> 0 | C54: ='SC3'!D15 -> 0 | D54: ='SC3'!E15 -> 0 | E54: ='SC3'!F15 -> 0 | F54: ='SC3'!G15 -> 0 | G54: ='SC3'!H15 -> 0 | H54: ='SC3'!I15 -> 0 | I54: ='SC3'!J15 -> 0
A76: ='Template names'!B105 -> Chart C4 Consumer Debtors (total by Debtor Customer Category)
B77: =Head1 -> 2019/20 | C77: =Head2 -> Budget Year 2020/21
A78: ='SC3'!A17 -> Organs of State | B78: =C78*0.97 -> 3818226.52 | C78: ='SC3'!K17 -> 3936316
A79: ='SC3'!A18 -> Commercial | B79: =C79*0.97 -> 11910353.55 | C79: ='SC3'!K18 -> 12278715
A80: ='SC3'!A19 -> Households | B80: =C80*0.97 -> 171931741.5 | C80: ='SC3'!K19 -> 177249218
A81: ='SC3'!A20 -> Other | B81: =C81*0.97 -> 0 | C81: ='SC3'!K20 -> 0
A101: ='Template names'!B106 -> Chart C5 Aged Creditors Analysis
B102: ='SC4'!A6 -> Bulk Electricity | C102: ='SC4'!A7 -> Bulk Water | D102: ='SC4'!A8 -> PAYE deductions | E102: ='SC4'!A9 -> VAT (output less input) | F102: ='SC4'!A10 -> Pensions / Retirement deductions | G102: ='SC4'!A11 -> Loan repayments | H102: ='SC4'!A12 -> Trade Creditors | I102: ='SC4'!A13 -> Auditor General | J102: ='SC4'!A14 -> Other
A103: =A54 -> 2019/20 | B103: ='SC4'!L6 -> 0 | C103: ='SC4'!L7 -> 0 | D103: ='SC4'!L8 -> 0 | E103: ='SC4'!L9 -> 0 | F103: ='SC4'!L10 -> 0 | G103: ='SC4'!L11 -> 0 | H103: ='SC4'!L12 -> 0 | I103: ='SC4'!L13 -> 0 | J103: ='SC4'!L14 -> 0
A104: =A53 -> Budget Year 2020/21 | B104: ='SC4'!K6 -> 2857696 | C104: ='SC4'!K7 -> 0 | D104: ='SC4'!K8 -> 0 | E104: ='SC4'!K9 -> 0 | F104: ='SC4'!K10 -> 0 | G104: ='SC4'!K11 -> 0 | H104: ='SC4'!K12 -> 0 | I104: ='SC4'!K13 -> 0 | J104: ='SC4'!K14 -> 1670287
